{"text_format":"3","workbook":"xlsx","n_sheets":10,"sheets":["データ","モデリング","$System$","$data_cov$","History","$Calculation$","TTM_data","$Japanese$","$English$","$Chinese$"],"not_rendered":{"macros":1,"defined_names":37},"read":"whole","date_system":"1900"}

{"sheet":"データ","index":0,"n_rows":24,"n_cols":4,"rows_kept":24}
["変数名","numb","質問ａ","質問ｂ"]
[null,1,1,1]
[null,2,1,1]
[null,3,1,1]
[null,4,1,1]
[null,5,1,2]
[null,6,1,4]
[null,7,2,2]
[null,8,2,2]
[null,9,2,3]
[null,10,3,1]
[null,11,3,1]
[null,12,3,2]
[null,13,3,2]
[null,14,3,2]
[null,15,3,3]
[null,16,3,3]
[null,17,3,4]
[null,18,4,2]
[null,19,4,3]
[null,20,4,3]
[null,21,4,4]
[null,22,4,4]
[null,23,4,4]

{"sheet":"モデリング","index":1,"n_rows":303,"n_cols":6,"rows_kept":303}
["変数名","numb","質問ａ","質問ｂ"]
{"$rows_empty":7}
[null,"numb","質問ａ","質問ｂ"]
{"$rows_empty":22}
[null,1]
{"$rows_empty":267}
["変数情報",{"$nulls":4},"コード"]
["numb"]
["質問ａ",null,"1=そうではない, 2=あまりそうではない, 3=少しそうである, 4=そうである","質問ａへの評定"]
["質問ｂ",null,"1=そうではない, 2=あまりそうではない, 3=少しそうである, 4=そうである","質問ｂへの評定"]

{"sheet":"$System$","index":2,"n_rows":714,"n_cols":35,"rows_kept":714,"hidden":true}
["設定は変更しないでください。HADがうまく作動しなくなる可能性があります。",{"$nulls":7},"変数名","コード","フィルタ","値","ラベル","読み込まない変数","右クリック","登録名","登録変数","回帰変数保存名","回帰保存コード","因子変数保存名","因子保存コード",null,null,"name","caption","left","top","width","height","macro","cell","placement","type"]
[{"$nulls":14},"HADを起動",{"$nulls":8},"modelingb","モデリング\nシート",12.75,72.75,51,38.25,"interface.modelingsheet",null,1,"Buttons",null,"sheet1"]
["開いているシート",1,"0:データ, 1:モデリング, 2その他",{"$nulls":11},"記述統計量",{"$nulls":8},"columnsb","列幅の\n調整",12.75,165.75,51,41.25,"Interface.columnwidth",null,1,"Buttons",null,"sheet1"]
["HADモード",2,"1:詳細モード、2:簡易モード",{"$nulls":11},"ヒストグラム",{"$nulls":8},"datainputb","データ\n読み込み",12.75,27.75,51,38.25,"Interface.datainput",null,1,"Buttons",null,"sheet1"]
["分析ボタンの使用",{"$nulls":13},"変数の作成",{"$nulls":8},"matrixb","数値\n計算",12,219.75,51.75,41.25,"Interface.matrixcul",null,1,"Buttons",null,"sheet1"]
["最大変数",254,{"$nulls":21},"ttm2hadb","TTM2\nHAD",12,358.5,51.75,38.25,"Interface.ttm2hadvisible",null,1,"Buttons",null,"sheet1"]
["最大使用変数",100,{"$nulls":21},"had2rb","HAD2R",12,305.25,51.75,36.75,"Interface.readcsv",null,1,"Buttons",null,"sheet1"]
["モード",0,"0:変数情報, 1:回帰分析, 2:因子分析, 3:全表示",{"$nulls":20},"groupmode","グループ 1961",497.25,26.25,93.75,75.75,null,null,2,"GroupBoxes",null,"sheet2"]
["ラベル出力",0,"0なら出力しない、1ならラベル出力",{"$nulls":20},"groupmethod","グループ 2008",363.75,589.5,417.75,31.5,null,null,2,"GroupBoxes",null,"sheet2"]
["欠損値",".",{"$nulls":21},"grouprotation","グループ 2028",363.75,624.75,244.5,30.75,null,null,2,"GroupBoxes",null,"sheet2"]
["欠損値判断",0,"→0ならピリオド,1:NA,　2ならそれ以外",{"$nulls":20},"groupanalysis","グループ 2032",364.5,741.75,360,25.5,null,null,2,"GroupBoxes",null,"sheet2"]
["読み込み変数",3,{"$nulls":21},"groupregdependent","グループ 1981",344.25,1023,451.5,33.75,null,null,1,"GroupBoxes",null,"sheet2"]
["使用変数",1,{"$nulls":21},"groupregselection","グループ 1986",360,1208.25,368.25,30,null,null,2,"GroupBoxes",null,"sheet2"]
["共分散データ使用変数",21,{"$nulls":21},"jouhou","変数情報",506.25,33,70.5,21.75,"Interface.jouhou","$System$'!$B$99",2,"OptionButtons",1,"sheet2"]
["使用データセット",1,{"$nulls":21},"kaiki","回帰分析",506.25,53.25,70.5,22.5,"Interface.kaiki","$System$'!$B$99",2,"OptionButtons",-4146,"sheet2"]
["データセットシート名",{"$nulls":22},"inshi","因子分析",506.25,74.25,70.5,21.75,"Interface.inshi","$System$'!$B$99",2,"OptionButtons",-4146,"sheet2"]
["共分散データセットの有無",0,{"$nulls":21},"mlmethod","最尤法",370.5,595.5,67.5,24,"hmethod","$System$'!$B$110",2,"OptionButtons",1,"sheet2"]
["共分散データ使用のチェック",0,{"$nulls":21},"ulsmethod","最小二乗法",444.75,595.5,78.75,24,"hmethod","$System$'!$B$110",2,"OptionButtons",-4146,"sheet2"]
["シートの保護設定",0,"0:保護, 1:保護しない",{"$nulls":20},"prinit","反復主因子法",531,595.5,87,24,"hmethod","$System$'!$B$110",2,"OptionButtons",-4146,"sheet2"]
["オブジェクト数",9,{"$nulls":21},"princomp","主成分法",623.25,595.5,68.25,24,"hmethod","$System$'!$B$110",2,"OptionButtons",-4146,"sheet2"]
["分析履歴表示",0,"0:表示しない, 1:表示する",{"$nulls":20},"noiteration","カテゴリカル",704.25,595.5,74.25,24,"hmethod","$System$'!$B$110",2,"OptionButtons",-4146,"sheet2"]
["マルチレベルチェック",0,{"$nulls":21},"obliqu","斜交回転",370.5,628.5,67.5,22.5,null,"$System$'!$B$111",2,"OptionButtons",1,"sheet2"]
["回帰分析設定",1,"　1：回帰分析、2：媒介分析、3：ステップワイズ、4：分散分析、5：多変量、6：一般化線形モデル、7:階層線形モデル",{"$nulls":20},"orthogonal","直交回転",444.75,628.5,77.25,22.5,"hmethod","$System$'!$B$111",2,"OptionButtons",-4146,"sheet2"]
["媒介分析ブートN",2000,{"$nulls":21},"norotation","回転なし",531,628.5,66,22.5,"hmethod","$System$'!$B$111",2,"OptionButtons",-4146,"sheet2"]
["ステップワイズ　閾値1",0.05,{"$nulls":21},"factor","因子分析",369.75,745.5,68.25,19.5,"Interface.factor","$System$'!$B$107",2,"OptionButtons",1,"sheet2"]
["ステップワイズ　閾値2",0.1,{"$nulls":21},"cluster","クラスタ分析",446.25,745.5,67.5,19.5,"Interface.cluster","$System$'!$B$107",2,"OptionButtons",-4146,"sheet2"]
["ランダマイズ",0,"0:ランダイマイズしない、1:ランダイマイズ",{"$nulls":20},"correspondence","数量化分析",531,745.5,84,19.5,"Interface.correspondence","$System$'!$B$107",2,"OptionButtons",-4146,"sheet2"]
["ブートストラップ標本生成",1,"1:ノンパラメトリック, 2:パラメトリック",{"$nulls":20},"sems","構造方程式モデル",622.5,745.5,93,19.5,"Interface.cfa","$System$'!$B$107",2,"OptionButtons",-4146,"sheet2"]
["変数の保存",1,{"$nulls":21},"linear","連続",348.75,1028.25,39.75,23.25,"Interface.linear","$System$'!$B$45",2,"OptionButtons",1,"sheet2"]
["変数情報のウィンドウ固定",0,"0:固定しない, 1固定する",{"$nulls":20},"ordinal","順序",400.5,1028.25,40.5,23.25,"Interface.ordinal","$System$'!$B$45",2,"OptionButtons",-4146,"sheet2"]
["主効果を全体平均で中心",0,{"$nulls":21},"nominal","名義",619.5,1028.25,40.5,23.25,"Interface.nominal","$System$'!$B$45",2,"OptionButtons",-4146,"sheet2"]
["2値変数をカテゴリカル変数に",0,{"$nulls":21},"count","カウント",502.5,1028.25,48,23.25,"Interface.count","$System$'!$B$45",2,"OptionButtons",-4146,"sheet2"]
["交互作用項を中心化",1,{"$nulls":21},"censored","打ち切り",559.5,1028.25,48,23.25,"Interface.censored","$System$'!$B$45",2,"OptionButtons",-4146,"sheet2"]
["順序回帰リンク関数",1,"1:ロジット、2:プロビット",{"$nulls":20},"ratio2","割合",445.5,1028.25,39.75,23.25,"Interface.ratio","$System$'!$B$45",2,"OptionButtons",-4146,"sheet2"]
["平方和タイプ",0,"0:タイプ3, 1:タイプ2",{"$nulls":20},"mixdist","混合分布",674.25,1028.25,50.25,23.25,"Interface.mixdist","$System$'!$B$45",2,"OptionButtons",-4146,"sheet2"]
["多重比較",3,"1:F-Shaffer, 2:Shaffer, 3:Holm, 4:Bonf.",{"$nulls":20},"had2quantreg","分位点",738.75,1028.25,49.5,23.25,"Interface.quantreg","$System$'!$B$45",2,"OptionButtons",-4146,"sheet2"]
["主効果の有意基準",0.05,{"$nulls":21},"regression","一般化線形モデル",515.25,1210.5,107.25,24,"Interface.gzlm","$System$'!$B$100",2,"OptionButtons",-4146,"sheet2"]
["単純主効果の誤差",0,"0:プールされた誤差, 1:水準別誤差,2:間はプール，内は水準別",{"$nulls":20},"anova","分散分析",443.25,1210.5,62.25,24,"Interface.anovas","$System$'!$B$100",2,"OptionButtons",1,"sheet2"]
["球面性逸脱の自由度補正",5,"1:HF, 2:G-G, 3:下限, 4:補正無, 5:C-M",{"$nulls":20},"discri","回帰分析",369,1210.5,63,24,"Interface.regressions","$System$'!$B$100",2,"OptionButtons",-4146,"sheet2"]
["名義有意水準の表示",0,"0:調整有意確率, 1:名義有意水準",{"$nulls":20},"hlms","階層線形モデル",621,1211.25,81.75,24,"Interface.hlms","$System$'!$B$100",2,"OptionButtons",-4146,"sheet2"]
["Satterthwait補正",0,"1:補正する, 0:補正しない",{"$nulls":20},"insert2","出力を上書きしない",1012.5,523.5,95.25,21.75,null,"$System$'!$B$108",2,"CheckBoxes",-4146,"sheet2"]
["ペアワイズ誤差項",1,"0:要因の誤差項, 1:ペアワイズ誤差項",{"$nulls":20},"eigenvalue","固有値1以上まで",445.5,559.5,80.25,22.5,"Interface.eigenvalue","$System$'!$B$109",2,"CheckBoxes",-4146,"sheet2"]
["共変量の中心化",false,"0:中心化しない, 1:中心化する",{"$nulls":20},"procrustes","プロクラステス",642.75,629.25,96.75,20.25,"Interface.procrustes","$System$'!$B$112",2,"CheckBoxes",-4146,"sheet2"]
["球面性の結果の出力",1,"0:出力しない, 1:出力する",{"$nulls":20},"factorscore","因子得点",370.5,662.25,69,21,"Interface.factorscore","$System$'!$B$113",2,"CheckBoxes",1,"sheet2"]
["一般化線形モデルのタイプ",1,"1:間隔、2:順序、3:名義、4:カウント、5:打ち切り, 6:割合, 7:混合分布, 8:分位点",{"$nulls":20},"scalescore","尺度得点",445.5,662.25,90.75,21,"Interface.scalescore","$System$'!$B$114",2,"CheckBoxes",-4146,"sheet2"]
["ステップワイズ法オン",0,"0:階層的重回帰, 1:ステップワイズ, 2:媒介分析",{"$nulls":20},"sizesort","サイズでソート",370.5,695.25,69,21.75,null,"$System$'!$B$115",2,"CheckBoxes",1,"sheet2"]
["標準誤差",true,"0：モデル標準誤差、１：ロバスト",{"$nulls":20},"corrmatrix","相関行列",445.5,695.25,68.25,21.75,null,"$System$'!$B$116",2,"CheckBoxes",-4146,"sheet2"]
["エラーバーの表示",0,"0:標準誤差, 1:信頼区間",{"$nulls":20},"mds","項目反応理論",532.5,695.25,76.5,21.75,null,"$System$'!$B$117",2,"CheckBoxes",-4146,"sheet2"]
["ブートストラップ信頼区間",1,"0:パーセンタイル, 1:バイアス修正",{"$nulls":20},"filteroff2","フィルタをオフにする",1012.5,500.25,95.25,24,null,"$System$'!$B$142",2,"CheckBoxes",-4146,"sheet2"]
["カウントデータの分布",0,"0:ポアソン、1:負の二項分布、2:一般化ポアソン",{"$nulls":20},"normalize","欠損値データ",642,630.75,95.25,20.25,"Interface.missingcheck","$System$'!$B$187",2,"CheckBoxes",-4146,"sheet2"]
["打ち切りデータの方向",1,"1:下側、2:上側、3:両方、0：なし",{"$nulls":20},"pathdraw","パス図表示",6.75,909.75,63.75,19.5,"pathdiagrams","$System$'!$B$172",2,"CheckBoxes",-4146,"sheet2"]
["因子分析設定",{"$nulls":22},"insert3","出力を上書きしない",700.5,821.25,96,18.75,null,"$System$'!$B$108",3,"CheckBoxes",-4146,"sheet2"]
["最大反復数",25,{"$nulls":21},"filteroff3","フィルタをオフにする",700.5,800.25,96,21,null,"$System$'!$B$142",3,"CheckBoxes",-4146,"sheet2"]
["収束基準",1E-3,{"$nulls":21},"insert1","出力を上書きしない",880.5,989.25,94.5,21.75,null,"$System$'!$B$101",2,"CheckBoxes",1,"sheet2"]
["Kappa",4,{"$nulls":21},"robust","頑健標準誤差",803.25,1029,78,21.75,"Interface.regrobust","$System$'!$B$47",2,"CheckBoxes",1,"sheet2"]
["重み",1,{"$nulls":21},"level1center","レベル1変数を集団平均で中心化",354.75,1028.25,130.5,21.75,"Interface.regmultilevel","$System$'!$B$133",2,"CheckBoxes",-4146,"sheet2"]
["平行分析回数",50,{"$nulls":21},"hlmrobust","頑健標準誤差",520.5,1028.25,97.5,21.75,"Interface.regmultilevel","$System$'!$B$131",2,"CheckBoxes",1,"sheet2"]
["平行分析ランダマイズ",0,"0:ランダイマイズしない、1:ランダイマイズ",{"$nulls":20},"filteroff","フィルタをオフにする",880.5,967.5,94.5,21,null,"$System$'!$B$141",2,"CheckBoxes",-4146,"sheet2"]
["斜交回転法",0,"0:プロマックス,1:独立クラスタ―, 2:直接オブリミン",{"$nulls":20},"robust2","クラスタ標準誤差",881.25,1029,89.25,21.75,"Interface.regmultilevel","$System$'!$B$127",2,"CheckBoxes",-4146,"sheet2"]
["カイザーの基準化",1,"1:カイザー基準化, 0:基準化しない",{"$nulls":20},"stepoutput","各ステップを出力しない",874.5,1167.75,109.5,22.5,null,"$System$'!$B$103",2,"CheckBoxes",-4146,"sheet2"]
["独立クラスターのPower",0,{"$nulls":21},"residual","残差得点を出力",874.5,1188,100.5,23.25,null,"$System$'!$B$105",2,"CheckBoxes",-4146,"sheet2"]
["単純構造分析",2,"2:SMC, 3:非反復推定法",{"$nulls":20},"stepwise","ステップワイズ",787.5,1167.75,71.25,21.75,"Interface.stepwisecheck","$System$'!$B$118",2,"CheckBoxes",-4146,"sheet2"]
["VSSの複雑性",1,"1~3",{"$nulls":20},"medi","媒介分析",787.5,1188,75,22.5,"Interface.mediation","$System$'!$B$104",2,"CheckBoxes",-4146,"sheet2"]
["マルチページ記憶",0,"0:因子分析, 1:スクリープロット,2:クラスタ, 3:対応",{"$nulls":20},"discrim2","判別分析",989.25,1167.75,69.75,21.75,"Interface.discrim","$System$'!$B$139",2,"CheckBoxes",-4146,"sheet2"]
["共通性の和かVSS",0,"0:共通性の和, 1:VSS",{"$nulls":20},"multireg2","多変量回帰分析",989.25,1187.25,75.75,23.25,"Interface.multiregswitch","$System$'!$B$140",2,"CheckBoxes",-4146,"sheet2"]
["単純構造性分析のグラフ",0,"0:なし, 1:あり",{"$nulls":20},"covaricenter","共変量を中心化",787.5,1167.75,95.25,21.75,null,"$System$'!$B$43",2,"CheckBoxes",-4146,"sheet2"]
["クラスター基準",7,8,"7:ウォード法,",{"$nulls":19},"generales","一般化効果量",900,1167,81,21.75,null,"$System$'!$B$164",2,"CheckBoxes",-4146,"sheet2"]
["デンドログラムの表示",1,"1:距離, 2:2乗, 3:3乗",{"$nulls":20},"unbiases","不偏推定効果量",900,1188,106.5,22.5,null,"$System$'!$B$163",2,"CheckBoxes",-4146,"sheet2"]
["負荷量カットポイント",0,{"$nulls":21},"sigalpha","名義有意水準を表示",787.5,1188,103.5,22.5,null,"$System$'!$B$40",2,"CheckBoxes",-4146,"sheet2"]
["クラスタ分析経過出力",0,"0:出力しない, 1:出力する",{"$nulls":20},"hra","階層的投入法",653.25,1164.75,81,22.5,"Interface.hracheck","$System$'!$B$158",2,"CheckBoxes",-4146,"sheet2"]
["距離行列の出力",0,"0:出力しない, 1:出力する",{"$nulls":20},"had2glimmix","HAD2GLIMMIX",981.75,1167,84.75,21.75,"Interface.had2glimmix","$System$'!$B$232",2,"CheckBoxes",-4146,"sheet2"]
["MDSの次元数",2,"デフォルト2",{"$nulls":20},"had2glmmstan","HAD2glmmstan",981.75,1188,84.75,22.5,"Interface.had2glmmstan","$System$'!$B$259",2,"CheckBoxes",-4146,"sheet2"]
["対応分析グラフ　軸数値",0,"0:表示しない, 1:表示する",{"$nulls":20},"loglm","対数線形モデル",992.25,1167,92.25,21,"loglms","$System$'!$B$284",2,"CheckBoxes",-4146,"sheet2"]
["対応分析グラフ　次元軸",1,"0:表示しない, 1:表示する",{"$nulls":20},"usevariable","使用変数",7.5,123.75,58.5,19.5,"Interface.usevariable",null,3,"Buttons",null,"sheet2"]
["デンドログラムの要約",25,"デフォルト25",{"$nulls":20},"analysis","分析",12.75,27,51,38.25,"Interface.boothad",null,3,"Buttons",null,"sheet2"]
["カテゴリカル基準",15,{"$nulls":21},"datasheet","データ\nシート",12.75,72.75,51,38.25,"data_sheet",null,3,"Buttons",null,"sheet2"]
["ポリコリック相関データ",0,"0:オフ、1:オン",{"$nulls":20},"selectvariable","選択セルを使用",146.25,33.75,87,31.5,"Interface.selectvariable",null,3,"Buttons",null,"sheet2"]
["度数分布の級数",12,{"$nulls":21},"controlvariable","統制変数を投入",257.25,33.75,87,31.5,"Interface.controlvariable",null,3,"Buttons",null,"sheet2"]
["行列演算",3,"1:逆行列, 2行列式, 3Jacobi,　4QR, 5乱数，6シミュレーション, 7サンプリング",{"$nulls":20},"leftmove","変数を左につめる",369,33.75,87,31.5,"Interface.leftmove",null,3,"Buttons",null,"sheet2"]
["標準得点平均",0,{"$nulls":21},"filtermanage","フィルタ",77.25,162.75,52.5,19.5,"Interface.filter",null,1,"Buttons",null,"sheet2"]
["標準得点SD",1,{"$nulls":21},"valuelabelmanage","値ラベル",130.5,162.75,53.25,19.5,"Interface.valuelabel",null,1,"Buttons",null,"sheet2"]
["変数の逆転",6,{"$nulls":21},"variablemanage","ラベル",184.5,162.75,52.5,19.5,"Interface.variablelabel",null,1,"Buttons",null,"sheet2"]
["足し算",0,{"$nulls":21},"atvariable","@変数",237.75,162.75,53.25,19.5,"Interface.boxvariable",null,1,"Buttons",null,"sheet2"]
["掛け算",1,{"$nulls":21},"creatvariable","変数の作成",607.5,32.25,87,31.5,"Interface.createvariable",null,3,"Buttons",null,"sheet2"]
["累乗",2,{"$nulls":21},"sheetmanagement","HADの設定",732,73.5,87,31.5,"Interface.hadoption",null,3,"Buttons",null,"sheet2"]
["変数の作成",3,{"$nulls":21},"dataset","データセット",607.5,73.5,87,31.5,"Interface.dataset",null,3,"Buttons",null,"sheet2"]
["変数の作成ページ",0,{"$nulls":21},"varijouhou","シート管理",732,32.25,87,31.5,"System.Sheet_Manage",null,3,"Buttons",null,"sheet2"]
["平行分析実行",0,"0:しない, 1:実行する",{"$nulls":20},"mlpromax","最尤プロマックス",434.25,507,87,30.75,"Interface.mlpromax",null,1,"Buttons",null,"sheet2"]
["一標本検定の基準値",0,{"$nulls":21},"principle","主成分法",545.25,507,87,30.75,"Interface.principal",null,1,"Buttons",null,"sheet2"]
["クラスターランダム",0,{"$nulls":21},"screeplot","スクリープロット",545.25,560.25,87,18.75,"Interface.screeplot",null,1,"Buttons",null,"sheet2"]
["クラスタ初期値設定",1,"1.反復 2:ランダム 3:主成分法",{"$nulls":20},"factoroption","オプション",792,506.25,87,31.5,"Interface.factoroption",null,1,"Buttons",null,"sheet2"]
["反復回数",20,{"$nulls":21},"factorrun","分析実行",897.75,506.25,87,31.5,"Interface.factorrun",null,1,"Buttons",null,"sheet2"]
["変数情報マルチページ",1,"0:フィルタ, 1:値ラベル, 2:変数ラベル",{"$nulls":20},"factorsave2","モデル保存",300,741,57,27.75,"Interface.factorvariable",null,1,"Buttons",null,"sheet2"]
["出力を上書きしない",1,"0:上書きする, 1:上書きしない",{"$nulls":20},"rawdata2","初期化",9.75,800.25,57,19.5,"Interface.rawdata",null,3,"Buttons",null,"sheet2"]
["読み込まない変数の数",0,{"$nulls":21},"fplus","因子増やす",9.75,841.5,57,20.25,"Interface.factorplus",null,3,"Buttons",null,"sheet2"]
["モデリングシートのセル幅",8.080000000000002,{"$nulls":21},"fminus","因子減らす",9.75,876.75,57,19.5,"Interface.factorminus",null,3,"Buttons",null,"sheet2"]
[".",{"$nulls":22},"freepara","パスを推定",141,807,84.75,30.75,"Interface.freepara",null,3,"Buttons",null,"sheet2"]
["オブジェクトの状態",{"$nulls":22},"freecov","共分散を推定",246,807,84.75,30.75,"Interface.freecov",null,3,"Buttons",null,"sheet2"]
["モード",1,"1:変数情報、2:回帰分析、3:因子分析",{"$nulls":20},"modelcheck","モデルチェック",496.5,806.25,84.75,30.75,"Interface.modelcheck",null,3,"Buttons",null,"sheet2"]
["回帰分析オプションボタン",3,"1:一般化線形モデル、2:分散分析、3:回帰分析、4:多一般化線形混合モデル",{"$nulls":20},"semrun","分析実行",597.75,806.25,84.75,30.75,"Interface.factorrun",null,3,"Buttons",null,"sheet2"]
["回帰：上書きしない",false,{"$nulls":21},"redraw","HAD2Stan",374.25,806.25,84.75,30.75,"Interface.redrawpath",null,3,"Buttons",null,"sheet2"]
["回帰：マルチレベルモデル",0,{"$nulls":21},"dependent","目的変数を投入",300,973.5,87,31.5,"Interface.dependent",null,1,"Buttons",null,"sheet2"]
["回帰：各ステップの出力",false,{"$nulls":21},"maineffect","主効果を全投入",411,973.5,87,31.5,"Interface.maineffect",null,1,"Buttons",null,"sheet2"]
["回帰：媒介分析",false,{"$nulls":21},"interaction","交互作用を全投入",523.5,972.75,87,31.5,"Interface.interaction",null,2,"Buttons",null,"sheet2"]
["回帰：残差得点",false,{"$nulls":21},"regoption","オプション",658.5,973.5,87,30.75,"Interface.regoption",null,1,"Buttons",null,"sheet2"]
["回帰：交互作用項得点",false,{"$nulls":21},"regrun","分析実行",764.25,973.5,87,30.75,"Interface.regrun",null,1,"Buttons",null,"sheet2"]
["因子：分析オプション",1,"1:因子分析，2:クラスタ分析，3:対応分析，4:構造方程式モデル",{"$nulls":20},"slice","スライス",545.25,1162.5,87,28.5,"Interface.slice",null,2,"Buttons",null,"sheet2"]
["因子：上書きしない",false,{"$nulls":21},"cellmean","各セルの平均値",655.5,1162.5,84.75,28.5,"Interface.cellmean",null,1,"Buttons",null,"sheet2"]
["因子：固有値1以上まで",false,{"$nulls":21},"modelsave","モデル保存",300,1208.25,57,27.75,"Interface.modelvariable",null,1,"Buttons",null,"sheet2"]
["因子：抽出法",1,{"$nulls":21},"linkdist","媒介分析の設定",652.5,1162.5,88.5,28.5,"Interface.linkdist",null,1,"Buttons",null,"sheet2"]
["因子：回転法",1,{"$nulls":21},"swoption","Stepwiseの設定",651.75,1162.5,88.5,28.5,"Interface.swoption",null,1,"Buttons",null,"sheet2"]
["因子：プロクラステス回転",false,{"$nulls":21},"had2glmmoption","HAD2GLIMMIXの設定",549,1161.75,105.75,25.5,"Interface.had2glimmixoption",null,1,"Buttons",null,"sheet2"]
["因子得点",false,{"$nulls":21},"glmmstanoption","HAD2glmmstanの設定",631.5,1161.75,109.5,26.25,"Interface.glmmstanoption",null,1,"Buttons",null,"sheet2"]
["尺度得点",false,{"$nulls":21},"history_hide","履歴を非表示",207,10.5,78.75,21.75,"Interface.rirekihidden",null,3,"Buttons",null,"sheet5"]
["サイズで並び替え",true,{"$nulls":21},"history_delete","履歴を全消去",315,10.5,76.5,21.75,"Interface.rirekidel",null,3,"Buttons",null,"sheet5"]
["相関行列",false,{"$nulls":21},"boot_ttm","起動",12,40.5,51.75,36.75,"Interface.ttm2hadrun",null,3,"Buttons",null,"sheet7"]
["多次元尺度法",false,false,false,{"$nulls":19},"close_ttm","閉じる",12,168,51.75,35.25,"Interface.ttm2hadhidden",null,3,"Buttons",null,"sheet7"]
["回帰：ステップワイズ法",false,{"$nulls":21},"sheetmanageb","シート\n管理",12,93,51.75,35.25,"Interface.sheetmanage",null,3,"Buttons",null,"sheet7"]
["クラスター標準化",false]
["多変量正規乱数のサンプルサイズ",100]
["多変量正規乱数の設定",1,"1:ローデータ, 2:共分散データ"]
["データセットマルチページ",0]
["."]
["回帰分析の最大反復回数",500]
["回帰分析の収束基準",1e-05]
["連続データの推定法",0,"0:最小二乗法, 1:最尤法"]
["頑健標準誤差のタイプ",false,"True:クラスタ、False:不均一分散"]
["HLM用の設定"]
["HLMの最大反復回数",500]
["HLMの収束基準",1e-06]
["頑健標準誤差のタイプ",true,"0:モデル、1:頑健標準誤差"]
["HLMカテゴリカル変数",0,"0：そのまま、１：カテゴリカルとして扱う"]
["レベル1の変数の中心化",false,"0:なし、１：あり"]
["レベル2の変数の中心化",false,"０：なし、１：あり"]
["HLMで交互作用のとき中心化",1,"0:なし、１：あり"]
["HLMの固定効果の共分散",0,"0:出力しない、1:出力する"]
["Nullモデルの出力",0,"0:出力しない、1:出力する"]
["切片の変量効果",1,"1:推定する、0：しない"]
["判別分析チェック",false]
["多変量チェック",false]
["回帰：フィルタをオフ",false]
["因子：フィルタをオフ",false]
["切り替えチェックボックス",true]
["構造方程式モデルオプション記録",false,1,1,true,false,false,false]
["因子分析オプション記録",false,1,1,false,false,true,false]
["クラスタ分析オプション記録",false,1,1,false,false,true,true]
["対応分析オプション記録",false,1,1,false,false,true,false]
["因子数記録",1,2,2,0]
["散布図の線形近似直線",0]
["媒介分析の表示",1,"0:非標準化,　1:標準化"]
["エラーバーの下側",1,"0:表示しない, 1:表示する"]
["棒グラフのモノクロ",1,"0：カラー, 1:モノクロ"]
["グラフの枠線",0,"0：枠線なし，　1:枠線あり"]
["マーカーを表示しない",0]
["回帰係数の共分散行列",0]
["折れ線グラフのエラーバー",1]
["ショートカットキー","q","e","r","w"]
["交互作用項の階層的投入",false]
["効果量のタイプ",2,"0:相関係数, 1:cohen's d 2: Hedges's g"]
["回帰モデル保存マルチページ",0]
["因子モデル保存マルチページ",0]
["履歴の最大数",100]
["ηかω",0,"0η　1ω"]
["一般化効果量",0]
["尺度得点の計算法",0,"0平均値，１：合計値"]
["GZLMでt分布で検定",false]
["重回帰の頑健標準誤差",1,"1:補正なし，2:不均一分散，3:クラスタ内相関"]
["HLMでｔ分布で検定",true]
["SEM用モデルスペース",0]
["分散を非負に推定する",true]
["外生変数を推定",true]
["パス図を描画",0]
["情報行列の計算のためのeps",1E-4]
["SEM推定の精度",1e-05]
["SEM推定の最大反復数",500]
["SEM推定の収束基準",1e-05]
["CFAサイズでソート",0]
["パス図の結果を標準化解",0]
["@変数の数",0]
["因子得点算出",1,"0:因子間相関を反映，1：回帰法"]
["結果シートの出力先",0,"0:前，1:最後尾"]
["ブートストラップ　リサンプリング数",2000]
["ブートストラップ　ランダマイズ",0]
["ロバスト回帰分析",0]
["EAP推定の積分",0,"0：区分求積法，1：モンテカルロ法"]
["頑健標準誤差SEM",false]
["欠損値推定SEM",false]
["マルチレベルSEM",0]
["カテゴリカル因子分析でソルバ―",1]
["TTMのパス"]
["TTM 最小頻度数",1,{"$nulls":7},"4,0,5,1,0,0,0,###Factor1"]
["TTMチェックボックス",false,true,true,false,true,true]
["TTMクラスタ数",2]
["TTMクラスタ分析方法",7]
["TTMスコアデータ出力",false]
["TTM次元数",2]
["TTM マルチページ",0]
["TTMクラスタ出力",false]
["TTMクラスタデータのシート名","Cluster_data"]
["TTM対応分析次元数",2]
["TTM対応分析バリマックス",false]
["TTM対応分析重み",0,"重みなし0：重みあり１"]
["TTMオン",0]
["数値計算ページ",0]
["サンプリング正規分布平均",0]
["サンプリング正規分布分散",1]
["サンプリング一様分布最小値",-1]
["サンプリング一様分布最大値",1]
["サンプリング＿サンプルサイズ",30]
["サンプリング＿サンプル数",2000]
["サンプリング_分布",0,"0:正規分布，1:一様分布"]
["TTMデンドログラム最大表示数",50]
["TTMデンドログラム要約",true]
["TTMクラスタデータチェック",true]
["TTM対応分析・主成分分析",0,"0:対応分析，1：主成分分析"]
["TTM主成分　サイズで並び替え",true]
["乱数のシード設定",1,"0：ランダム，1：固定"]
["乱数のシード",12345]
["潜在ランク分析のデータタイプ",0,"０：連続，１：順序"]
["混合分布モデル　共分散モデル",3]
["混合分布回帰の反復回数",20]
["混合分布回帰のランダム",0]
["潜在ランク　SOM回数倍率",5]
["混合分布　頑健標準誤差",false]
["潜在ランク(SOM)の近傍関数の最小値",0.1,"デフォルトは0.12"]
["潜在ランク回帰の回帰係数",0,"0:比例オッズ，1：非比例オッズ"]
["潜在ランク回帰の標準誤差の推定",1,"0:自己組織化マップ，1生成位相マップ"]
["潜在ランク分析の反復推定数",1]
["潜在ランク（GMT)の近傍関数",0.07]
["折れ線の太さ",1.5]
["フォントをTimesNewRoman",0]
["HAD2GLIMMIX",false]
["GLMMの推定法",1]
["GLMMの残差共分散構造",2]
["分位点回帰の分位点","all"]
["外れ値処理　SDの値",3]
["グラフの目盛を内側にする",0]
["プロクラステス回転チェック",0]
["csvファイルのパス"]
["csvファイルの読み込みの名前"]
["csvファイルの書き出しの名前"]
["欠損値をNAに変換する",false]
["NAを欠損値に変換する",false]
["乱数　サンプルサイズ",100]
["乱数　正規分布　平均",0]
["乱数　正規分布　分散",1]
["乱数　二項分布　確率",0.5]
["乱数　二項分布　試行数",10]
["乱数　ポアソン　平均",3]
["乱数　負の二項分布　平均",3]
["乱数　負の二項分布　分散",1]
["乱数　ガンマ分布　平均",2]
["乱数　ガンマ分布　分散",2]
["乱数　ベータ分布　平均",2]
["乱数　ベータ分布　分散",2]
["箱ひげ図にドットプロットを重ねる",0]
["ヒストグラムに正規曲線を表示",0]
["対数正規分布",0]
["had2glmmstan",false]
["glmmstanファイルパス"]
["glmmstanファイル名","had2glmmstan"]
["MCMCサンプル数",2000]
["MCMCマルコフ連鎖",2]
["MCMCウォームアップ"]
["MCMCthin",1]
["並列化",false]
["コア数",2]
["出力オブジェクトの名前","fit"]
["R上でのデータ名","data"]
["stanの結果を出力",false]
["stanコードを出力",false]
["回帰分析スライス点",1]
["カーネル区間数",200]
["バンド幅パラメータ",0.9]
["カーネル密度を出力",0]
["エラーバーをつける",1]
["散布図にラベルを表示",0]
["バイオリンプロット",0]
["箱ひげ図に平均値",0]
["ヒストグラムの級数をデータから決める",0]
["二項回帰の過分散",0]
["ゼロ過剰",false]
["対数線形モデルの0度数に加える",0.5]
["対数線形モデル（分散分析）",false]
["セルのデフォルト幅",8.080000000000002]
["HAD2R",false]
["HAD2Rのデータオブジェクト","dat"]
["HAD2Rのデータ読み込みコード"]
["HAD2stan_SEM パス"]
["HAD2stan_SEM ファイル名","had2stan_sem"]
["表示言語",0,"0:Japanese, 1:English, 2:中国語"]
["独立性検定の補正",0]
["HADフォント",0,"0:Yu Gothic UI,1:Yu Gothic UI semilight, 2:MS UI Gothic"]
["B列変数名","numb"]
["ID変数名","numb"]
["HLMでソルバーを使う",true]
["HLMでREML",false]
{"$rows_empty":29}
[{"$nulls":9},"4,0,5,1,0,0,0,###salary"]
{"$rows_empty":25}
[{"$nulls":9},"4,0,3,5,0,0,0,###年俸"]
{"$rows_empty":13}
[{"$nulls":9},"4,0,0,0,0,###position hand"]
[{"$nulls":9},"4,0,0,0,0,###position hand"]
[{"$nulls":9},"4,0,0,0,0,###position hand salary_t"]
[]
[]
[{"$nulls":9},"4,0,2,0#0#1#1#0#0#0,0,0,0,###HIT"]
[{"$nulls":9},"4,0,1,0#0#1#0#0#00,0,0,###v1 v2 v3 v4 v5 v6 v7 v8 v9 v10 v11 v12"]
[{"$nulls":9},"4,0,1,0#0#1#0#0#00,0,0,###v1 v2 v3 v4 v5 v6 v7 v8 v9 v10 v11 v12"]
[{"$nulls":9},"4,0,1,0#0#1#0#0#00,0,0,###v1 v2 v3 v4 v5 v6 v7 v8 v9 v10 v11 v12"]
[{"$nulls":9},"4,0,1,0#0#1#0#0#00,0,0,###v1 v2 v3 v4 v5 v6 v7 v8 v9 v10"]
[{"$nulls":9},"4,0,1,0#0#1#0#0#00,0,0,###v1 v2 v3 v4 v5 v6 v7 v8 v9 v10"]
[{"$nulls":9},"4,0,1,0#0#1#0#0#00,0,0,###v1 v2 v3 v4 v5 v6 v7 v8 v9 v10"]
[{"$nulls":9},"4,0,1,0#0#1#0#0#00,0,0,###v1 v2 v3 v4 v5 v6 v7 v8 v9 v10"]
[{"$nulls":9},"4,0,1,0#0#1#0#0#00,0,0,###v1 v2 v3 v4 v5 v6 v7 v8 v9 v10"]
[{"$nulls":9},"4,0,1,0#0#1#0#0#00,0,0,###v1 v2 v3 v4 v5 v6 v7 v8 v9 v10"]
[{"$nulls":9},"4,0,1,0#0#1#0#0#00,0,0,###v1 v2 v3 v4 v5 v6 v7 v8 v9 v10"]
[]
[{"$nulls":9},"4,0,3,2,-10,0,0,0,###Prin6 Prin7 Prin8 Prin9 Prin10"]
[{"$nulls":9},"4,0,3,2,-10,0,0,0,###Prin6 Prin7 Prin8 Prin9 Prin10"]
[{"$nulls":9},"4,0,3,2,-10,0,0,0,###Prin6 Prin7 Prin8 Prin9 Prin10"]
[{"$nulls":9},"4,0,3,2,-10,0,0,0,###Prin6 Prin7 Prin8 Prin9 Prin10"]
[{"$nulls":9},"4,0,3,2,-10,0,0,0,###Prin6 Prin7 Prin8 Prin9 Prin10"]
[{"$nulls":9},"4,0,3,2,10,0,0,0,###Prin1 Prin2"]
[{"$nulls":9},"4,0,3,2,10,0,0,0,###Prin1 Prin2"]
[{"$nulls":9},"4,0,1,1#0#0#0#0#00,0,0,###time1 time2 time3 time4"]
[{"$nulls":9},"4,0,3,2,-300,0,0,0,###ATbase ATbats"]
[{"$nulls":9},"4,0,3,2,-300,0,0,0,###ATbase ATbats"]
[]
[]
[]
[{"$nulls":9},"4,0,5,1,0,0,0,###Mean"]
{"$rows_empty":10}
[{"$nulls":9},"4,0,5,1,0,0,0,###y"]
{"$rows_empty":7}
[{"$nulls":9},"4,0,2,0#0#1#0#0#1#0,0,0,0,###v2_1"]
[{"$nulls":9},"4,0,2,0#0#1#0#0#1#0,0,0,0,###v1_1 v2_1"]
[{"$nulls":9},"4,0,2,0#0#1#0#1#0#0,0,0,0,###v1_1 v2_1"]
[{"$nulls":9},"4,0,2,0#0#1#0#1#0#0,0,0,0,###v1_1 v2_1"]
[{"$nulls":9},"4,0,2,0#0#1#0#0#1#0,0,0,0,###sat talk"]
[{"$nulls":9},"4,0,2,0#0#1#0#0#1#0,0,0,0,###sat talk"]
[{"$nulls":9},"4,0,0,0,0,###sat"]
[{"$nulls":9},"4,0,0,0,0,###sat"]
[{"$nulls":9},"4,0,0,0,0,###sat"]
[{"$nulls":9},"4,0,0,0,0,###sat"]
[{"$nulls":9},"4,0,0,0,0,###sat"]
[{"$nulls":9},"4,0,0,0,0,###sat"]
[{"$nulls":9},"4,0,0,0,0,###sat"]
[{"$nulls":9},"4,0,0,0,0,###sat"]
[{"$nulls":9},"4,0,0,0,0,###sat"]
[{"$nulls":9},"4,0,0,0,0,###sat"]
[]
[{"$nulls":9},"4,0,3,2,-1,0,0,0,###league"]
[]
[{"$nulls":9},"4,0,5,1,0,0,0,###HIT"]
[]
[]
[{"$nulls":9},"4,0,4,min～100# →  #0#,100～max# →  #1#,0,0,0,###salary"]
[]
[]
[{"$nulls":9},"4,0,0,0,0,###position hand"]
[{"$nulls":9},"4,0,0,0,0,###position hand salary_t"]
[{"$nulls":9},"4,0,0,0,0,###position hand"]
[]
[]
[{"$nulls":9},"4,0,0,0,0,###年齢 時間"]
[{"$nulls":9},"4,0,0,0,0,###年齢 時間"]
[{"$nulls":9},"4,0,0,0,0,###年齢 時間"]
[{"$nulls":9},"4,0,0,0,0,###年齢 時間"]
[{"$nulls":9},"4,0,0,0,0,###年齢 時間"]
[{"$nulls":9},"4,0,0,0,0,###年齢 時間"]
[]
[{"$nulls":9},"4,0,3,5,0,0,0,###度数"]
[]
[]
[]
[{"$nulls":9},"4,0,2,0#0#1#1#0#0#0,0,0,0,###HR"]
{"$rows_empty":8}
[{"$nulls":9},"4,0,0,0,0,###position hand salary_t"]
[{"$nulls":9},"4,0,0,0,0,###position hand salary_t"]
{"$rows_empty":18}
[{"$nulls":9},"4,0,1,0#1#0#0#0#00,0,0,###V54 V39 V49 V50 V40 V7 V35 V36 V46 V51 V14 V58"]
{"$rows_empty":81}
[{"$nulls":9},"4,0,5,0,0,0,###league"]
[{"$nulls":9},"4,0,2,1#0#1#0#0#0#0,0,0,0,###Rank AVR HR RBI Steal Walk K"]
{"$rows_empty":18}
[{"$nulls":9},"4,0,3,1,6,0,0,0,###se3 se5 se9 se10"]
[{"$nulls":9},"4,0,3,1,6,0,0,0,###se3 se5 se9 se10"]
[{"$nulls":9},"4,0,3,1,6,0,0,0,###se3 se5 se9 se10"]
[{"$nulls":9},"4,0,3,1,6,0,0,0,###se3 se5 se9 se10"]
{"$rows_empty":21}
[{"$nulls":9},"4,0,1,1#0#0#0#0#00,0,0,###V1 V2 V3 V4 V5 V6 V7 V8 V9 V10 V11 V12 V13 V14 V15 V16 V17 V18 V19 V20 V21 V22 V23 V24 V25 V26 V27 V28 V29 V30 V31 V32 V33 V34 V35 V36 V37 V38 V39 V40 V41 V42 V43 V44 V45 V46 V47 V48 V49 V50 V51 V52 V53 V54 V55 V56 V57 V58 V59 V60"]
[]
[]
[]
[]
[]
[{"$nulls":9},"3,1,1#False,5,1,1#0,25#0.001#True,True#False#False#False#,'###,##,BF2 BF7 BF12 BF17 "]
{"$rows_empty":28}
[{"$nulls":9},"4,0,2,1#0#1#0#0#0#0,0,0,0,###EAP"]
[]
[]
[{"$nulls":9},"4,0,2,1#0#1#0#0#0#0,0,0,0,###theta_eap"]
{"$rows_empty":44}
[{"$nulls":9},"4,0,2,1#0#1#0#0#0#0,0,0,0,###Rank AVR HR RBI Steal Walk K"]
[{"$nulls":9},"4,0,2,1#0#1#0#0#0#0,0,0,0,###Rank AVR HR RBI Steal Walk K"]
[{"$nulls":9},"4,0,2,1#0#1#0#0#0#0,0,0,0,###Rank AVR HR RBI Steal Walk K"]
[{"$nulls":9},"4,0,2,1#0#1#0#0#0#0,0,0,0,###Rank AVR HR RBI Steal Walk K"]
[{"$nulls":9},"4,0,2,1#0#1#0#0#0#0,0,0,0,###Rank AVR HR RBI Steal Walk K"]
[{"$nulls":9},"3,2,4#False,5,1,7#False,1#20,True#False#True#True#,'###,##,income_fa "]
[{"$nulls":9},"3,2,3#False,5,1,7#False,1#20,True#False#True#True#,'###,##,family_income "]
[]
[]
[]
[]
[{"$nulls":9},"4,0,4,1# →  #1#,2～5# →  #2#,6～8# →  #3#,9～max# →  #4#,0,0,0,###income_fa"]
[]
[]
[]
[]
[]
[{"$nulls":9},"4,0,4,1# →  #9#,2# →  #12#,3# →  #14#,4# →  #14#,5# →  #16#,6# →  #18#,0,0,0,###gakureki"]
[{"$nulls":9},"4,0,4,1～3# →  #1#,4～7# →  #2#,8～max# →  #3#,0,0,0,###family_income"]

{"sheet":"$data_cov$","index":3,"n_rows":0,"n_cols":0,"rows_kept":0,"hidden":true}

{"sheet":"History","index":4,"n_rows":5,"n_cols":4,"rows_kept":5,"hidden":true}
[]
["分析履歴"]
[]
["番号","日付","コード","要約"]
[1,"2021-07-17T15:12:04","1,0,3,1,0,0,0,###質問ａ 質問ｂ","相関分析 使用変数：質問ａ 質問ｂ"]

{"sheet":"$Calculation$","index":5,"n_rows":200,"n_cols":20,"rows_kept":200,"hidden":true}
["goupID","dep","offset","eta",null,null,"fix1","fix2",null,"random1","random2",{"$nulls":3},1.5975209241095463]
[1,16,0,{"$f":"MMULT($G$2:$H$2,beta)","v":1.5190316341948626},null,null,1,-1.17647058823529,null,1,-1.17647058823529,{"$nulls":3},0.06671589642748131,null,null,{"$f":"glmm_ll2($B$2:$D$18,$J$2:$K$18,sigma,invcovm)","v":-472.72371769811207},null,{"$f":"(SUM($R$2:$R$13)-12/2*LN(MDETERM(covm)))*-1","v":6165.838616994937}]
[1,7,0,{"$f":"MMULT($G$3:$H$3,beta)","v":1.1854521520574561},null,null,1,-6.17647058823529,null,1,-6.17647058823529,{"$nulls":3},0.25513378637335715,null,null,{"$f":"glmm_ll2($B$19:$D$34,$J$19:$K$34,sigma,invcovm)","v":-1018.3458725388102}]
[1,17,0,{"$f":"MMULT($G$4:$H$4,beta)","v":1.9860429091872318},null,null,1,5.82352941176471,null,1,5.82352941176471,{"$nulls":3},0.022535219069789784,null,null,{"$f":"glmm_ll2($B$35:$D$51,$J$35:$K$51,sigma,invcovm)","v":-638.7336035896149}]
[1,22,0,{"$f":"MMULT($G$5:$H$5,beta)","v":2.453054184179601},null,null,1,12.82352941176471,null,1,12.82352941176471,{"$nulls":3},-0.4636860118424736,null,null,{"$f":"glmm_ll2($B$52:$D$70,$J$52:$K$70,sigma,invcovm)","v":-761.0208673080808}]
[1,2,0,{"$f":"MMULT($G$6:$H$6,beta)","v":1.2521680484849373},null,null,1,-5.17647058823529,null,1,-5.17647058823529,{"$nulls":3},1,null,null,{"$f":"glmm_ll2($B$71:$D$87,$J$71:$K$87,sigma,invcovm)","v":-383.79133818278245}]
[1,2,0,{"$f":"MMULT($G$7:$H$7,beta)","v":1.7191793234773065},null,null,1,1.82352941176471,null,1,1.82352941176471,{"$nulls":6},{"$f":"glmm_ll2($B$88:$D$104,$J$88:$K$104,sigma,invcovm)","v":-300.14788132378976}]
[1,17,0,{"$f":"MMULT($G$8:$H$8,beta)","v":2.7866336663170075},null,null,1,17.82352941176471,null,1,17.82352941176471,{"$nulls":3},"unit matrix",null,null,{"$f":"glmm_ll2($B$105:$D$118,$J$105:$K$118,sigma,invcovm)","v":-628.4481216543988}]
[1,1,0,{"$f":"MMULT($G$9:$H$9,beta)","v":1.7191793234773065},null,null,1,1.82352941176471,null,1,1.82352941176471,{"$nulls":3},1,0,null,{"$f":"glmm_ll2($B$119:$D$131,$J$119:$K$131,sigma,invcovm)","v":-384.03606331256776}]
[1,3,0,{"$f":"MMULT($G$10:$H$10,beta)","v":1.1854521520574561},null,null,1,-6.17647058823529,null,1,-6.17647058823529,{"$nulls":3},0,1,null,{"$f":"glmm_ll2($B$132:$D$153,$J$132:$K$153,sigma,invcovm)","v":-244.5865398214217}]
[1,0,0,{"$f":"MMULT($G$11:$H$11,beta)","v":1.4523157377673814},null,null,1,-2.17647058823529,null,1,-2.17647058823529,{"$nulls":6},{"$f":"glmm_ll2($B$154:$D$167,$J$154:$K$167,sigma,invcovm)","v":-71.4819080043545}]
[1,1,0,{"$f":"MMULT($G$12:$H$12,beta)","v":1.0520203592024935},null,null,1,-8.17647058823529,null,1,-8.17647058823529,{"$nulls":3},"corr matrix",null,null,{"$f":"glmm_ll2($B$168:$D$184,$J$168:$K$184,sigma,invcovm)","v":-749.2701191002325}]
[1,4,0,{"$f":"MMULT($G$13:$H$13,beta)","v":1.3188839449124188},null,null,1,-4.17647058823529,null,1,-4.17647058823529,{"$nulls":3},1,{"$f":"$O$5","v":-0.4636860118424736},null,{"$f":"glmm_ll2($B$185:$D$200,$J$185:$K$200,sigma,invcovm)","v":-576.6087673324208}]
[1,1,0,{"$f":"MMULT($G$14:$H$14,beta)","v":1.3855998413399},null,null,1,-3.17647058823529,null,1,-3.17647058823529,{"$nulls":3},{"$f":"$O$5","v":-0.4636860118424736},1]
[1,4,0,{"$f":"MMULT($G$15:$H$15,beta)","v":1.4523157377673814},null,null,1,-2.17647058823529,null,1,-2.17647058823529]
[1,3,0,{"$f":"MMULT($G$16:$H$16,beta)","v":1.6524634270498253},null,null,1,0.8235294117647101,null,1,0.8235294117647101,{"$nulls":3},"tau matrix"]
[1,0,0,{"$f":"MMULT($G$17:$H$17,beta)","v":1.7191793234773065},null,null,1,1.82352941176471,null,1,1.82352941176471,{"$nulls":3},{"$f":"MMULT(MMULT(tau*unit,corrm),(tau*unit))","v":0.06509324894920585},-2.6659607627823384E-3]
[1,0,0,{"$f":"MMULT($G$18:$H$18,beta)","v":1.3188839449124188},null,null,1,-4.17647058823529,null,1,-4.17647058823529,{"$nulls":3},-2.6659607627823384E-3,5.0783609852341708E-4]
[2,29,0,{"$f":"MMULT($G$19:$H$19,beta)","v":1.130509649117177},null,null,1,-7,null,1,-7]
[2,10,0,{"$f":"MMULT($G$20:$H$20,beta)","v":1.7976686133919901},null,null,1,2.9999999999999996,null,1,3,{"$nulls":3},"invcovm"]
[2,23,0,{"$f":"MMULT($G$21:$H$21,beta)","v":1.5975209241095463},null,null,1,2.6481536735324493E-33,null,1,0,{"$nulls":3},{"$f":"MINVERSE(covm)","v":19.570278431926287},102.73707317762711]
[2,17,0,{"$f":"MMULT($G$22:$H$22,beta)","v":2.4648275776668034},null,null,1,13,null,1,13,{"$nulls":3},102.73707317762711,2508.472732991254]
[2,31,0,{"$f":"MMULT($G$23:$H$23,beta)","v":2.7316911633767287},null,null,1,17,null,1,17]
[2,5,0,{"$f":"MMULT($G$24:$H$24,beta)","v":1.5975209241095463},null,null,1,2.6481536735324493E-33,null,1,0]
[2,2,0,{"$f":"MMULT($G$25:$H$25,beta)","v":0.7969301669797706},null,null,1,-12,null,1,-12]
[2,2,0,{"$f":"MMULT($G$26:$H$26,beta)","v":0.9303619598347332},null,null,1,-9.999999999999998,null,1,-10]
[2,4,0,{"$f":"MMULT($G$27:$H$27,beta)","v":1.9311004062469528},null,null,1,4.999999999999999,null,1,5]
[2,2,0,{"$f":"MMULT($G$28:$H$28,beta)","v":1.7976686133919901},null,null,1,2.9999999999999996,null,1,3]
[2,2,0,{"$f":"MMULT($G$29:$H$29,beta)","v":1.6642368205370275},null,null,1,1,null,1,1]
[2,0,0,{"$f":"MMULT($G$30:$H$30,beta)","v":0.7302142705522894},null,null,1,-12.999999999999998,null,1,-13]
[2,4,0,{"$f":"MMULT($G$31:$H$31,beta)","v":2.064532199101915},null,null,1,7,null,1,7]
[2,3,0,{"$f":"MMULT($G$32:$H$32,beta)","v":1.1972255455446585},null,null,1,-5.999999999999999,null,1,-6]
[2,1,0,{"$f":"MMULT($G$33:$H$33,beta)","v":1.330657338399621},null,null,1,-4,null,1,-4]
[2,0,0,{"$f":"MMULT($G$34:$H$34,beta)","v":1.7976686133919901},null,null,1,2.9999999999999996,null,1,3]
[3,16,0,{"$f":"MMULT($G$35:$H$35,beta)","v":1.4405423442801781},null,null,1,-2.352941176470594,null,1,-2.352941176470594]
[3,21,0,{"$f":"MMULT($G$36:$H$36,beta)","v":2.04098541212751},null,null,1,6.647058823529406,null,1,6.647058823529406]
[3,19,0,{"$f":"MMULT($G$37:$H$37,beta)","v":2.3745648942649162},null,null,1,11.647058823529404,null,1,11.647058823529406]
[3,13,0,{"$f":"MMULT($G$38:$H$38,beta)","v":1.5739741371351408},null,null,1,-0.3529411764705941,null,1,-0.3529411764705941]
[3,6,0,{"$f":"MMULT($G$39:$H$39,beta)","v":1.240394654997734},null,null,1,-5.352941176470594,null,1,-5.352941176470594]
[3,22,0,{"$f":"MMULT($G$40:$H$40,beta)","v":2.7748602728298044},null,null,1,17.647058823529406,null,1,17.647058823529406]
[3,4,0,{"$f":"MMULT($G$41:$H$41,beta)","v":1.1069628621427716},null,null,1,-7.352941176470594,null,1,-7.352941176470594]
[3,15,0,{"$f":"MMULT($G$42:$H$42,beta)","v":2.107701308554991},null,null,1,7.647058823529405,null,1,7.647058823529406]
[3,8,0,{"$f":"MMULT($G$43:$H$43,beta)","v":1.3738264478526967},null,null,1,-3.352941176470594,null,1,-3.352941176470594]
[3,3,0,{"$f":"MMULT($G$44:$H$44,beta)","v":0.773383380005365},null,null,1,-12.352941176470594,null,1,-12.352941176470594]
[3,6,0,{"$f":"MMULT($G$45:$H$45,beta)","v":2.107701308554991},null,null,1,7.647058823529405,null,1,7.647058823529406]
[3,6,0,{"$f":"MMULT($G$46:$H$46,beta)","v":1.7074059299901034},null,null,1,1.647058823529406,null,1,1.647058823529406]
[3,2,0,{"$f":"MMULT($G$47:$H$47,beta)","v":1.1069628621427716},null,null,1,-7.352941176470594,null,1,-7.352941176470594]
[3,0,0,{"$f":"MMULT($G$48:$H$48,beta)","v":0.3063721050129957},null,null,1,-19.352941176470594,null,1,-19.352941176470594]
[3,0,0,{"$f":"MMULT($G$49:$H$49,beta)","v":1.3071105514252155},null,null,1,-4.352941176470594,null,1,-4.352941176470594]
[3,2,0,{"$f":"MMULT($G$50:$H$50,beta)","v":2.241133101409954},null,null,1,9.647058823529406,null,1,9.647058823529406]
[3,0,0,{"$f":"MMULT($G$51:$H$51,beta)","v":1.5739741371351408},null,null,1,-0.3529411764705941,null,1,-0.3529411764705941]
[4,11,0,{"$f":"MMULT($G$52:$H$52,beta)","v":0.3544984327764731},null,null,1,-18.631578947368425,null,1,-18.631578947368425]
[4,19,0,{"$f":"MMULT($G$53:$H$53,beta)","v":1.7555322577535808},null,null,1,2.368421052631575,null,1,2.368421052631575]
[4,37,0,{"$f":"MMULT($G$54:$H$54,beta)","v":3.8904409434329823},null,null,1,34.368421052631575,null,1,34.368421052631575]
[4,8,0,{"$f":"MMULT($G$55:$H$55,beta)","v":0.8215097077688424},null,null,1,-11.631578947368425,null,1,-11.631578947368425]
[4,9,0,{"$f":"MMULT($G$56:$H$56,beta)","v":1.155089189906249},null,null,1,-6.631578947368425,null,1,-6.631578947368425]
[4,8,0,{"$f":"MMULT($G$57:$H$57,beta)","v":1.2885209827612116},null,null,1,-4.631578947368425,null,1,-4.631578947368425]
[4,14,0,{"$f":"MMULT($G$58:$H$58,beta)","v":2.422691222028394},null,null,1,12.368421052631577,null,1,12.368421052631575]
[4,1,0,{"$f":"MMULT($G$59:$H$59,beta)","v":0.954941500623805},null,null,1,-9.631578947368425,null,1,-9.631578947368425]
[4,7,0,{"$f":"MMULT($G$60:$H$60,beta)","v":2.089111739890987},null,null,1,7.368421052631575,null,1,7.368421052631575]
[4,4,0,{"$f":"MMULT($G$61:$H$61,beta)","v":1.7555322577535808},null,null,1,2.368421052631575,null,1,2.368421052631575]
[4,10,0,{"$f":"MMULT($G$62:$H$62,beta)","v":1.822248154181062},null,null,1,3.368421052631575,null,1,3.368421052631575]
[4,3,0,{"$f":"MMULT($G$63:$H$63,beta)","v":1.0883732934787678},null,null,1,-7.631578947368424,null,1,-7.631578947368425]
[4,2,0,{"$f":"MMULT($G$64:$H$64,beta)","v":1.421952775616174},null,null,1,-2.6315789473684252,null,1,-2.631578947368425]
[4,3,0,{"$f":"MMULT($G$65:$H$65,beta)","v":1.5553845684711367},null,null,1,-0.6315789473684248,null,1,-0.6315789473684248]
[4,1,0,{"$f":"MMULT($G$66:$H$66,beta)","v":0.6213620184863984},null,null,1,-14.631578947368425,null,1,-14.631578947368425]
[4,1,0,{"$f":"MMULT($G$67:$H$67,beta)","v":1.8889640506085432},null,null,1,4.368421052631575,null,1,4.368421052631575]
[4,1,0,{"$f":"MMULT($G$68:$H$68,beta)","v":1.5553845684711367},null,null,1,-0.6315789473684248,null,1,-0.6315789473684248]
[4,2,0,{"$f":"MMULT($G$69:$H$69,beta)","v":2.1558276363184685},null,null,1,8.368421052631575,null,1,8.368421052631575]
[4,1,0,{"$f":"MMULT($G$70:$H$70,beta)","v":1.7555322577535808},null,null,1,2.368421052631575,null,1,2.368421052631575]
[5,8,0,{"$f":"MMULT($G$71:$H$71,beta)","v":1.193301081048924},null,null,1,-6.058823529411768,null,1,-6.058823529411768]
[5,26,0,{"$f":"MMULT($G$72:$H$72,beta)","v":2.9946302845909196},null,null,1,20.941176470588232,null,1,20.941176470588232]
[5,7,0,{"$f":"MMULT($G$73:$H$73,beta)","v":0.32599442749166685},null,null,1,-19.058823529411768,null,1,-19.058823529411768]
[5,14,0,{"$f":"MMULT($G$74:$H$74,beta)","v":2.661050802453513},null,null,1,15.941176470588232,null,1,15.941176470588232]
[5,1,0,{"$f":"MMULT($G$75:$H$75,beta)","v":0.5928580132015921},null,null,1,-15.058823529411768,null,1,-15.058823529411768]
[5,9,0,{"$f":"MMULT($G$76:$H$76,beta)","v":2.327471320316106},null,null,1,10.941176470588232,null,1,10.941176470588232]
[5,4,0,{"$f":"MMULT($G$77:$H$77,beta)","v":1.2600169774764054},null,null,1,-5.058823529411768,null,1,-5.058823529411768]
[5,7,0,{"$f":"MMULT($G$78:$H$78,beta)","v":1.193301081048924},null,null,1,-6.058823529411768,null,1,-6.058823529411768]
[5,7,0,{"$f":"MMULT($G$79:$H$79,beta)","v":2.52761900959855},null,null,1,13.941176470588232,null,1,13.941176470588232]
[5,3,0,{"$f":"MMULT($G$80:$H$80,beta)","v":2.460903113171069},null,null,1,12.941176470588232,null,1,12.941176470588232]
[5,0,0,{"$f":"MMULT($G$81:$H$81,beta)","v":1.4601646667588493},null,null,1,-2.058823529411768,null,1,-2.058823529411768]
[5,2,0,{"$f":"MMULT($G$82:$H$82,beta)","v":1.593596459613812},null,null,1,-0.05882352941176805,null,1,-0.05882352941176805]
[5,1,0,{"$f":"MMULT($G$83:$H$83,beta)","v":0.7930057024840361},null,null,1,-12.058823529411768,null,1,-12.058823529411768]
[5,0,0,{"$f":"MMULT($G$84:$H$84,beta)","v":1.5268805631863305},null,null,1,-1.058823529411768,null,1,-1.058823529411768]
[5,0,0,{"$f":"MMULT($G$85:$H$85,beta)","v":1.3934487703313678},null,null,1,-3.0588235294117676,null,1,-3.058823529411768]
[5,2,0,{"$f":"MMULT($G$86:$H$86,beta)","v":0.3927103239191483},null,null,1,-18.058823529411768,null,1,-18.058823529411768]
[5,1,0,{"$f":"MMULT($G$87:$H$87,beta)","v":2.460903113171069},null,null,1,12.941176470588232,null,1,12.941176470588232]
[6,2,0,{"$f":"MMULT($G$88:$H$88,beta)","v":0.9696066047920754},null,null,1,-9.411764705882348,null,1,-9.411764705882348]
[6,13,0,{"$f":"MMULT($G$89:$H$89,beta)","v":1.70348146549437},null,null,1,1.588235294117652,null,1,1.588235294117652]
[6,17,0,{"$f":"MMULT($G$90:$H$90,beta)","v":2.6375040154791085},null,null,1,15.588235294117652,null,1,15.588235294117652]
[6,11,0,{"$f":"MMULT($G$91:$H$91,beta)","v":1.9036291547768138},null,null,1,4.588235294117652,null,1,4.588235294117652]
[6,1,0,{"$f":"MMULT($G$92:$H$92,beta)","v":0.9696066047920754},null,null,1,-9.411764705882348,null,1,-9.411764705882348]
[6,16,0,{"$f":"MMULT($G$93:$H$93,beta)","v":2.0370609476317765},null,null,1,6.588235294117652,null,1,6.588235294117652]
[6,5,0,{"$f":"MMULT($G$94:$H$94,beta)","v":1.8369132583493326},null,null,1,3.5882352941176525,null,1,3.588235294117652]
[6,6,0,{"$f":"MMULT($G$95:$H$95,beta)","v":1.4366178797844447},null,null,1,-2.411764705882348,null,1,-2.411764705882348]
[6,1,0,{"$f":"MMULT($G$96:$H$96,beta)","v":1.4366178797844447},null,null,1,-2.411764705882348,null,1,-2.411764705882348]
[6,1,0,{"$f":"MMULT($G$97:$H$97,beta)","v":1.5033337762119259},null,null,1,-1.4117647058823477,null,1,-1.411764705882348]
[6,1,0,{"$f":"MMULT($G$98:$H$98,beta)","v":1.2364701905020006},null,null,1,-5.411764705882348,null,1,-5.411764705882348]
[6,6,0,{"$f":"MMULT($G$99:$H$99,beta)","v":1.70348146549437},null,null,1,1.588235294117652,null,1,1.588235294117652]
[6,0,0,{"$f":"MMULT($G$100:$H$100,beta)","v":1.2364701905020006},null,null,1,-5.411764705882348,null,1,-5.411764705882348]
[6,2,0,{"$f":"MMULT($G$101:$H$101,beta)","v":1.5700496726394073},null,null,1,-0.411764705882348,null,1,-0.4117647058823479]
[6,1,0,{"$f":"MMULT($G$102:$H$102,beta)","v":1.6367655690668885},null,null,1,0.5882352941176521,null,1,0.5882352941176521]
[6,1,0,{"$f":"MMULT($G$103:$H$103,beta)","v":1.4366178797844447},null,null,1,-2.411764705882348,null,1,-2.411764705882348]
[6,1,0,{"$f":"MMULT($G$104:$H$104,beta)","v":1.9036291547768138},null,null,1,4.588235294117652,null,1,4.588235294117652]
[7,8,0,{"$f":"MMULT($G$105:$H$105,beta)","v":1.116213385597003},null,null,1,-7.214285714285707,null,1,-7.214285714285708]
[7,7,0,{"$f":"MMULT($G$106:$H$106,beta)","v":1.8500882462992974},null,null,1,3.785714285714292,null,1,3.785714285714292]
[7,19,0,{"$f":"MMULT($G$107:$H$107,beta)","v":1.8500882462992974},null,null,1,3.785714285714292,null,1,3.785714285714292]
[7,32,0,{"$f":"MMULT($G$108:$H$108,beta)","v":3.8515651391237364},null,null,1,33.78571428571429,null,1,33.78571428571429]
[7,24,0,{"$f":"MMULT($G$109:$H$109,beta)","v":2.383815417719148},null,null,1,11.785714285714292,null,1,11.785714285714292]
[7,1,0,{"$f":"MMULT($G$110:$H$110,beta)","v":0.44905442132218987},null,null,1,-17.214285714285708,null,1,-17.214285714285708]
[7,3,0,{"$f":"MMULT($G$111:$H$111,beta)","v":1.5165087641618908},null,null,1,-1.2142857142857082,null,1,-1.2142857142857082]
[7,2,0,{"$f":"MMULT($G$112:$H$112,beta)","v":1.0494974891695215},null,null,1,-8.214285714285708,null,1,-8.214285714285708]
[7,5,0,{"$f":"MMULT($G$113:$H$113,beta)","v":1.3163610748794468},null,null,1,-4.214285714285708,null,1,-4.214285714285708]
[7,2,0,{"$f":"MMULT($G$114:$H$114,beta)","v":1.3163610748794468},null,null,1,-4.214285714285708,null,1,-4.214285714285708]
[7,2,0,{"$f":"MMULT($G$115:$H$115,beta)","v":1.3163610748794468},null,null,1,-4.214285714285708,null,1,-4.214285714285708]
[7,1,0,{"$f":"MMULT($G$116:$H$116,beta)","v":1.1829292820244843},null,null,1,-6.214285714285708,null,1,-6.214285714285708]
[7,0,0,{"$f":"MMULT($G$117:$H$117,beta)","v":1.5165087641618908},null,null,1,-1.2142857142857082,null,1,-1.2142857142857082]
[7,0,0,{"$f":"MMULT($G$118:$H$118,beta)","v":1.6499405570168535},null,null,1,0.7857142857142919,null,1,0.7857142857142918]
[8,3,0,{"$f":"MMULT($G$119:$H$119,beta)","v":0.6173104458288592},null,null,1,-14.692307692307693,null,1,-14.692307692307693]
[8,4,0,{"$f":"MMULT($G$120:$H$120,beta)","v":1.3511853065311537},null,null,1,-3.6923076923076934,null,1,-3.6923076923076934]
[8,19,0,{"$f":"MMULT($G$121:$H$121,beta)","v":4.420116542195294},null,null,1,42.30769230769231,null,1,42.30769230769231]
[8,15,0,{"$f":"MMULT($G$122:$H$122,beta)","v":1.884912477951004},null,null,1,4.307692307692307,null,1,4.307692307692307]
[8,6,0,{"$f":"MMULT($G$123:$H$123,beta)","v":1.618048892241079},null,null,1,0.3076923076923066,null,1,0.3076923076923066]
[8,18,0,{"$f":"MMULT($G$124:$H$124,beta)","v":1.9516283743784855},null,null,1,5.307692307692307,null,1,5.307692307692307]
[8,18,0,{"$f":"MMULT($G$125:$H$125,beta)","v":1.6847647886685602},null,null,1,1.3076923076923066,null,1,1.3076923076923066]
[8,0,0,{"$f":"MMULT($G$126:$H$126,beta)","v":0.550594549401378},null,null,1,-15.692307692307693,null,1,-15.692307692307693]
[8,5,0,{"$f":"MMULT($G$127:$H$127,beta)","v":2.6187873386532985},null,null,1,15.307692307692307,null,1,15.307692307692307]
[8,1,0,{"$f":"MMULT($G$128:$H$128,beta)","v":0.2837309636914527},null,null,1,-19.692307692307693,null,1,-19.692307692307693]
[8,5,0,{"$f":"MMULT($G$129:$H$129,beta)","v":2.2184919600884108},null,null,1,9.307692307692307,null,1,9.307692307692307]
[8,0,0,{"$f":"MMULT($G$130:$H$130,beta)","v":1.217753513676191},null,null,1,-5.692307692307693,null,1,-5.692307692307693]
[8,0,0,{"$f":"MMULT($G$131:$H$131,beta)","v":0.3504468601189339},null,null,1,-18.692307692307693,null,1,-18.692307692307693]
[9,3,0,{"$f":"MMULT($G$132:$H$132,beta)","v":1.075923915676511},null,null,1,-7.818181818181813,null,1,-7.818181818181813]
[9,8,0,{"$f":"MMULT($G$133:$H$133,beta)","v":1.4762192942413987},null,null,1,-1.8181818181818128,null,1,-1.818181818181813]
[9,16,0,{"$f":"MMULT($G$134:$H$134,beta)","v":2.1433782585162118},null,null,1,8.181818181818187,null,1,8.181818181818187]
[9,10,0,{"$f":"MMULT($G$135:$H$135,beta)","v":1.743082879951324},null,null,1,2.181818181818187,null,1,2.181818181818187]
[9,10,0,{"$f":"MMULT($G$136:$H$136,beta)","v":1.8765146728062867},null,null,1,4.181818181818187,null,1,4.181818181818187]
[9,3,0,{"$f":"MMULT($G$137:$H$137,beta)","v":1.4095033978139175},null,null,1,-2.8181818181818126,null,1,-2.818181818181813]
[9,0,0,{"$f":"MMULT($G$138:$H$138,beta)","v":0.4754808478291792},null,null,1,-16.818181818181813,null,1,-16.818181818181813]
[9,4,0,{"$f":"MMULT($G$139:$H$139,beta)","v":1.8097987763788053},null,null,1,3.181818181818187,null,1,3.181818181818187]
[9,2,0,{"$f":"MMULT($G$140:$H$140,beta)","v":0.9424921228215483},null,null,1,-9.818181818181813,null,1,-9.818181818181813]
[9,4,0,{"$f":"MMULT($G$141:$H$141,beta)","v":2.343525947798656},null,null,1,11.181818181818187,null,1,11.181818181818187]
[9,12,0,{"$f":"MMULT($G$142:$H$142,beta)","v":2.1433782585162118},null,null,1,8.181818181818187,null,1,8.181818181818187]
[9,3,0,{"$f":"MMULT($G$143:$H$143,beta)","v":0.8090603299665856},null,null,1,-11.818181818181813,null,1,-11.818181818181813]
[9,0,0,{"$f":"MMULT($G$144:$H$144,beta)","v":1.1426398121039922},null,null,1,-6.818181818181813,null,1,-6.818181818181813]
[9,1,0,{"$f":"MMULT($G$145:$H$145,beta)","v":1.075923915676511},null,null,1,-7.818181818181813,null,1,-7.818181818181813]
[9,2,0,{"$f":"MMULT($G$146:$H$146,beta)","v":2.0766623620887303},null,null,1,7.181818181818187,null,1,7.181818181818187]
[9,0,0,{"$f":"MMULT($G$147:$H$147,beta)","v":1.6763669835238426},null,null,1,1.181818181818187,null,1,1.181818181818187]
[9,2,0,{"$f":"MMULT($G$148:$H$148,beta)","v":3.410980290638357},null,null,1,27.181818181818187,null,1,27.181818181818187]
[9,1,0,{"$f":"MMULT($G$149:$H$149,beta)","v":1.2760716049589549},null,null,1,-4.818181818181813,null,1,-4.818181818181813]
[9,2,0,{"$f":"MMULT($G$150:$H$150,beta)","v":2.0099464656612493},null,null,1,6.181818181818186,null,1,6.181818181818187]
[9,0,0,{"$f":"MMULT($G$151:$H$151,beta)","v":1.4095033978139175},null,null,1,-2.8181818181818126,null,1,-2.818181818181813]
[9,0,0,{"$f":"MMULT($G$152:$H$152,beta)","v":1.342787501386436},null,null,1,-3.818181818181813,null,1,-3.818181818181813]
[9,4,0,{"$f":"MMULT($G$153:$H$153,beta)","v":1.4762192942413987},null,null,1,-1.8181818181818128,null,1,-1.818181818181813]
[10,7,0,{"$f":"MMULT($G$154:$H$154,beta)","v":1.8786807733396458},null,null,1,4.214285714285708,null,1,4.214285714285708]
[10,2,0,{"$f":"MMULT($G$155:$H$155,beta)","v":1.4116694983472766},null,null,1,-2.785714285714292,null,1,-2.785714285714292]
[10,4,0,{"$f":"MMULT($G$156:$H$156,beta)","v":1.6118171876297205},null,null,1,0.2142857142857082,null,1,0.2142857142857082]
[10,8,0,{"$f":"MMULT($G$157:$H$157,beta)","v":2.0788284626220896},null,null,1,7.214285714285708,null,1,7.214285714285708]
[10,1,0,{"$f":"MMULT($G$158:$H$158,beta)","v":1.8786807733396458},null,null,1,4.214285714285708,null,1,4.214285714285708]
[10,7,0,{"$f":"MMULT($G$159:$H$159,beta)","v":1.6118171876297205},null,null,1,0.2142857142857082,null,1,0.2142857142857082]
[10,5,0,{"$f":"MMULT($G$160:$H$160,beta)","v":1.7452489804846831},null,null,1,2.214285714285708,null,1,2.214285714285708]
[10,2,0,{"$f":"MMULT($G$161:$H$161,beta)","v":1.4116694983472766},null,null,1,-2.785714285714292,null,1,-2.785714285714292]
[10,1,0,{"$f":"MMULT($G$162:$H$162,beta)","v":1.2115218090648325},null,null,1,-5.785714285714292,null,1,-5.785714285714292]
[10,2,0,{"$f":"MMULT($G$163:$H$163,beta)","v":1.6118171876297205},null,null,1,0.2142857142857082,null,1,0.2142857142857082]
[10,1,0,{"$f":"MMULT($G$164:$H$164,beta)","v":1.4116694983472766},null,null,1,-2.785714285714292,null,1,-2.785714285714292]
[10,0,0,{"$f":"MMULT($G$165:$H$165,beta)","v":1.8119648769121643},null,null,1,3.214285714285708,null,1,3.214285714285708]
[10,0,0,{"$f":"MMULT($G$166:$H$166,beta)","v":1.4116694983472766},null,null,1,-2.785714285714292,null,1,-2.785714285714292]
[10,0,0,{"$f":"MMULT($G$167:$H$167,beta)","v":1.2782377054923137},null,null,1,-4.785714285714292,null,1,-4.785714285714292]
[11,3,0,{"$f":"MMULT($G$168:$H$168,beta)","v":1.6720857495284964},null,null,1,1.117647058823536,null,1,1.117647058823536]
[11,4,0,{"$f":"MMULT($G$169:$H$169,beta)","v":1.6720857495284964},null,null,1,1.117647058823536,null,1,1.117647058823536]
[11,14,0,{"$f":"MMULT($G$170:$H$170,beta)","v":2.005665231665903},null,null,1,6.117647058823535,null,1,6.117647058823536]
[11,34,0,{"$f":"MMULT($G$171:$H$171,beta)","v":2.8062559887956784},null,null,1,18.117647058823536,null,1,18.117647058823536]
[11,34,0,{"$f":"MMULT($G$172:$H$172,beta)","v":3.8737103316353796},null,null,1,34.117647058823536,null,1,34.117647058823536]
[11,0,0,{"$f":"MMULT($G$173:$H$173,beta)","v":0.8714949923987206},null,null,1,-10.882352941176464,null,1,-10.882352941176464]
[11,7,0,{"$f":"MMULT($G$174:$H$174,beta)","v":2.205812920948347},null,null,1,9.117647058823536,null,1,9.117647058823536]
[11,10,0,{"$f":"MMULT($G$175:$H$175,beta)","v":1.5386539566735338},null,null,1,-0.8823529411764639,null,1,-0.8823529411764639]
[11,2,0,{"$f":"MMULT($G$176:$H$176,beta)","v":0.6713473031162767},null,null,1,-13.882352941176466,null,1,-13.882352941176464]
[11,2,0,{"$f":"MMULT($G$177:$H$177,beta)","v":1.138358578108646},null,null,1,-6.882352941176464,null,1,-6.882352941176464]
[11,0,0,{"$f":"MMULT($G$178:$H$178,beta)","v":1.4052221638185711},null,null,1,-2.8823529411764635,null,1,-2.882352941176464]
[11,0,0,{"$f":"MMULT($G$179:$H$179,beta)","v":1.0716426816811646},null,null,1,-7.882352941176464,null,1,-7.882352941176464]
[11,2,0,{"$f":"MMULT($G$180:$H$180,beta)","v":1.33850626739109},null,null,1,-3.882352941176464,null,1,-3.882352941176464]
[11,1,0,{"$f":"MMULT($G$181:$H$181,beta)","v":1.2717903709636085},null,null,1,-4.882352941176464,null,1,-4.882352941176464]
[11,0,0,{"$f":"MMULT($G$182:$H$182,beta)","v":1.138358578108646},null,null,1,-6.882352941176464,null,1,-6.882352941176464]
[11,0,0,{"$f":"MMULT($G$183:$H$183,beta)","v":1.138358578108646},null,null,1,-6.882352941176464,null,1,-6.882352941176464]
[11,6,0,{"$f":"MMULT($G$184:$H$184,beta)","v":1.33850626739109},null,null,1,-3.882352941176464,null,1,-3.882352941176464]
[12,8,0,{"$f":"MMULT($G$185:$H$185,beta)","v":0.9845686256820617},null,null,1,-9.1875,null,1,-9.1875]
[12,27,0,{"$f":"MMULT($G$186:$H$186,beta)","v":2.6524660363690944},null,null,1,15.812499999999998,null,1,15.8125]
[12,25,0,{"$f":"MMULT($G$187:$H$187,beta)","v":1.7851593828118375},null,null,1,2.8124999999999996,null,1,2.8125]
[12,5,0,{"$f":"MMULT($G$188:$H$188,beta)","v":1.5850116935293934},null,null,1,-0.1875,null,1,-0.1875]
[12,0,0,{"$f":"MMULT($G$189:$H$189,beta)","v":0.6509891435446552},null,null,1,-14.1875,null,1,-14.1875]
[12,6,0,{"$f":"MMULT($G$190:$H$190,beta)","v":1.5182957971019122},null,null,1,-1.1875,null,1,-1.1875]
[12,4,0,{"$f":"MMULT($G$191:$H$191,beta)","v":1.6517275899568749},null,null,1,0.8125,null,1,0.8125]
[12,4,0,{"$f":"MMULT($G$192:$H$192,beta)","v":2.2521706578042067},null,null,1,9.8125,null,1,9.8125]
[12,10,0,{"$f":"MMULT($G$193:$H$193,beta)","v":1.9853070720942814},null,null,1,5.8125,null,1,5.8125]
[12,2,0,{"$f":"MMULT($G$194:$H$194,beta)","v":1.7851593828118375},null,null,1,2.8124999999999996,null,1,2.8125]
[12,2,0,{"$f":"MMULT($G$195:$H$195,beta)","v":1.3848640042469496},null,null,1,-3.1875,null,1,-3.1875]
[12,2,0,{"$f":"MMULT($G$196:$H$196,beta)","v":1.1180004185370243},null,null,1,-7.187500000000001,null,1,-7.1875]
[12,3,0,{"$f":"MMULT($G$197:$H$197,beta)","v":1.7851593828118375},null,null,1,2.8124999999999996,null,1,2.8125]
[12,1,0,{"$f":"MMULT($G$198:$H$198,beta)","v":1.1180004185370243},null,null,1,-7.187500000000001,null,1,-7.1875]
[12,0,0,{"$f":"MMULT($G$199:$H$199,beta)","v":1.451579900674431},null,null,1,-2.1875,null,1,-2.1875]
[12,2,0,{"$f":"MMULT($G$200:$H$200,beta)","v":1.8518752792393187},null,null,1,3.8125,null,1,3.8125]

{"sheet":"TTM_data","index":6,"n_rows":1,"n_cols":1,"rows_kept":1,"hidden":true}
["TTM2HAD"]

{"sheet":"$Japanese$","index":7,"n_rows":725,"n_cols":32,"rows_kept":725,"hidden":true}
["基本システム用語","メッセージボックス","出力","ステータスバー","コントロール",null,"UserForm1","UserForm2","UserForm3","UserForm4","UserForm5","UserForm6","UserForm7","UserForm8","UserForm9","UserForm10","UserForm11","UserForm12","UserForm13","UserForm14","UserForm15","UserForm16","UserForm17","UserForm18","UserForm19","UserForm20","UserForm21","UserForm22","UserForm23","UserForm24","UserForm25","UserForm26"]
["データ","統計分析ソフト HAD","※Stanに入力するためのinput行列を指定されたディレクトリにcsvファイルで保存しました。","HAD実行中．．．.データ入力","データ\n読み込み",null,"統計分析マクロ　HAD","列幅の調整：　HAD","シートの管理：　HAD","尺度平均値：　HAD","設定：　HAD","因子分析オプション：　HAD","回帰モデルオプション：　HAD","変数の作成：　HAD","数値計算：　HAD","データセット：　HAD","HAD計算中","変数情報変更：　HAD","分析に使用する変数：　HAD","モデルの選択　回帰分析：　HAD","統計分析マクロ　HAD（簡易モード）","媒介分析の設定：　HAD","モデルの選択　因子分析：　HAD","ステップワイズ法設定","スクリープロット設定","TTM2HAD","潜在ランク回帰分析の詳細設定","HAD2GLIMMIXの設定","HAD2R","HAD2glmmstanの設定","グラフ設定","HAD2Stan_SEM"]
["モデリング","HADファイルをアクティブにしてください","要約統計量","HAD実行中．．．.","モデリング\nシート",null,"ID変数を含む","HADの設定値","閉じる","OK","作成している行列データを使用する","・推定設定","キャンセル","キャンセル","逆行列の計算","変数をグループに並び替える （横のデータを縦に）","現在計算中です。\r\nこのまましばらくお待ちください。\r\n　\r\n\r\nもし分析が時間がたっても終わらない場合は、\r\n下の「分析中断」ボタンをおしてください。","  フィルタ","キャンセル","・分析で用いるモデルを選択してください。","キャンセル","・順序回帰分析のリンク関数","・分析で用いるモデルを選択してください。","・ステップワイズ法の基準","・平行分析","参照","学習回数の推定数に対する倍率","・推定方法","参照","データファイルのパス","グループ別","キャンセル"]
["ソルバー アドイン","エラー内容:","箱ひげ図","HAD実行中．．．.分析準備中","列幅の\n調整",null,"OK","各変数名の長さにあわせる","全削除","-1をかけて逆転","・出力設定","・因子軸の回転基準","OK","OK","対称行列の固有値（Jacobi法）","グループ内人数=","分析中断"," 値ラベル","OK","使用変数","OK","・カウントデータの分布","キャンセル","投入基準","サンプリング回数=","・ExcelTTMの読み込み","・潜在ランク分析（自己組織化マップ）の推定設定","ガウス-エルミート求積法による最尤法","閉じる","参照","ID変数のラベルをつける","OK"]
["シート管理","変数名を選択してください。","ヒストグラム","HAD実行中．．．.分析","数値\n計算",null,"グループ平均センタリング（変数名_g）","マニュアル","下の記号がついてないシートを削除","最大値 + ","ラベルで結果を出力","最大反復数 = ","投入基準","平均値で2群に分割する","固有値の計算（QR法）","グループを変数に並び替える （縦のデータを横に）",null," ラベル","　追加→","キャンセル","詳細モード","ポアソン","OK","削除基準","初期値をランダムにする","出現頻度の最小値","非比例オッズモデル","ラプラス近似による最尤法"," R用データ保存","データファイル名","正規曲線を表示","・HAD2Stan_SEM設定"]
["HADを起動","変数より多い変数の使用は分析できません。","度数分布","HAD実行中．．．.因子分析","HAD2R",null,"グループ内平均（変数名_m）","OK","すべてのシートを削除","逆転しない","・欠損値設定","収束基準　= ","削除基準","使用変数の合計得点を算出する","OK","（縦のデータを横にする）",null," ＠変数","←削除　","OK","出力を上書きしない","負の二項分布","・使用変数","キャンセル","・単純構造性分析","・使用する単語の設定","比例オッズモデル","制限付き疑似最尤法"," csvファイルの読み込み",".csv","ヒストグラムの級数=","Rの作業ディレクトリ"]
["変数の投入","分析コードを選択してください。","正規性の検定","HAD実行中．．．.クラスタ分析","TTM2\nHAD",null,"キャンセル","キャンセル","\"$\"がついてないシートを全削除","負荷量が負の項目があります。\r\n得点を逆転して合成しますか？","\".\" （ピリオド）","直交回転基準=","主効果を全体平均で中心化する","使用変数の平均得点を算出する","キャンセル","（横のデータを縦にする）",null,"変数名"," 全投入 ","　追加→","差の検定","ロジット","・独立変数","OK","キャンセル","動詞","・潜在ランク回帰分析の回帰係数","疑似最尤法","・フォルダのパス","キャンセル","マーカーを表示しない","参照"]
["変数の作成","分析コードが正しくありません。","散布図","HAD実行中．．．.等質性分析","分析",null,"データ入力方法","Excelデフォルト(列幅8.38)","名前変更","から引いて逆転","ユーザー指定","※Kappaが大きいほど因子間相関が大きくなります","2値のダミー変数をカテゴリカル変数として扱う（推奨）","中央値で2群に分割する","行列式の計算","OK",null,"値"," 全削除 ","←削除　","対応なし","プロビット","モデルを保存","デフォルト設定","OK","名詞","・連続量の潜在ランク分析の平均値の推定方法","キャンセル","・ファイル名","OK","線形近似直線を引く","データファイル名"]
["分析コードを実行","分析コードが不適切です。","群ごとの統計量","HAD実行中．．．.構造方程式モデル","データ\nシート",null,"差の検定",null,"表示","固定値  ","・HADの表示設定","キャンセル","タイプⅢ"," 変数の合成","出力を上書きしない","キャンセル",null,"値より大きいサブジェクトを除外","使用変数"," 主効果を投入 ","対応あり","・打ち切りデータの方向","選択したモデルを消去",null,"デフォルト設定","形容詞","生成位相マップ","OK","書き出し","・R用のデータ設定","ドットプロットを重ねる",".csv"]
["分析コードをHADに反映","モデリングシートの設定が初期化されます。","カーネル密度推定","HAD実行中．．．出力","使用変数",null,"マルチレベル分析",null,"削除","から引いて逆転","変数情報を保存する（254変数まで）","OK","タイプⅡ"," 尺度変換","多変量正規乱数の発生","マルチレベルデータ",null,"値より小さいサブジェクトを除外","データリスト"," 交互作用を投入","平均の差の検定","下側","保存したモデル一覧",null,"非反復推定法(最大法）","副詞","自己組織化マップ","デフォルト設定",".csv","・MCMCの設定","95%信頼区間","欠損値を\"NA\"に変換する"]
["記述統計量","初期化しますか？","クロス集計表","HAD実行中．．．.カテゴリカル相関係数","選択セルを使用",null,"マルチレベル相関分析",null,"シート名",null," 表示設定","デフォルト設定","・共変量"," 数値変換","サンプルサイズ ="," データセットの出力",null,"値と等しいサブジェクトだけ使用","  分析で使用する変数","・目的変数","相関分析 ","上側"," 保存したモデルから選択",null,"主因子法","キーワード","近傍関数の分散","・残差共分散の構造","参照","サンプリング数","標準誤差"]
["ヒストグラム","セルを選択してください。","平均値の検定","HAD実行中．．．.多重クロス表","統制変数を投入",null,"MUML用共分散行列",null,"モデリング",null," 分析設定","（1から1000まで）","・多重比較の方法"," 値の再割り当て","共分散行列を完全に一致させる"," データセット選択",null,"データが","  HADから除外する変数","・独立変数","相関の差の検定","両側"," 分析コードから入力",null,"非反復推定法(平均法）","同義語","デフォルト設定","一次自己回帰（AR(1)）","ファイル","マルコフ連鎖の数","ヒストグラム"]
["メインデータセットとして利用","データに数式エラーが含まれています。","多重クロス表","HAD実行中．．．.対数線形モデル","変数を左につめる",null,"データの要約",null,"データシート",null," グラフ設定","（0.00001から1まで）","修正Shaffer"," ダミー変数","シミュレーション（デバグ用）"," 乱数データ生成",null,"値と等しいサブジェクトを除外","除外する変数","リストから削除","項目分析 (α係数)","一般化ポアソン","・スライス変数",null,"精度は高いが、時間がかかる","・出力","キャンセル","球面性（HF）","読み込み","採用間隔(thin)","散布図"]
["変数をデータセットに追加","数式エラーを欠損値に変換しますか？","主成分分析","HAD実行中．．．.対数線形モデル","変数情報",null,"要約統計量",null," シート管理 ",null,"ショートカット","（1から10 まで）","Shaffer","OK"," 乱数生成","・現在の使用データ：",null,"OK","キャンセル","モデルを保存","信頼性係数","キャンセル","使用変数",null,"共通性の和の推移をグラフにする","単語の出現頻度数","OK","分散成分（VC）","欠損値を\"NA\"に変換する","ウォームアップ数","箱ひげ図"]
["分析コード","データに空白セルが含まれています。","対応のない平均順位の差の検定","シミュレーション実行中．．．．(現在 ","回帰分析",null,"出力を上書きしない",null," シート削除 ",null,"右クリック","（重み：0から変数の数まで）","Holm","キャンセル"," サンプリング","キャンセル",null,"キャンセル","OK","選択したモデルを消去","平均の推定","OK","モデルを表示↓",null,"スクリープロットのカットポイント探索","単語と単語のクロス表","反復推定回数","無構造（UN）","OK","並列化をする","グラフに枠線をつけない"]
["変数情報","データの欠損値や変数の数を確認してください。","対応のある平均順位の差の検定","HAD実行中．．．.分散分析","因子分析",null,"標準化得点（変数名_s）",null,"閉じる",null," システム","・平行分析","主効果および多重比較の有意水準","出力を上書きしない"," 行列演算","OK",null,"適用","　除外→","保存したモデル一覧","基準値 =","デフォルト設定","選択した部分のモデルを編集(半角スペース区切り)",null,"効率のいいモデルを探索　※推奨","回答者と単語のクロス表","・潜在ランク分析（EMアルゴリズム）の推定設定",null,"\"NA\"を欠損値に変換する","コア数","モノクロ表示にする"]
["使用変数：","データにスペースのみのセル（変数名","ピアソンの積率相関係数","HAD実行中．．．.分散分析出力","変数の作成",null,"簡便法用共分散行列",null,"全削除",null,"キャンセル","サンプリング回数=","Bonferroni","出力を上書きしない","OK","シートを指定",null,"変数名","←戻す　"," 保存したモデルから選択","データの要約","なし","編集を反映",null,"平行分析を実行する","分析実行","近傍関数の分散",null,"・R上で使うデータのオブジェクト名","デフォルト設定","折れ線の太さ="]
["変数名","行目）が含まれています。","共分散行列","HAD実行中．．．.平均値の差の検定 出力","データセット",null,"ペアワイズ共分散行列",null,"シートを移動",null,"OK","初期値をランダムにする","・単純効果の誤差項の計算方法","使用変数の主成分得点を算出する","キャンセル","ローデータを使用する",null,"値"," 全読込 "," 分析コードから入力","要約統計量","負Log-Log","現在のモデル",null,"共通性の和","キャンセル",null,null,"Rコード","出力名","目盛線を内側にする"]
["コード","データを確認してください。","スピアマンの順位相関係数","HAD実行中．．．.分散分析単純効果検定出力","シート管理",null,"共分散行列",null,"選択シートを新規ファイルに移動",null,"キャンセル","プロマックス回転   Power =","プールされた誤差項","変数の合成に，標準化した得点を使用する","一様分布","共分散データを使用する",null,"ラベル","読み込む変数","・スライス変数","度数分布表","補Log-Log","・分析法",null,"VSS","出力を上書きしない",null,null,"HAD2Rをオン","R上のデータ名","グラフ全体の設定"]
["構造方程式","変数以上は読み込めません。","ポリコリック相関係数","HAD実行中．．．.クラスター分析","HADの設定",null,"行列表示",null,"分析履歴",null,"OK","独立クラスタ回転  Power =","水準別誤差項","中央値を高群に含める","正規分布","ポリコリック相関データを使用する",null,"OK","・HADから除外する変数を選択してください。","使用変数","散布図 ","・重回帰分析の推定法","分析コード",null,"VSSの複雑性 =","単語と単語の距離行列",null,null,"HAD2Rは現在はオフです","・出力設定","カーネル密度得点を出力"]
["モデリング","データセットを入力してください。","アルファ係数","HAD実行中．．．.","フィルタ",null,"相関分析",null,"保護",null,"・HADの初期化","斜交回転法 "," 回帰分析","中央値を低群に含める","標本サイズ =","ローデータ",null,"キャンセル","・分析で使用する変数を選択してください。","モデルを表示↓","箱ひげ図","最小二乗法","モデルを表示↓",null,null,"回答者ごとの単語への反応データ",null,null,"HAD2Rをオンにする","stanの結果を出力","キャンセル"]
["確認的","前に「HADから除外する変数」に指定した変数は、今回も除外しますか？","信頼性係数","HAD実行中．．．.クラスタ分析　クラスタの特徴計算中","値ラベル",null,"中心化得点（変数名_c）",{"$nulls":3},"分析の設定がすべてHADのデフォルトに戻り、\r\n保存されている変数情報すべてが消去されます。","直接オブリミン回転 （クォーティミン）"," 分散分析","基準値を欠損値にする","標本の数 =","（グループで平均する）",null,"適用"," 全除外 ","選択した部分のモデルを編集(半角スペース区切り)","直線回帰","最尤法","すべてのモデルを消去",null,null," データ出力",null,null,"・データ読み込み用のRコード","stanコードを出力","OK"]
["因子分析","変数名に、「$」、「\\」、「,(カンマ)」、「半角スペース」は使えません","対応のない平均値の差の検定","HAD実行中．．．.クラスター分析　デンドログラム作成中","ラベル",null,"read me",{"$nulls":3},"キャンセル","（0から1 まで）"," 一般化線形モデル","標準化得点（変数名_s）","最小値 =","グループ単位のデータ （グループ平均）",null,"追加","統制変数","編集を反映","セルごとの度数","・ロバスト標準誤差のタイプ","・モデル名",null,null," 単語のクラスタリング",null,null,"　↓","・glmmstanのインストール","カーネル区間数="]
["マルチレベル","同じ名前の変数があります。","対応のある平均値の差の検定","HAD実行中．．．.多次元尺度法","@変数",null,"ペアワイズ削除",{"$nulls":3},"設定の初期化"," 因子分析"," 一般化線形混合モデル","集団平均値（変数名_m）","最大値 =","選択した変数を出力する",null,"削除","　追加→","現在のモデル","ラベル付き","クラスタの補正",{"$nulls":3}," データの数量化",{"$nulls":3},"インストール用コードを出力","エラーバーを表示"]
["SEM","変数の数が最大値(","重回帰分析","HAD実行中．．．.潜在ランク分析　EMアルゴリズム","目的変数を投入",null,"リストワイズ削除",{"$nulls":3},"変数情報の列を常にウィンドウ固定"," クラスタ分析","キャンセル","集団平均で中心化（変数名_g）","母平均 =","SASのコードを出力",null,"フィルター全削除","←削除　","・分析法","グループ別","不均一分散の補正",{"$nulls":3},"クラスタデータの出力",{"$nulls":4},"デフォルト"]
["制約→",")より多いため、すべてを読み込むことができません。","ポアソン回帰分析","回目","主効果を全投入",null,"欠損値処理方法",{"$nulls":3},"シート全表示"," 数量化分析","OK","中心化得点（変数名_c）","母分散 =","・多変量正規乱数を生成する",null,"選択セルを入力","登録","分析コード","クロス表","・ブートストラップ標本数",{"$nulls":3},"クラスタ数=",{"$nulls":4},"下側にエラーバーをつけない"]
["グループ→","データ読み込み中にエラーが起きました。HADを終了します。","負の二項回帰分析","HAD実行中．．．.潜在ランク分析　自己組織化マップ　","交互作用を全投入",null,"データを出力",{"$nulls":3},"・前のバージョン(HAD16以降)のデータを読み込む"," 構造方程式モデル","キャンセル","マルチレベルデータ","出力を上書きしない","選択した変数の共分散行列から生成",null,"フィルターを適用する","消去","モデルを表示↓","ヒストグラムの級数　=","乱数の初期値をランダムにする",{"$nulls":3},"多次元尺度法",{"$nulls":4},"バンド幅パラメータ="]
["最大値","別のシートからのデータ使用時は、回帰分析・因子分析以外は利用できません。","ロジスティック回帰分析","HAD実行中．．．.標準誤差の計算中　","オプション",null,"マルチレベルデータ",{"$nulls":3},"シートの保護を解除","・単純構造性分析","OK","出力を上書きしない","正規分布","シートを指定",null,"すべてのデータを分析に利用する","登録変数一覧","すべてのモデルを消去","正規性の検定","ブートストラップ標本サイズ　=",{"$nulls":3},"最長距離法",{"$nulls":4},"折れ線グラフにエラーバーをつける"]
["最小値","最大数(","ガンマ回帰分析","HAD実行中．．．.因子分析　反復回数 =","分析実行",null,"（級内相関係数）",{"$nulls":3},"画面の初期化","キャンセル","・球面性からの逸脱による自由度補正","OK","ポアソン分布","キャンセル",null,"選択セルを入力","登録変数の表示↓","分析で用いるモデルを選択","順位相関分析","パラメトリック",{"$nulls":3},"群平均法",{"$nulls":4},"戻る"]
["　ソルバーオン",")より多い変数の分析はできません。","線形回帰分析","HAD実行中．．．.因子分析　反復回数 =","フィルタをオフにする",null,"PW相関分析",{"$nulls":3},"\"NA\"","OK","H-F","キャンセル","キャンセル","OK",null,"消去",null,"・モデル名","共分散","ノンパラメトリック",{"$nulls":3},"ウォード法",{"$nulls":4},"バイオリンプロットを重ねる"]
["　ソルバーオフ","別のシートからのデータ使用時は、変数の作成は利用できません。","判別分析","HAD実行中．．．.カテゴリカル因子分析・・・","出力を上書きしない",null,"データの再構成",{"$nulls":3},"OK","デフォルト設定","G-G","リストワイズ削除（合成","OK","出力を上書きしない",null,"選択セルを入力",null,null,"順位の差の検定 (ノンパラ検定)","・ブートストラップ標本の抽出法",{"$nulls":3},"次元数=",{"$nulls":4},"平均値に印をつける"]
["ポリコリック相関データ","共分散データからはカテゴリカル因子分析は実行できません。","因子分析","ニュートン法","連続",null,"変数をグループに並び替える",{"$nulls":3},"キャンセル","非反復推定法(最大法）","下限","リストワイズ削除（尺度","二項分布","サンプルサイズ = ",null,"変数名",null,null,"対応あり","・乱数の設定",{"$nulls":3},"クラスタの出現頻度数",{"$nulls":4},"棒グラフ"]
["共分散データ","共分散データからはクラスタ分析は実行できません。","階層クラスタ分析","準ニュートン法","順序",null,"ペアワイズデータセット",{"$nulls":3},"表示","主因子法","補正なし","リストワイズ削除（ダミー","負の二項分布","・一変量標準正規乱数を生成する",null,"OK",null,null,"対応なし","・ブートストラップ信頼区間の推定法",{"$nulls":3},"データのシート名",{"$nulls":4},"カーネル密度推定"]
["プロクラステス","共分散データからは数量化分析は実行できません。","K-means法","セカント法","割合",null,"グループ内人数=",{"$nulls":3},"非表示","VSS","・説明変数の設定　(一般化線形モデルと共通)","平均値=","平均","標準正規分布から乱数データを生成",null,"キャンセル",null,null,"変数間の関連性","パーセンタイル法",{"$nulls":3},"対応分析",{"$nulls":4},"標本サイズによって変える"]
["回転","Mac版ではSEMはまだ実装していません。","サンプルサイズ","HAD実行中．．．.因子得点計算中","カウント",null,"因子分析",{"$nulls":3},"　除去→","VSSの複雑性 =","・分析法選択","標準偏差=","分散","ランダマイズ",null,"適用",null,null,"対応分析","バイアス修正法",{"$nulls":3},"次元数="]
["最短距離法","このHADはソルバーがオフのバージョンです。ソルバーオンバージョンをダウンロードしてください。","※分散は不偏分散，標準偏差は不偏分散の平方根が出力されています。","HAD実行中．．．.因子得点計算中(EAP 区分求積法)・・・ ","打ち切り",null,"項目分析",{"$nulls":3},"←戻す　","共通性の和","名義有意水準を表示","変数の引き算","サンプルサイズ =","サンプルサイズを変更",null,"フィルタ変数作成",null,null,"マルチレベル分析","標準化係数を表示する",{"$nulls":3},"クラスタ分析"]
["最長距離法","モデルスペースを開いて実行してください。","変数名","HAD実行中．．．.因子得点計算中(EAP モンテカルロ積分)・・・ ","名義",null,"グループを変数に並び替える",{"$nulls":3},"全表示","非反復推定法(平均法）","デフォルト設定","変数の足し算","確率","ペアワイズデータセット",null,"・現在のフィルタ設定を変数化する",null,null,"マルチレベル相関分析","・パス図の表示",{"$nulls":3},"スコアデータの出力"]
["メディアン法","シート指定のデータでは因子得点は算出できません。","有効N","HAD実行中．．．.因子得点計算中(MAP法)・・・ ","混合分布",null,"（縦のデータを横にする）",{"$nulls":3},"全除去","精度は高いが、時間がかかる","デフォルト設定","変数の掛け算","試行数","リストワイズ削除",null,"（除外=1, 使用=0）",null,null,"MUML用共分散行列",{"$nulls":4},"Varimax回転"]
["重心法","共分散データ使用時は頑健な標準誤差は利用できません。","平均値","HAD実行中．．．.因子分析　回数 =","分位点",null,"（横のデータを縦にする）",{"$nulls":3},"再読込み","共通性の和の推移をグラフにする","デフォルト設定","キャンセル","平均","出力を上書きしない",null,"この変数をグループ分け変数にする",null,null,"ペアワイズ相関分析",{"$nulls":4},"重みあり"]
["群平均法","共分散データ使用時はクラスタ標準誤差は利用できません。","中央値","HAD実行中．．．.平行分析　反復回数 =","頑健標準誤差",null,"目的変数=",{"$nulls":3},"全て初期化","スクリープロットのカットポイント探索","Satterthwaitの補正を行う","OK","平均","・データの並び替え",null,"OK",null,null,"ペアワイズ共分散行列",{"$nulls":4},"重みなし"]
["可変法","非階層クラスター分析では変数の分類はできません。","標準偏差","HAD実行中．．．.項目反応理論グラフ出力中","クラスタ標準誤差",null,"回帰分析",{"$nulls":3},"デフォルト設定","効率のいいモデルを探索　※推奨","ペアごとの誤差項","出力を上書きしない","過分散","・データの並び替え",null,"キャンセル",null,null,"識別可能",{"$nulls":4},"デンドログラムの要約基準="]
["ウォード法","非階層クラスター分析では距離行列から分析はできません。","分散","HAD実行中．．．.回帰分析","モデル保存",null,"残差得点",{"$nulls":3},"シートのセル幅変更","デフォルト設定","要因の誤差項","リストワイズ削除（数値","出力を上書きしない","・マルチレベルデータの並び替え",null,"＠変数追加",null,null,"級内相関係数",{"$nulls":4},"デンドログラムを要約"]
["クラスタ分析","混合分布モデルでは変数の分類はできません。","歪度","HAD実行中．．．.回帰分析ステップ","回帰分析",null,"カテゴリーで統制",{"$nulls":3},"・エラーバー","キャンセル","内要因の多重比較"," - 変数","ランダマイズ","フィルタをオフにする",null,"＠変数削除",null,null,"マルチレベルデータ",{"$nulls":4},"クラスタデータ"]
["k-means法","混合分布モデルでは距離行列から分析はできません。","尖度","HAD実行中．．．.回帰分析　単純主効果の検定","分散分析",null,"モデリングシートを読み込む",{"$nulls":3},"標準誤差","OK","・その他の設定","変数 + ","形状","共分散行列が完全に一致するように生成",null,"＠変数",null,null,"フィルタをオフにする",{"$nulls":4},"主成分分析"]
["改良k-means","潜在クラス分析では変数の分類はできません。","最小値","HAD実行中．．．.混合分布回帰分析　　","一般化線形モデル",null,"使用する変数の数を入力する",{"$nulls":3},"95%信頼区間","・クラスター基準","共変量を中心化する","乗","ガンマ分布","リストワイズ削除",null,"代入する変数名",null,null,"ヒストグラム",{"$nulls":4},"主成分分析"]
["混合正規分布","潜在クラス分析では距離行列から分析はできません。","最大値","HAD実行中．．．.潜在ランク回帰分析　　","一般化線形混合モデル",null,"交互作用項",{"$nulls":3},"キャンセル","ウォード法","・標準化係数","変数の累乗","尺度","マルチレベルモデル用の共分散行列",null,"適用",null,null,"APIモデル",{"$nulls":4},"対応分析"]
["潜在クラス分析","潜在ランク分析では変数の分類はできません。","人数","HAD実行中．．．.一般化線形混合モデル事前処理中","階層的投入法",null,"簡易モード",{"$nulls":3},"OK","群平均法","目的変数が2値データのときロジスティック回帰分析を実行","変数 * ","α","Betweenレベル",null,"＠変数全削除",null,null,"グループごとの回帰直線",{"$nulls":4},"サイズで並び替え"]
["潜在ランク分析","潜在ランク分析では距離行列から分析はできません。","標準誤差","HAD実行中．．．.一般化線形混合モデル　単純主効果の検定","ステップワイズ",null,"識別可能",{"$nulls":3},"・ヒストグラムの表示","重心法","ステップワイズ法","変数の対数変換","β","Withinレベル",null,"キャンセル",null,null,"バブルチャート",{"$nulls":4},"（主成分分析で用いる）"]
["連続","一般化最小二乗法では欠損値推定は実行できません。","95%精度","ブートストラップ実行中．．．．(現在 ","媒介分析",null,"（グループ内間混合）",{"$nulls":3},"・散布図の表示","最長距離法","多変量回帰","ダミー変数を作成","ベータ分布","グループ内通し番号",null,"OK",null,null,"主成分分析",{"$nulls":4},"（対応分析で用いる）"]
["順序","共分散データからは構造方程式モデリングは実行できません。","得点","HAD実行中．．．.ブートストラップ処理中 ","各ステップを出力しない",null,"マルチレベル回帰分析",{"$nulls":3},"線形近似直線を引く","最短距離法","重回帰分析","最初の変数から残りの変数を引いた差得点を算出する","データセットから","指数分布族乱数の生成",null,"変数名",null,null,"群ごとの統計量"]
["外生変数","探索的因子分析ではモデルスペースは使用しません。","正規性検定","HAD実行中．．．.一般化線形混合モデル実行中(NULLモデル)","残差得点を出力",null,"級内相関=",{"$nulls":3},"下側にエラーバーをつけない","デンドログラムの表示法","相関係数の差","今までの値",null,"・一変量の指数分布族乱数を生成する",null,"コード説明",null,null,"グラフ設定"]
["パスを推定","使用変数を入力してください。","χ2乗値","HAD実行中．．．.一般化線形混合モデル実行中 ","HAD2GLIMMIX",null,"以下をはずす",{"$nulls":3},"・グラフの表示設定","距離の","ロジスティック・カウント回帰分析の標準化係数を出力する","新しい値",{"$nulls":3},"分析法：",null,null,"多重クロス表分析"]
["共分散を推定","使用変数と因子数の合計が規定値(95)を超えています。","p値","HAD実行中．．．.一般化線形混合モデル事後処理中","HAD2glmmstan",null,"媒介分析",{"$nulls":3},"モノクロ表示にする","乗","※計算に時間がかかることがあります","その他の全ての値",{"$nulls":3},"使用変数："]
["初期化","使用変数と因子数の合計が規定値(50)を超えています。","ジャック・ベラ検定","HAD実行中．．．.媒介分析処理中","因子分析",null,"bootn=",{"$nulls":3},"グラフに枠線をつけない","クラスター経過工程を出力","交互作用項を含む場合、各変数を中心化する（推奨）","欠損値",{"$nulls":3},"使用変数名"]
["モデルチェック","すでに潜在因子数が0になっています。","統計量","HAD実行中．．．.回帰分析ステップ","クラスタ分析",null,"ランダマイズ",{"$nulls":3},"マーカーを表示しない","・出力設定","・ステップワイズ法の基準","範囲を指定",{"$nulls":3},"コードを実行"]
["HAD2Stan","2つ以上の変数を選択してください。","補正p値","HAD実行中．．．.多変量回帰分析","数量化分析",null,"スクリープロット",{"$nulls":3},"折れ線グラフにエラーバーをつける","距離行列を出力","球面性の検定結果を出力する","値を指定",{"$nulls":3},"新しく作成した変数のコードを再実行することで，\r\nデータを増やした場合に同じ方法で得点化できます。"]
["パス追加","モデルが識別できません。推定するパラメータを減らしてください。","コルモゴロフ・スミルノフ検定","HAD実行中．．．.媒介分析出力","構造方程式モデル",null,"データ共分散行列",{"$nulls":3},"OK","・多次元尺度法の設定","・カウントデータの分布","から",{"$nulls":3},"コード："]
["共分散追加","測定項目がない因子があります。二つ以上の項目を指定してください。","※ジャック・ベラ検定は歪度と尖度が0であるという帰無仮説に対する検定です。自由度2のχ2乗検定を用います。","HAD実行中．．．.NULLモデルの推定中","因子増やす",null,"度数分布表",{"$nulls":3},"キャンセル","次元まで抽出","ポアソン分布","今までの値をコピー"]
["パス図消去","使用変数に二つ以上の変数を指定してください。","セルごとの度数","HAD実行中．．．.モデルの推定中","因子減らす",null,"対応分析",{"$nulls":3},"・ショートカットキーの指定","デフォルト設定","負の二項分布","欠損値"]
["パス図を反映","パス図描画中にエラーが起きました。","サンプルサイズ = ","HAD実行中．．．.パラメータの構造化中","パス図表示",null,"順位相関分析",{"$nulls":3},"モデリングシート表示","キャンセル","・割合回帰分析の分布","値を指定"]
["パス図を再描画","共分散データからでは分散分析は実行できません。"," (リストワイズ削除されています)","HAD実行中．．．.標準誤差の計算中","スライス",null,"行列表示",{"$nulls":3},"分析履歴表示","OK","プロビット","OK"]
["目的変数→","共分散データからで一般化線形モデルは実行できません。","度数","HAD実行中．．．.構造方程式モデリング・・・","共変量を中心化",null,"散布図",{"$nulls":3},"変数を投入","・データの種類","ロジット","キャンセル"]
["スライス→","共分散データからでは階層線形モデルは実行できません。","比率(%)","基準 ","名義有意水準を表示",null,"尺度平均値",{"$nulls":3},"デフォルト設定","変数型：変数に、カテゴリが数値としてコードされている","補Log-Log","削除"]
["重回帰分析","共分散データからでは判別分析・多変量回帰分析は実行できません。","総度数",null,"一般化効果量",null,"合計値",{"$nulls":3},"デフォルト設定","カテゴリ反応型：カテゴリへの反応が0と1でコードされている","負Log-Log","出力を上書きしない"]
["ロバスト回帰","セルB2にID変数を入力してください。","対数線形モデル",null,"不偏推定効果量",null,"中央値で分割",{"$nulls":3},"デフォルト設定","・グラフの出力設定","・打ち切りデータの方向","リストワイズ削除（再割あて"]
["頑健なSE","使用変数が入力されていません。","変数",null,"対数線形モデル",null,"平均で分割",{"$nulls":3},"シート管理","クロス表型：データが2変数のクロス表の場合","下側","・使用変数から合成変数を作ります"]
["クラスタSE","回帰分析の目的変数が入力されていません。","度数が0のセルが存在するため，",null,"集団平均で中心化",null,"平行分析",{"$nulls":3},"分析履歴を表示","※クロス表型の場合は、行と列を同時にプロットします。\r\n","上側","平均値を0にします"]
["ブートストラップ","目的変数が使用変数にありません。","を加えています。加える値は「HADの設定」から変更できます。",null,"判別分析",null,"多変量乱数",{"$nulls":3},"履歴保存数","次元軸の目盛を表示する","両側","集団平均で中心化します"]
["モデル→","目的変数が共分散データにありません。","セル番号",null,"多変量回帰分析",null,"標準得点使用",{"$nulls":3},"セル幅","次元軸を表示する","なし","集団平均を算出します"]
["強制投入→","共分散データからでは交互作用は検討できません。","変数間の関連性と検定",null,"各セルの平均値",null,"主成分得点",{"$nulls":3},"新しい分析結果を前に表示する","カイザーの基準化を行う","一般化ポアソン","・使用変数を基準値で2群に分割します（低群=0, 高群=1)"]
["媒介分析","媒介分析では交互作用は検討できません。","階層ごとの推定",null,"媒介分析の設定",null,"カテゴリカル相関",{"$nulls":3},"・カテゴリカルデータの水準数","デンドログラムの要約基準","判別分析","・使用変数をダミー変数に変換します"]
["線形回帰","目的変数が入力されていません。","次モデル",null,"Stepwiseの設定",null,"行列表示",{"$nulls":3},"水準数が","分類対象が","・一般化線形モデルの反復計算の基準","・使用変数と定数の四則演算"]
["変量効果","使用変数が多いため交互作用は5変数までのみ入力します。","飽和モデルの推定結果",null,"履歴を非表示",null,"カテゴリの水準　<",{"$nulls":3},"以内の変数をカテゴリデータと見做す","以上","最大反復回数","・使用変数の非線形変換"]
["残差構造→","使用変数より多い変数は指定できません","係数",null,"履歴を全消去",null,"Full-ML",{"$nulls":3},"・HADのバージョン","平行分析を実行する","収束基準","・現在のフィルタ設定を反映した変数を作成します（除外=1, 使用=0)"]
["変量効果→","共分散データからでは各セルの平均値は計算できません。","下限",null,"起動",null,"Two-Step",{"$nulls":3},"hadversion","※重み=1でバリマックス回転","・説明変数の設定","フィルタ変数を作成"]
["分散分析","判別分析はローデータ使用時しか実行できません。","上限",null,"シート\n管理",null,"起動から",{"$nulls":3},"ファイルを参照","k-means法","2値のダミー変数をカテゴリカル変数として扱う（推奨）","平均得点を算出"]
["共変量→","順序データの回帰分析はローデータ使用時しか実行できません。","Z値",null,"閉じる",null,"クロス表として読み込む",{"$nulls":3},"・乱数のシード","ランダマイズ","主効果を全体平均で中心化する","合計得点を算出"]
["反復測定→","名義データの回帰分析はローデータ使用時しか実行できません。","度数分布表",null,"二値",null,"ローデータとして読み込む",{"$nulls":3},"システムタイマーを使う","改良k-means","レベル1の変数を集団平均で中心化する（推奨）","主成分得点を算出"]
["対数線形モデル","割合データの回帰分析はローデータ使用時しか実行できません。","ヒストグラム（正規性検定）",{"$nulls":3},"箱ひげ図",{"$nulls":3},"シードを固定","階層法","・階層線形モデルの反復計算の基準","最初の変数から残りの変数を引く"]
["判別分析","混合分布回帰分析はローデータ使用時しか実行できません。","出現値",{"$nulls":3},"行列演算",{"$nulls":3},"折れ線の太さ=","非階層法","最大反復回数","・各変数の平均と標準偏差を変換します"]
["多変量回帰","カウントデータの回帰分析はローデータ使用時しか実行できません。","確率(%)",{"$nulls":3},"変数の計算",{"$nulls":3},"出力のフォントをTimes New Romanにする","初期値","収束基準","・各変数を集団平均で中心化します （マルチレベルデータ)"]
["説明変数→","打ち切りデータの回帰分析はローデータ使用時しか実行できません。","有効度数",{"$nulls":3},"ダミーコード",{"$nulls":3},"目盛線を内側にする","主成分","デフォルト設定"," （最大値+1の値を入力）"]
["HLM","分位点回帰分析はローデータ使用時しか実行できません。","有効確率",{"$nulls":3},"変数の差",{"$nulls":3},"・箱ひげ図・棒グラフの表示","ランダム","キャンセル","※共分散行列から主成分分析を行います。\r\n　因子分析の主成分解と同じ結果にするためには\r\n　標準化した得点を使用してください。"]
["連続変量","マルチレベル分析では，欠損値データの分析はできません。","累積確率",{"$nulls":3},"順位の差の検定　 (ノンパラ検定)",{"$nulls":3},"ドットプロットを重ねて表示する","反復","OK","集団平均値＋中心化（変数名_mc）"]
["正規分布","欠損値推定では外生変数の分散を推定します。","合計",{"$nulls":3},"変数間の関連性",{"$nulls":3},"日本語フォント","反復回数=","・標準誤差のタイプ","中心化した集団平均を算出"]
["対数正規分布","一般化最小二乗法では欠損データの推定はできません。","正規性",{"$nulls":3},"対応なし",{"$nulls":3},"正規曲線を表示","・尺度得点の計算方法","モデルに基づいた標準誤差","中心化して交互作用項を作成"]
["ガンマ分布","HAD起動中にエラーが起きました。HADを終了します。","区間",{"$nulls":3},"対応あり",{"$nulls":3},"エラーバーを表示","合計値","頑健な標準誤差","変数の逆正弦変換 （角変換）"]
["順序回帰","混合分布回帰分析では階層的投入法は利用できません。","級代表値",{"$nulls":3},"平均値の差の検定",{"$nulls":3},"グラフ設定詳細","平均値","交互作用項を含む場合、各変数を中心化する（推奨）","・交互作用項を作ります"]
["ロジスティック","クラスタ数を入力してください。","一様性の検定",{"$nulls":3},"対応あり",{"$nulls":3},"・対数線形モデルの0度数に加える値","収束基準　= ","・出力の設定","フィルタをオフにする"]
["プロビット","グループ識別変数を最初のセルに入力してください。","自由度",{"$nulls":3},"対応なし",{"$nulls":3},"表示言語(Language, 显示语言)","最大反復数 = ","固定効果の共分散行列を出力する","フィルタをオフにする"]
["補Log-Log","「使用変数→」に、分析に使用する変数名を入力してください。","出現数",{"$nulls":3},"グループ単位のデータ",{"$nulls":3},"・多重比較の方法","・反復計算の基準","Nullモデルに切片の変量効果を含める","フィルタをオフにする"]
["負Log-Log","使用変数が最大数(","最頻値",{"$nulls":3},"直線回帰",{"$nulls":3},"Bonferroni","確認的因子分析の結果をサイズで並び替える","・変量効果の設定","フィルタをオフにする"]
["名義回帰",")を超えています。","曲線当てはめ",{"$nulls":3},"値の再割り当て",{"$nulls":3},"Holm","推定精度 = ","切片の変量効果を推定する（推奨）","フィルタをオフにする"]
["参照","データ入力が正しくありません。確認してください。","累積正規曲線のパラメータ",{"$nulls":3},"フィルタ変数",{"$nulls":3},"Shaffer","デフォルト設定","・回帰係数の検定方法","順位化得点（変数名_rs）"]
["二項回帰","変数名に空白のものが含まれています。Box変数を確認してください。","平均",{"$nulls":3},"セル平均値",{"$nulls":3},"修正Shaffer","キャンセル","クラスタ内相関","今までの値　→　新しい値"]
["ベータ二項回帰","変数名が同じものが含まれています。","閾値の推定",{"$nulls":3},"平均値の推定",{"$nulls":3},"独立性の検定で連続性補正を行う","OK","不均一分散","追加"]
["生起数","が見つかりません。再度変数名を読み込んで確認してください。","25%閾値",{"$nulls":3},"検定値 =",{"$nulls":4},"・標準誤差の推定","モデリングスペースに切り替え用チェックボックスを表示","外れ値を削除"]
["総数","変数名に「*」は使えません。","50%閾値",{"$nulls":3},"セルごとの度数",{"$nulls":4},"微小値 = ","・出力","SD以上外れた値を削除"]
["混合分布回帰","統制変数に変数名が同じものが含まれています。","75%閾値",{"$nulls":3},"Mplusコード",{"$nulls":4},"・出力の設定","回帰係数の共分散行列","集団内通し番号"]
["クラス数","統制変数に使用変数と同じものが含まれています。","四分位数",{"$nulls":3},"ラベル付き",{"$nulls":4},"パス図の結果を標準化解で出力する","交互作用項をステップに分けて投入(推奨)","文字列を数値に変換"]
["カウント回帰","平均値の差の検定には2つ以上の変数を指定する必要があります。","四分領域",{"$nulls":3},"グループ別",{"$nulls":4},"・推定の設定","・変数投入方法"]
["ポアソン分布","相関係数の差の検定にはID変数を含めて4つ以上の変数を指定する必要があります。","平均の区間推定",{"$nulls":3},"信頼性係数",{"$nulls":4},"外生変数の分散を推定する","・その他の設定"]
["負の二項分布","回帰モデルの目的変数が入力されていません。","基準値",{"$nulls":3},"クロス表",{"$nulls":4},"分散を非負に制約して推定する","・効果量のタイプ"]
["一般化ポアソン","回帰モデルの目的変数が使用変数に含まれていません。","信頼区間",{"$nulls":3},"相関の差の検定",{"$nulls":4},"スクリープロットの設定","Cohenのd"]
["オフセット","参加者内要因の分析には目的変数が2つ以上必要です。","差",{"$nulls":3},"中央値",{"$nulls":4},"因子間相関を反映","相関係数 r "]
["トービット回帰","反復測定の水準数の入力が正しくありません。","df",{"$nulls":3},"グループ内平均＋中心化（変数名_mc）",{"$nulls":4},"・因子得点の計算方法","効果量d (Hedgesのg)"]
["打ち切り下側","共変量の中に，目的変数と同じ変数があります。","t値",{"$nulls":3},"級内相関係数",{"$nulls":4},"回帰法","水準ごとに標準誤差を計算"]
["打ち切り上側","共変量の中に，使用変数に含まれていない変数があります。","※エラーバーは標準誤差を示しています。",{"$nulls":3},"級数　=",{"$nulls":4},"EAPの推定にモンテカルロ積分を使う（カテゴリカルの時）","母集団推定量"]
["打ち切り両側","測定要因の中に，目的変数と同じ変数があります。","※エラーバーは95%信頼区間を示しています。",{"$nulls":3},"正規性検定",{"$nulls":4},"カテゴリカル因子分析","一般化効果量"]
["打ち切りなし","測定要因の中に，使用変数に含まれていない変数があります。","グループ",{"$nulls":3},"交互作用項",{"$nulls":4},"EAP","差の効果"]
["分位点回帰","媒介分析には交互作用項は投入できません。","共変動",{"$nulls":3},"出力を上書きしない2",{"$nulls":4},"MAP","要因の効果"]
["分位点","媒介分析のモデルには，説明変数は2変数以外投入できません。","相関係数",{"$nulls":3},"フィルタをオフにする",{"$nulls":4},"頑健標準誤差","間はプール・内は水準別"]
["因子分析","目的変数が群分けにも含まれています。","決定係数",{"$nulls":3},"バブルチャート",{"$nulls":4},"補正なし","検定をｔ分布で行う"]
["因子数→","目的変数が説明変数にも含まれています。","共分散",{"$nulls":3},"ヒストグラム",{"$nulls":4},"カテゴリカル因子分析の推定にソルバーを使う","・仮定の逸脱に対する補正方法"]
["抽出法→","共分散データ使用時では交互作用項は投入できません。","推定値",{"$nulls":3},"完全一致",{"$nulls":4},"順序クラスタ","補正なし"]
["回転法→","使用変数で指定していない変数が含まれています。","直線回帰",{"$nulls":3},"グループごとの回帰直線",{"$nulls":4},"順序","頑健標準誤差"]
["得点→","説明変数の中に同じ変数が複数含まれています。","モデル",{"$nulls":3},"等分散の検定",{"$nulls":4},"連続","クラスタ標準誤差"]
["最尤法","共変量が分散分析のモデルに含まれていません。","切片",{"$nulls":3},"APIモデル",{"$nulls":4},"混合分布","検定をｔ分布で行う"]
["最小二乗法","参加者内要因の変数が分散分析のモデルに含まれていません。","傾き",{"$nulls":3},"一様性検定",{"$nulls":4},"EII","補正なし"]
["反復主因子法","説明変数がモデルに含まれていません。","回帰式",{"$nulls":3},"順位化得点（変数名_rs）",{"$nulls":4},"EEE","ブートストラップ"]
["主成分法","媒介分析には独立変数が2つ以上必要です。","グループごとの回帰直線",{"$nulls":3},"主成分分析",{"$nulls":4},"VII","反復数＝"]
["カテゴリカル","交互作用項の数が限界値を超えました。","※すべての回帰直線を表示できませんでした。最初の255グループの結果を表示しています。",{"$nulls":3},"BM検定",{"$nulls":4},"VVV","ランダマイズ"]
["固有値1以上まで","説明変数の入力が適切ではありません。","※すべての回帰直線を表示できませんでした。",{"$nulls":3},"集団内通し番号",{"$nulls":4},"分散モデル設定","ロバスト回帰分析"]
["斜交回転","次のStepには、前のStepの変数を含めて入力してください。","バブルチャート",{"$nulls":3},"文字列を数値に変換",{"$nulls":4},"潜在クラス分析","固定効果の共分散行列を出力する"]
["回転なし","群分け変数（スライス変数）を2つ指定したときは3要因交互作用がモデルに含まれる必要があります。","順位相関係数",{"$nulls":3},"群ごとの統計量",{"$nulls":4},"学習回数倍率","C-M"]
["直交回転","使用変数の中に群分けする変数（スライス変数）が見つかりません。","対応分析",{"$nulls":3},"カーネル密度",{"$nulls":4},"潜在ランク分析","・混合分布回帰分析の設定"]
["サイズでソート","群分けする変数（スライス変数）に同じ変数があります。","クロス表",{"$nulls":3},"グラフ設定",{"$nulls":4},"詳細設定","ランダマイズ"]
["相関行列","独立変数の中に群分けする変数(スライス変数）が見つかりません。","連関係数と独立性の検定",{"$nulls":3},"曲線当てはめ",{"$nulls":4},"頑健標準誤差","反復回数="]
["最尤プロマックス","交互作用変数の中にスライス変数が見つかりません。","※信頼区間が収束しませんでした",{"$nulls":3},"多重クロス表",{"$nulls":4},"・非階層法・潜在変数分析の分析設定","HAD2GLIMMIXの設定"]
["因子得点","スライス変数は交互作用項の中に含まれている必要があります。","クラメール V",{"$nulls":3},"had2stan_sem",{"$nulls":5},"・連続変量の分布"]
["尺度得点","クラスタ数の入力が正しくありません","クロス表のプロット",{"$nulls":9},"正規分布"]
["スクリープロット","0より大きく、分類する対象の数以下の整数を入力してください","Fisherの正確確率",{"$nulls":9},"対数正規分布"]
["項目反応理論","クラスター分析の方法の選択が正しくありません","※2×2のクロス表の時に表示します。総度数が40以下の場合、あるいは期待度数が5以下のセルがある場合はこちらを参照してください。",{"$nulls":9},"単純効果分析の推定点"]
["クラスタ数→","方法をどれか一つ選んでください","両側確率",{"$nulls":9},"SD"]
["分類方法→","最大反復数の入力が正しくありません","片側確率",{"$nulls":9},"±"]
["分析対象→","1より大きい整数を入力してください","一致性係数",{"$nulls":9},"二項回帰の過分散を推定"]
["階層的","収束基準の入力が正しくありません","Cohenのκ",{"$nulls":9},"ガンマ分布"]
["非階層的","0.00001より大きい値を入力してください","クロス表(全体に対する比率%)",{"$nulls":9},"プロビットリンク"]
["混合分布","構造方程式モデリングは使用変数が2つ以上である必要があります。","クロス表(行ごとの比率%)",{"$nulls":9},"二項分布"]
["潜在クラス","HADを終了します。","クロス表(列ごとの比率%)",{"$nulls":9},"ベータ二項分布"]
["潜在ランク","因子数の入力が正しくありません ","残差分析",{"$nulls":9},"推定をソルバーで行う"]
["指定せずに分析","0以上、項目数以下の整数を入力してください","クロス表（△は有意に多い、▼は有意に少ない）"]
["回答者","1以上、項目数以下の整数を入力してください","調整された標準化残差"]
["変数","オーソマックス基準（因子寄与の重み）の入力が正しくありません"," (ウィルコクソンの符号化順位検定・連続性補正)"]
["距離行列","以下の数値を入力してください。","※負の順位に基づく"]
["デンドログラム","バリマックス回転 = 1","※正の順位に基づく"]
["クラスタの特徴","クォーティマックス回転 = 0","検定統計量Z ="]
["回答者を分類","バイクォーティマックス回転 = 0.5"," (フリードマン検定)"]
["変数を分類","エカマックス回転 = 因子数 / 2","検定統計量χ2 ="]
["所属クラスタ","因子パーシモニー = 変数の数","効果量"]
["クラスタ平均値","プロマックス回転基準(Power)の入力が正しくありません","平均順位"]
["データを標準化","1以上の数値を入力してください","※順位は高いほど高得点を意味してます。"]
["多次元尺度法","因子抽出法の選択が正しくありません","順位得点"]
["数量化分析","抽出法をどれか一つ選んでください","多重比較 (Holmの方法）"]
["(等質性分析)","カテゴリ基準の入力が正しくありません","水準の組"]
["次元数→","0から180までの数値を入力してください。","順位の差"]
["データ→","ヒストグラムの級数の入力が正しくありません","効果量 r"]
["重み→","2から100までの数値を入力してください。","調整p値"]
["変数型","一標本検定の基準値の入力が正しくありません","(マンホイットニー検定・連続性補正)"]
["カテゴリ反応型","数値を入力してください。","(クラスカル-ウォリス検定)"]
["クロス表型","ブートストラップのサンプルサイズの入力が正しくありません","等分散を仮定しない検定（ブルンナー・ムンツェル検定）"]
["バリマックス回転","200～50000の数値を入力してください。","検定統計量t ="]
["重みなし","グループ内人数を入力してください。","(順位得点)"]
["重みあり","グループ内人数の入力が適切ではありません。","重み係数"]
["変数をプロット","対応分析の出力には,グループ識別変数を含めて3変数以上の入力が必要です","主成分"]
["回答者をプロット","グループ別の散布図の出力にはグループ識別変数を含めて4変数の入力が必要です","固有値"]
["変数型データ","散布図の出力には,グループ識別変数を含めて3変数の入力が必要です","寄与率"]
["反応型データ","ノンパラメトリック検定には2つ以上の変数を指定する必要があります。","累積寄与"]
["回答者スコア","因子分析の出力には, グループ識別変数を含めて3変数以上の入力が必要です","プロット"]
["カテゴリ反応型データ","目的変数の入力が正しくありません","標準化した主成分"]
["SEM","選択した変数の中から選んでください"]
["分析法→","グループ数が1つだけになっています。","標準化重み係数"]
["推定法→","分析を行う場合は「マルチレベルデータ」のチェックをはずしてください","等分散性の検定 (Levene検定)"]
["推定設定→","データ入力中にエラーが起きました。HADを終了します。","検定する変数"]
["CFA","データに数式エラーが含まれています。","グループ変数"]
["EFA","数式エラーを欠損値に変換して分析を続けますか？","F値"]
["マルチレベル","データに空白セルが含まれています。","df1"]
["GLS","データの欠損値や変数の数を確認してください。","df2"]
["潜在変数なし","データに指定された欠損値以外の文字列が含まれています。","検定統計量"]
["完全クラスタ解","データを確認してください。","各グループの分散"]
["標準化残差","データにスペースだけのセルが含まれています。","削除"]
["確認的因子分析","多母集団分析のためのグループ変数が見つかりません。","データ"]
["標準誤差","多母集団分析のためのグループ変数が使用変数に含まれています。","ポリコリック"]
["平均構造を推定","統制変数に文字列データは利用できません。","ラベル"]
["欠損値データ","グループ分け変数は一つだけ設定可能です。","偏相関分析"]
["モデルスペース","フィルタ設定を確認してください。","相関分析"]
["現在のモデル","マルチレベル分析ではグループ分け分析ができません。","検定統計量(t値)と有意確率"]
["リストワイズ削除　","クラスタ標準誤差ではグループ分け分析ができません。","※上段からt値，p値，自由度，95%信頼区間を表す"]
["要約統計量","ペアワイズ分析はペアデータしか扱えません。","p値"]
["箱ひげ図","このデータはペアデータではありません。","自由度"]
["ヒストグラム","すべてのグループ内人数が等しいデータしか, 識別可能なデータとして分析できません。","95％CI"]
["度数分布","すべてのグループ内人数が等しいデータしか並び替えができません。","順位相関係数(スピアマン)"]
["正規性検定","グループ数は最大15が限度です。HADを終了します。","カテゴリカル相関分析"]
["散布図","分散分析では統制変数で統制した分析ができません。","ポリコリック・ポリシリアル相関係数を計算中にエラーがありました。"]
["　ラベル","回帰分析・一般化線形モデル・階層線形モデルでは統制変数で統制した分析ができません。","※カテゴリ数が規定値( & categorimax & \")を超えた変数があったため、一部ピアソンの積率相関係数を算出しています。"]
["　グループ別","平均値の差の検定では統制変数で統制した分析ができません。","検定統計量と有意確率"]
["直線回帰","カテゴリカルデータを目的変数とした分析では統制変数で統制した分析ができません。","※上段からZ値(あるいはt値)、p値、相関係数のタイプを表す"]
["クロス集計表","カウントデータの回帰分析では統制変数で統制した分析ができません。","項目分析"]
["バブルチャート","順位の差の検定では統制変数で統制した分析ができません。","項目"]
["群ごとの平均値","等分散の検定では統制変数で統制した分析ができません。","内的一貫性係数"]
["カーネル密度","クロス表分析では統制変数で統制した分析ができません。","α係数"]
["曲線当てはめ","等質性分析では統制変数で統制した分析ができません。","項目ごとの分析"]
["平均の区間推定","ポリコリック相関分析では統制変数で統制した分析ができません。","尺度との"]
["平均の差の検定","多重クロス表では統制変数で統制した分析ができません。","相関係数"]
["　対応なし","対応分析では統制変数で統制した分析ができません。","削除後の"]
["　対応あり","対数線形モデルでは統制変数で統制した分析ができません。","負荷量"]
["相関の差の検定","カテゴリー数が規定値(250)を超えました。クロス表は表示できません","逆転後のα"]
["等分散性の検定","カテゴリー数が規定値(250)を超えました。対応分析は表示できません","※主成分負荷量が負の項目を逆転した場合のα係数"]
["中央値の差の検定","α係数の計算には2つ以上の変数を指定する必要があります。","尺度平均値"]
["相関分析","分散分析には、ID変数を含めて3以上の入力が必要です","項目数"]
["共分散","マルチレベル分析には対応していません。","※ジャック・ベラ検定は、歪度と尖度による正規性の検定の一種で、自由度2のχ2乗分布によりp値を計算します。"]
["順位相関分析","値の再割当てはHAD2Rに対応していません。","※p値は自由度2のχ2乗分布から算出されました。"]
["カテゴリカル相関分析","ダミー変数作成はHAD2Rに対応していません。","複数測定の一貫性係数（尺度の内的一貫性）"]
["項目分析","データセットの並び替えはHAD2Rに対応していません。","標準化α係数"]
["信頼性係数","バブルチャートはHAD2Rに対応していません。","ω係数"]
["対応分析","曲線当てはめはHAD2Rに対応していません。","※因子分析が不適解となったため、ω係数は出力されません。"]
["多重クロス表","対数線形モデルはHAD2Rに対応していません。","※最尤法による因子分析結果に基づいて計算しています。"]
["主成分分析","等分散の検定はHAD2Rに対応していません。","単一測定の一貫性係数"]
["級内相関係数","一般化ポアソン分布はHAD2Rに対応していません。","※順序尺度の場合、一貫性と一致性は同じになります"]
["マルチレベル相関分析","トービット回帰分析はHAD2Rに対応していません。","尺度"]
["ペアワイズ相関分析","ベータ二項分布はHAD2Rに対応していません。","級内相関係数"]
["　識別可能","対数正規分布はHAD2Rに対応していません。","順位級内相関"]
["グループごとの回帰分析","混合正規分布はHAD2Rに対応していません。","間隔"]
["行為者観察者相互依存性モデル","分位点分布はHAD2Rに対応していません。HAD2Rをオフにして実行してください。","順序"]
["順位の差の検定","ロバスト回帰分布はHAD2Rに対応していません。","単一測定の絶対一致性係数"]
["順序ロジスティック回帰分析","多変量正規分析はHAD2Rに対応していません。","κ係数(Fleiss)"]
["順序プロビット回帰分析","一般化線形モデルのステップワイズ法はHAD2Rに対応していません。","名義"]
["順序補Log-Log回帰分析","媒介分析はHAD2Rに対応していません。","※各統計量　級内相関：F値, KendallのW：χ2乗値, κ係数：Z値"]
["順序負Log-Log回帰分析","主成分分析はHAD2Rに対応していません。","※対角行列(太字)は級内相関、上三角行列は個人レベル相関、下三角行列はペアレベル相関を表す"]
["二項ロジスティック回帰分析","プロクラステス回転はHAD2Rに対応していません。","※ペアのN"]
["二項プロビット回帰分析","改良k-means法はHAD2Rに対応していません。","※識別可能データとして分析"]
["二項補Log-Log回帰分析","混合分布・潜在クラス分析はHAD2Rに対応していません。","ペアワイズ相関分析"]
["二項負Log-Log回帰分析","数量化分析はHAD2Rに対応していません。","逆行列"]
["名義ロジスティック回帰分析","構造方程式モデルはHAD2Rに対応していません。","行列式"]
["ポアソン回帰分析","データがすべて欠損値か、削除データの設定に誤りがあります。","固有ベクトル"]
["負の二項回帰分析","統制変数に線形従属な変数が含まれています。","サンプリングシミュレーション"]
["一般化ポアソン回帰分析","データに欠損値が含まれています。 ","母集団分布 "]
["トービット回帰分析(下側が打ち切り）","クロス表データに欠損値は認められません。","母平均"]
["トービット回帰分析(上側が打ち切り）","カテゴリー数が規定値(1000)を超えました。順位相関の計算ができません。","母分散"]
["トービット回帰分析(両側が打ち切り）","カテゴリカル相関係数の計算中にエラーが起きました。"]
["トービット回帰分析(打ち切りなし）","と","正規分布"]
["混合分布回帰分析","のポリコリックまたはポリシリアル相関係数は計算されません。","一様分布"]
["分位点回帰分析","ポリコリック相関係数推定中にエラーが発生しました。HADを終了します。","標本サイズ"]
["重回帰分析（最尤法）","比較する群が規定値（100）を超えました。HADを終了します。","標本の数"]
[" ステップワイズ","多重クロス表は5変数までしか分析できません。","各標本の統計量"]
[" 媒介分析","総セル数が規定値(100000)より大きいため分析できません。","標本分布の統計量"]
["ロバスト回帰分析","多重クロス表(cellfreq)計算中にエラーが起きました。HADを終了します。","母平均を帰無仮説としたときの危険率"]
["多変量回帰分析","対数線形モデルは5変数までしか分析できません。","標本平均"]
["階層線形モデル","対数線形モデル(celldata)計算中にエラーが起きました。HADを終了します。","標本分散"]
["プロマックス回転","対数線形モデル(loglinear)計算中にエラーが起きました。HADを終了します。","不偏分散"]
["独立クラスタ回転","対数線形モデル(poissoncul)計算中にエラーが起きました。HADを終了します。","不偏分散の平均"]
["オブリミン回転","文字列データが含まれているため分析ができません。分析を中断します。","標本"]
["クォーティマックス回転","曲線当てはめでは，従属変数が確率（0～1の範囲）である必要があります。","正規分布"]
["構造方程式モデル","曲線当てはめ中に、予期せぬエラーが生じました。HADを終了します。","t分布"]
["平均値","文字列データが含まれているため分析ができません。分析を中断します。","※フィルタ適用中： "]
["合計値","グループ数が100を超える散布図が表示できません。","※グループ: "]
["主成分","予期せぬエラーが生じました。HADを終了します。","分析コード:"]
["変数の差","カテゴリ数が2より小さい変数があります。分析を終了します。"," 使用変数："]
["交互作用項","目的変数が文字列データのため分析ができません。分析を中断します。","各セルの平均値と標準偏差"]
["標準化得点を使用","※カテゴリ数が規定値（1000）を超えたため、検定できませんでした。","※エラーバーは標準誤差"]
["標準化","※従属変数よりも独立変数のカテゴリ数が多いため検定できませんでした。","※エラーバーは95%信頼区間"]
["中心化","行列が正方行列ではありません。","棒グラフ"]
["集団平均中心化","固有値分解(QR法)中にエラーが起きました。HADを終了します。","分散分析"]
["集団平均値","固有値分解(ヤコビ法)中にエラーが起きました。HADを終了します。","モデル適合"]
["順位化","F値が負の値になりました。HADを終了します。","誤差("]
["逆転","χ2乗値が負の値になりました。HADを終了します。"]
["変数+(","文字列データが目的変数に含まれているため分析ができません。分析を中断します。","誤差(その他)"]
[")","5要因までしか分析できません。","全体"]
["変数*(","共変量はスライス変数に指定できません。","誤差"]
["変数の","参加者内要因は測定要因に指定できません。","適合指標"]
["乗","水準数が規定値より大きい要因はスライス変数に指定できません。:規定値=","球面性の検定"]
["対数変換","モデルの自由度が規定値より大きいため分析できません。規定値=","χ2値"]
["逆正弦変換","水準数が規定値(","下限"]
["値の再割り当て","Saffer法では10より大きい水準数について多重比較は出力しません。","要因の効果(タイプⅡ & 平方和)"]
["ダミー変数","参加者内要因の交互作用をモデルに含める場合、その交互作用の下位の主効果をモデルから省くことはできません。","要因の効果(タイプⅢ & 平方和)"]
["平均値で分割","分散分析(anovainput)中にエラーが起きました。HADを終了します。","※球面性逸脱に対する自由度補正 = "]
["中央値で分割","分散分析出力(anova)中にエラーが起きました。HADを終了します。","補正なし"]
["中央値を高群","自由度が足りないため単純効果分析は実行できません。","補正df1"]
["中央値を低群","誤差が推定できないため、単純効果分析は実行できません。","補正df2"]
["中央値を欠損値","分散分析出力(anovaoutput)中にエラーが起きました。HADを終了します。","偏η2"]
["ダミー変数化","t検定出力(anovaoutput)中にエラーが起きました。HADを終了します。","偏ω2"]
["集団内通し番号","自由度が0以下のため分析できません。","一般化η2"]
["※統制変数= ","水準別誤差項を使用している場合は、プールされた誤差項を使用してみてください。","一般化ω2"]
["欠損","単純効果分析(anovasimple)中にエラーが起きました。HADを終了します。","推定平均と多重比較"]
["値ラベル","単純効果分析出力(anovasimpleoutput)中にエラーが起きました。HADを終了します。","※参加者内要因の多重比較 = ペアごとの誤差項"]
["欠損値","自由度が0以下の要因があります。分析を中断します。","※参加者内要因の多重比較 = 要因の誤差項"]
["共変量","分散分析(reganova)中にエラーが起きました。HADを終了します。","※共変量が平均値の場合の結果を出力しています。"]
["動詞","分散分析中(reganova2)にエラーが起きました。HADを終了します。","全体平均"]
["名詞","モデルに線形従属な変数が含まれているか、度数が0のグループがあります。分析を中断します。","水準"]
["複合名詞","分散分析(reganova3)中にエラーが起きました。HADを終了します。","要因"]
["形容詞","人数が一人未満のセルが含まれています。","水準ごとの平均値"]
["副詞","変数の分類に非階層クラスタ分析は利用できません。HADを終了します。","多重比較"]
["キーワード","非階層クラスタ分析の場合は，クラスタ数を指定する必要があります。「指定せずに分析」のチェックを外してください。HADを終了します。","修正Shaffer法"]
["同義語","データが距離行列の場合，改良k-means法，混合分布モデル，潜在クラス分析，潜在ランク分析は利用できません。HADを終了します。","Shaffer法"]
["出力→","データが正方行列ではありません。HADを終了します。","Holm法"]
["日本語","クラスター分析を実行するためには分類する対象数が3以上必要です。HADを終了します。","Bonferroni法"]
["English","潜在クラス分析の自由度が負になりました。HADを終了します。","主効果p値"]
["G/標準","潜在ランク分析の自由度が負になりました。HADを終了します。","差"]
["$設定$","すべての試行において不適解が生じました。HADを終了します。","効果量 d"]
["Kendall's W","不適解が生じました。HADを終了します。","名義水準"]
["中文","次元数が最大数を越えています。多次元尺度法は実行されません。:最大数 =  ","対応のない平均値の差の検定 (対応のないt検定)"]
["ローデータ","サンプルサイズが変数の数よりも少ないので、因子分析は実行できません。","従属変数"]
["〇","分散が0以下の変数が含まれています。分析を中断します。","対応のある平均値の差の検定 (対応のあるt検定)"]
["Yu Gothic UI","因子分析の収束計算中にエラーが起きました。HADを終了します。","等分散を仮定する場合の標準誤差"]
["MS UI Gothic","仮説因子負荷量行列の入力が正しくありません","差の検定"]
["Meiryo UI","初期解を出力します。","検定の種類"]
["Yu Gothic UI semilight","ターゲット負荷量行列の入力が正しくありません","Welch検定"]
["GLMM","独立クラスター回転中にエラーが起きました。HADを終了します。","t検定"]
["二項分布","直接オブリミン回転中にエラーが起きました。HADを終了します。","※Welch検定は2群の等分散を仮定しない検定です。"]
["一般化線形混合モデル","データの中に使用変数が見つかりません。","相関係数 r"]
[null,"推定ができませんでした。","単純主効果の検定"]
[null,"計算途中の解を出力します。","群分けする変数"]
[null,"※プロクラステス回転は収束しませんでした。"]
[null,"自由度が負の値になりました。HADを終了します。","スライス"]
[null,"ダミー変数にするためには、データはすべて整数である必要があります。HADを終了します。","要因の単純効果(タイプⅡ平方和)"]
[null,"等質性分析では、データはすべて整数である必要があります。HADを終了します。","要因の単純効果(タイプⅢ平方和)"]
[null,"カテゴリ型のデータセットではありません。HADを終了します。","※MSe = プールされた誤差項"]
[null,"全カテゴリーが0以下です。HADを終了します。","※MSe = 水準別誤差項"]
[null,"全カテゴリー数が最大値(500)を超えています。HADを終了します。","球面性逸脱に対する自由度補正"]
[null,"0あるいは1以外の数値があります。HADを終了します。","※単純主効果の自由度はSatterthwaiteの方法で補正されています。"]
[null,"カテゴリー数が最大数(100)を超えている変数があります。HADを終了します。","交互作用のp値"]
[null,"カテゴリ数が1の変数があります。HADを終了します。","比較対象"]
[null,"3つ以上の文字列を含んだ説明変数があるため分析ができません。分析を中断します。","Nullモデル"]
[null,"混合分布回帰分析ではクラスタ標準誤差の利用はできません。","飽和モデル"]
[null,"使用変数にカウント回帰分析のオフセット変数が見つかりません。","モデルの推定結果"]
[null,"使用変数に割合データの総試行数変数が見つかりません。","度数の推定"]
[null,"割合の総試行数変数を入力してください。","期待度数"]
[null,"ステップ間で説明変数の並び順が違っているところがあります。HADを終了します。","残差"]
[null,"二項回帰分析の生起数または総数に整数でない数値があります。HADを終了します。","標準残差"]
[null,"二項回帰分析の生起数が，総数よりも大きいサブジェクトがあります。HADを終了します。","最短距離法"]
[null,"変量効果に指定した変数が目的変数と同じです。","最長距離法"]
[null,"変量効果に指定された変数がモデルに含まれていません。","メディアン法"]
[null,"レベル2変数が目的変数と同じです。","重心法"]
[null,"レベル2変数が使用変数に含まれていません。","群平均法"]
[null,"単純効果の検定を行うためには、オプションの「交互作用項を含む場合、各変数を中心化をする」をチェックしてください。","可変法"]
[null,"の自由度が0以下になりました。分析を中断します。","ウォード法"]
[null,"誤差の自由度が0以下になりました。マルチレベルデータのチェックを外してみてください。分析を中断します。","マハラノビス距離によるk-means法"]
[null,"誤差の自由度が0以下になりました。分析を中断します。","混合正規分布"]
[null,"回帰分析に線形従属な変数が含まれています。","潜在クラス分析"]
[null,"回帰分析中にエラーが起きました。HADを終了します。","潜在ランク分析 (連続)"]
[null,"入力された参照カテゴリが見つかりません。分析を終了します。","潜在ランク分析 (順序)"]
[null,"目的変数のカテゴリ数が最大値（20)を超えています。分析を終了します。"," (等質分散)"]
[null,"ロジスティック回帰分析の計算途中で予測値がオーバーフローしました。"," (等質分散共分散)"]
[null,"データがモデルに適合していない可能性があります。"," (異質分散)"]
[null,"自由度が0のグループがあります。HADを終了します。"," (異質分散共分散)"]
[null,"順序回帰分析でオーバーフローしました。HADを終了します。","クラスタ分析"]
[null,"計算上のサンプルサイズが最大値を超えました。","分析の方法"]
[null,"判別分析中にエラーが起きました。HADを終了します。","距離の計算"]
[null,"判別分析実行中にエラーがありました。","データから距離行列を入力"]
[null,"逆行列が求まりません","尤度"]
[null,"目的変数に負の数が含まれています。","自己組織化マップ"]
[null,"カウント回帰分析では、目的変数は非負である必要があります。分析を終了します。","生成位相マップ"]
[null,"オフセット変数に0が含まれています。HADは終了します。","ローデータによるユークリッド距離"]
[null,"カウントデータの回帰分析中にエラーが起きました。HADを終了します。","標準化データによるユークリッド距離"]
[null,"分析中にオーバーフローしました。分析を終了します。","分類対象"]
[null,"分析中に予測値が0になりました。分析を終了します。","分類対象数"]
[null,"回帰分析（最尤法）中にエラーが起きました。HADを終了します。","パラメータ数"]
[null,"ガンマ回帰では目的変数が0より大きい値である必要があります。分析を中断します。","学習回数"]
[null,"打ち切りデータの回帰分析中にエラーが起きました。HADを終了します。","反復数"]
[null,"自由度が0になりました。HADを終了します。","推定回数"]
[null,"ロバスト回帰分析中にエラーが起きました。HADを終了します。","対数尤度"]
[null,"階層線形モデル中にエラーが起きました。HADを終了します。","倍率"]
[null,"従属変数群に線形従属な変数が含まれている可能性があります。HADを終了します","クラスタのメンバー"]
[null,"HAD2GLIMMIXでは，名義回帰は実行できません。","クラスタの数"]
[null,"HAD2GLIMMIXでは，プロビット回帰は実行できません。","クラスタ"]
[null,"HAD2GLIMMIXでは，一般化ポアソン回帰は実行できません。","所属数"]
[null,"HAD2GLIMMIXでは，打ち切りデータの分析は実行できません。","所属メンバー"]
[null,"HAD2GLIMMIXでは，混合分布回帰分析は実行できません。","クラスタの特徴 （得点は標準化得点)"]
[null,"変量効果に指定している変数が見つかりません。","デンドログラム"]
[null,"分位点には「ALL」か，0より大きく1より小さい数値を入力してください。","デンドログラムの表示法 = 距離の"]
[null,"had2glmmestan中にエラーが起きました。HADを終了します。","乗"]
[null,"※使用変数の中に，モデルに含まれていない変数があります。分析結果は使用変数で指定したすべての変数でリストワイズ削除しています。","※デンドログラムは上位"]
[null,"回帰分析出力(regoutput)中にエラーが起きました。HADを終了します。","クラスターに要約して表示しています。すべて表示したい場合はオプションで要約基準を変えてください。"]
[null,"階層線形モデル出力(hlmoutput)中にエラーが起きました。HADを終了します。","クラスタリングの経過工程"]
[null,"回帰分析出力(hraoutput)中にエラーが起きました。HADを終了します。","段階"]
[null,"スライス出力中にエラーが起きました。HADを終了します。","距離"]
[null,"相関行列の差の検定のためには目的変数に2変数以上指定する必要があります。","結合クラスタ"]
[null,"人数が4人以下のグループがあり続行できません。分析を終了します。","距離行列"]
[null,"割合データの回帰分析中にエラーが起きました。HADを終了します。","パラメータ推定値"]
[null,"ガンマ回帰分析中(gammacul)にエラーが起きました。HADを終了します。","潜在度数"]
[null,"ベータ二項回帰分析中にエラーが起きました。HADを終了します。","潜在確率"]
[null,"グループ数が1つしかありません。","ランク"]
[null,"欠損データが多すぎます","※順序配置条件が満たされました"]
[null,"グループ内の人数がすべて1になっています。","※順序配置条件が満たされませんでした"]
[null,"サンプルサイズが0のグループがあります。","項目参照プロファイル"]
[null,"制約の入力が正しくありません。","テスト参照プロファイル"]
[null,"パラメータ数が最大値(200)を超えました。","分散共分散"]
[null,"推定ができませんでした。オプションの「分散を非負に制約して推定する」をチェックして再度推定してみてください。","カテゴリ別反応確率"]
[null,"計算途中の解を出力します。","潜在クラスとの連関係数"]
[null,"構造方程式モデル中にエラーが起きました。HADを終了します。","潜在ランクとの連関係数"]
[null,"飽和モデルの推定ができませんでした。","潜在ランクとの順位相関係数"]
[null,"独立モデルの推定ができませんでした。","潜在クラスタへのロジスティック回帰分析 (参照カテゴリはCluster"]
[null,"サンプルサイズを指定する場合，頑健標準誤差の推定はできません。","潜在ランクへのロジスティック回帰分析 (比例オッズモデル)"]
[null,"サンプルサイズを指定する場合，欠損データの推定はできません。","潜在ランクへのロジスティック回帰分析 (非比例オッズモデル)"]
[null,"使用変数にない変数がモデリングスペースにある，あるいは使用変数の並びとモデリングスペースの変数の並びが一致していません。モデルスペースボタンを再度押して，再分析してください。","標準化"]
[null,"モデリングスペースがマルチレベルSEM用になっていません。再度モデルスペースボタンを押して，再分析してください。","※頑健標準誤差を用いています。"]
[null,"使用変数にない変数がモデリングシートにある，あるいは使用変数の並びとモデリングシートの変数の並びが一致していません。","近似R2乗値"]
[null,"モデルスペースボタンを再度押して，再分析してください。","クラスタ別ヒストグラム"]
[null,"マルチレベルSEMでは頑健標準誤差の推定はできません。","ランク別ヒストグラム"]
[null,"モデル制約が正しくないものがあります。HADはこれを無視します。","主成分得点"]
[null,"多母集団分析のサンプルサイズの指定は，\";\"で区切って，グループごとに指定してください。HADはこの制約を無視します。","多次元尺度法"]
[null,"制約が多すぎます","次元"]
[null,"サンプルサイズの入力が正しくありません。数値を入力してください。","スクリープロット"]
[null,"サンプルサイズの入力が正しくありません。1以上の整数を入力してください。","対角SMC"]
[null,"シート名","平行分析"]
[null,"が見つかりません。","SMC平行"]
[null,"指定されたデータは適切な共分散データではありません。","乱数相関行列"]
[null,"変数以上のデータは読み込めません","データ相関行列"]
[null,"を超えています","因子数"]
[null,"入力された変数名が見つかりません。","対角SMC平行分析"]
[null,"モデリングシートに読み込まれた変数名を入力してください。","乱数対角SMC"]
[null,"フィルターの値入力が正しくありません。","共通性の和の推移"]
[null,"値の入力が正しくありません。","共通性の和"]
[null,"分析コードが見つかりません。","サンプル"]
[null,"登録したデータセットを選択してください。","調整法"]
[null,"登録名を入力してください。","因子"]
[null,"使用変数を指定してください。","最尤法"]
[null,"リストに同じ登録名があります。上書きしますか？","最小二乗法"]
[null,"をリストに登録しました。","反復主因子法"]
[null,"を消去しますか？","非反復推定法"]
[null,"すべてのモデルを消去しますか？","（最大法）"]
[null,"すべてのモデルを消去しました。","（平均法）"]
[null,"分析コードのモデル","主成分法"]
[null,"モデル保存中にエラーが起きました。HADを終了します。","カテゴリカル因子分析(重みつき最小二乗法ソルバー利用)"]
[null,"モデル名を入力してください(「現在のモデル」と「分析コードのモデル」以外)","カテゴリカル因子分析(重みつき最小二乗法)"]
[null,"目的変数を指定してください。","抽出方法 "]
[null,"リスト内に同じモデル名があります。上書きしますか？","回転方法"]
[null,"をリストに登録しました。","（ターゲット行列："]
[null,"登録名を入力してください。","回転なし"]
[null,"現在のモデルは削除できません。","バリマックス回転"]
[null,"を消去しますか？","バイコーティマックス回転"]
[null,"モデルを指定してください。","クォーティマックス回転"]
[null,"ブートストラップのサンプル数の入力が正しくありません","エカマックス回転"]
[null,"分析コードのモデル","因子パーシモニー"]
[null,"投入基準確率の入力が正しくありません。","オーソマックス基準"]
[null,"削除基準確率の入力が正しくありません。","直交プロクラステス回転"]
[null,"平行分析のサンプリング数の入力が正しくありません。","斜交プロクラステス回転"]
[null,"VSSの複雑性の入力が正しくありません。","Harris-Kaiserの独立クラスタ―回転"]
[null,"1～3の間の整数を入力してください。","直接オブリミン回転"]
[null,"0～1000の間の整数を入力してください。","プロマックス回転"]
[null,"ExcelTTMファイルが見つかりません。","カイザーの基準化"]
[null,"ExcelTTMの分析結果が見つかりません","あり"]
[null,"ExcelTTMのデータを読み込みました。","なし"]
[null,"出現頻度の最小値には1以上の整数を入力してください。","因子パターン"]
[null,"クラスタ数には1以上の整数を入力してください。","反復回数"]
[null,"デンドログラムの要約基準には1以上の整数を入力してください。","収束基準"]
[null,"多次元尺度法の次元数には1以上の整数を入力してください。","乖離度"]
[null,"対応分析の次元数には1以上の整数を入力してください。","※計算の途中で固有値が負になりました。表示されているのは不適解です。"]
[null,"データのシートが見つかりません。","※最大反復数までに解が収束しませんでした。表示されているのは収束途中の解です。"]
[null,"指定されたシートにデータがありません。","※計算の途中で共通性が1に近い値になりました。表示されているのは不適解である可能性があります。"]
[null,"総反応数が0であるカテゴリがあります。HADを終了します。","※相関行列が正定値ではありませんでした。因子分析は実行できません。"]
[null,"潜在ランク分析の学習回数倍率の入力が正しくありません。","※モデルが最適化されませんでした。表示されている解は不正確である可能性があります。"]
[null,"潜在ランク分析の近傍関数の最小値の入力が正しくありません。","共通性"]
[null,"潜在ランク分析の反復推定回数の入力が正しくありません。","因子寄与"]
[null,"0より大きく1より小さい値を入力してください。","適合度"]
[null,"データがありません。データを入力してください。","※α係数とω係数は太字の項目から計算（負荷量が負のものは逆転）"]
[null,"csvファイルを書き出しました。","因子得点"]
[null,"パスが見つかりません。","逆転しない場合の信頼性係数"]
[null,"csvファイルを選択してください","因子間相関"]
[null,"csvファイルを読み込みました。","因子構造（因子との相関係数）"]
[null,"HAD2Rは現在オンです","閾値"]
[null,"HAD2Rは現在オフです","項目反応理論"]
[null,"ファイル名を入力してください。","項目特性"]
[null,"サンプルの数の入力が正しくありません。","識別力"]
[null,"0より大きい数値を入力してください。","困難度"]
[null,"マルコフ連鎖の数の入力が正しくありません。","テスト情報関数"]
[null,"ウォームアップの数の入力が正しくありません。","テスト情報曲線"]
[null,"採用の間隔数の入力が正しくありません。","項目特性曲線"]
[null,"コア数の入力が正しくありません。","項目特性関数"]
[null,"出力名を入力してください。","マルチレベル相関分析"]
[null,"R上でのデータ名を入力してください。","※対角行列(太字)は級内相関、上三角行列は個人レベル相関、下三角行列は集団レベル相関を表す"]
[null,"ヒストグラムの級数を指定してください。","検定統計量(Z値)と有意確率"]
[null,"ヒストグラムの級数は数値を入力してください。","※上段がZ値、下段がp値を表す"]
[null,"ヒストグラムの級数は2以上100未満の数値を指定してください。","有効サンプルサイズ"]
[null,"折れ線の太さは1以上の数値を指定してください。","グループ数"]
[null,"カーネル区間数は1以上の数値を指定してください。","グループ内人数"]
[null,"バンド幅パラメータは0より大きい数値を指定してください。","上の平方根"]
[null,"シートを選択してください。","全サンプル"]
[null,"と同じ名前のシートが存在します。","級内相関"]
[null,"その名前は既に使用されています。別の名前を指定してください。","信頼性"]
[null,"その名前は利用できません。別の名前を指定してください。","※グループ内カテゴリーで統制（級内相関が変わります）"]
[null,"すべてのシートを削除しますか？","等質性分析 (多重対応分析・数量化Ⅲ類)"]
[null,"選択したシートを削除しますか？","データ形式"]
[null,"移動するシートを元のHADファイルから削除しますか？","変数型"]
[null,"新規ブックにシートをコピーしました。","カテゴリー型"]
[null,"新規ブックにシートを移動しました。","全カテゴリ数"]
[null,"セルの幅を指定してください。","カテゴリ数"]
[null,"数値を指定してください。","クロス表型"]
[null,"6以上の数値を指定してください。","回答者"]
[null,"1以上の整数を指定してください。","固有値と相関係数"]
[null,"欠損値を指定してください。","カテゴリー数量化"]
[null,"乱数のシードを指定してください","カテゴリ名"]
[null,"乱数のシードには整数を入力してください。","のカテゴリ"]
[null,"対数線形モデルの0度数に加える値を指定してください","行のカテゴリ"]
[null,"対数線形モデルの0度数に加える値には0以上の値を入力してください。","ブートストラップ推定値の分布"]
[null,"対数線形モデルの0度数に加える値には0以上1未満の値を入力してください。","の係数"]
[null,"1以上の数値を指定してください。","ステップワイズ法"]
[null,"ショートカットキーは半角アルファベットである必要があります。","※有意な説明変数がありませんでした。"]
[null,"この機能はMacでは利用できません。","※交互作用項が含まれているので、説明変数はすべて中心化しています。"]
[null,"HADファイルが見つかりません。","※説明変数はすべて中心化しています。"]
[null,"このファイルはver15.30以降のHADファイルではありません。","多変量回帰分析"]
[null,"HADファイルのデータを読み込みました。","※PillaiとはPillaiのトレースを意味しています"]
[null,"最大反復数の入力が正しくありません。","説明変数の多変量検定"]
[null,"因子抽出の収束基準の入力が正しくありません","各目的変数に対する重回帰分析の標準偏回帰係数"]
[null,"0より大きく1以下の数値を入力してください。","正準相関分析"]
[null,"プロマックス回転のPowerの入力が正しくありません。","正準相関"]
[null,"1～10の数値を入力してください。","正準係数"]
[null,"独立クラスター回転のPowerの入力が正しくありません。","目的変数"]
[null,"因子寄与の重みの入力が正しくありません。","説明変数"]
[null,"0～変数の数の間の数値を入力してください。","成分"]
[null,"0～1の数値を入力してください。","標準化正準係数"]
[null,"Mac版あるいはソルバーオフ版ではソルバーは使えません。","構造係数"]
[null,"デンドログラムの表記方法の入力が正しくありません。","※残差共分散構造は，ガウスエルミート求積法が使用できないので，推定法を疑似最尤法に変更しました。"]
[null,"0より大きく5以下の数を入力してください。","※残差共分散構造は，ラプラス近似積分が使用できないので，推定法を疑似最尤法に変更しました。"]
[null,"1より大きい整数を入力してください。","※ガウスエルミート求積法は変量効果が二つ以上あるときは使用できないので，推定法をラプラス近似に変更しました。"]
[null,"デンドログラムの要約基準の入力が正しくありません。","ロバスト回帰分析"]
[null,"5以上の整数を入力してください。","プロビット回帰分析"]
[null,"反復回数の入力が正しくありません。","順序回帰分析"]
[null,"1以上の整数を入力してください。","ロジットリンク"]
[null,"収束基準の入力が正しくありません。","プロビットリンク"]
[null,"0より大きく1より小さい数値を入力してください。","補Log-Logリンク"]
[null,"1～10000の整数を入力してください。","負Log-Logリンク"]
[null,"推定精度の入力が正しくありません。","二項回帰分析"]
[null,"標準誤差計算用の微小値の入力が正しくありません。","名義ロジスティック回帰分析"]
[null,"マルチレベルSEMでは頑健標準誤差の推定はできません","ポアソン回帰分析"]
[null,"主効果の有意確率基準の入力が正しくありません。","対数リンク"]
[null,"最大反復回数の入力が正しくありません。","負の二項回帰分析"]
[null,"1～10000の数値を入力してください。","一般化ポアソン回帰分析"]
[null,"ブートストラップ法のリサンプリング数の入力が正しくありません。","トービット回帰分析"]
[null,"混合分布回帰の反復回数の入力が正しくありません。","下側が打ち切り"]
[null,"スライスの推定点の入力が正しくありません。","上側が打ち切り"]
[null,"0より大きいの値を入力してください。","両側が打ち切り"]
[null,"値の入力が正しくありません。","打ち切りなし"]
[null,"範囲の入力が正しくありません。","ベータ二項回帰分析"]
[null,"最小値から最大値は選択できません。","線形回帰"]
[null,"欠損値","正規分布"]
[null,"その他","対数正規回帰分析"]
[null,"新しい値の入力が正しくありません。","ガンマ回帰分析"]
[null,"コピー","混合分布回帰分析"]
[null,"～","オフセット項"]
[null,"サンプルサイズは1以上である必要があります。","※最適化計算が収束しませんでした。ポアソン分布に指定して分析してみてください。"]
[null,"最小値の入力が正しくありません。","※最適化計算が収束しませんでした。結果は不適解である可能性があります。"]
[null,"最大値の入力が正しくありません。","※尤度の計算中にエラーが発生しました。表示されているχ2乗値、情報量基準は正しくありません。"]
[null,"最小値より大きい数値を入力してください。","総試行数"]
[null,"平均値の入力が正しくありません。","収束"]
[null,"分散の入力が正しくありません。","不適解数"]
[null,"サンプルサイズの入力が正しくありません。","近似"]
[null,"サンプル数の入力が正しくありません。","-2対数尤度"]
[null,"平均値の入力が正しくありません。数値を入力してください。","Wilksのラムダ"]
[null,"分散の入力が正しくありません。数値を入力してください。","回帰係数"]
[null,"分散の入力が正しくありません。0より大きい値を入力してください。","判別係数"]
[null,"確率の入力が正しくありません。数値を入力してください。","参照カテゴリ"]
[null,"確率の入力が正しくありません。0から1を入力してください。","1つ下のランク"]
[null,"試行数の入力が正しくありません。数値を入力してください。","※分析の途中で応答確率が0になる項がありました。結果は不適解である可能性があります。"]
[null,"試行数の入力が正しくありません。0より大きい整数を入力してください。","※過分散パラメータが収束しなかったため、0に固定して推定しました。ポアソン分布に指定して分析してみてください。"]
[null,"平均値の入力が正しくありません。0より大きい値を入力してください。","クラス"]
[null,"過分散の入力が正しくありません。数値を入力してください。","残差分散"]
[null,"過分散の入力が正しくありません。0より大きい値を入力してください。","尺度パラメータ"]
[null,"形状パラメータの入力が正しくありません。数値を入力してください。","※2値変数をカテゴリカル変数として扱っています。"]
[null,"形状パラメータの入力が正しくありません。0より大きい値を入力してください。","※不均一分散を補正する頑健標準誤差を用いています。"]
[null,"尺度パラメータの入力が正しくありません。数値を入力してください。","※クラスタ内相関を補正する頑健標準誤差を用いています。"]
[null,"尺度パラメータの入力が正しくありません。0より大きい値を入力してください。","※ブートストラップ標準誤差・信頼区間を用いています。"]
[null,"αパラメータの入力が正しくありません。数値を入力してください。","※係数の検定はt分布に基づいて行っています。"]
[null,"αパラメータの入力が正しくありません。0より大きい値を入力してください。","標準化係数"]
[null,"βパラメータの入力が正しくありません。数値を入力してください。","擬似標準化係数"]
[null,"βパラメータの入力が正しくありません。0より大きい値を入力してください。","※表示されている係数は、あくまで効果量の目安程度に解釈してください。"]
[null,"言語の設定が正しくありません。","近似標準化係数"]
[null,")より大きい要因について推定平均・多重比較は出力しません。","※R2乗値が負に推定されたため，近似標準化係数は計算できません。"]
[null,"HADで予約されている「Data」という名前のシートが存在しています。シート名を変更してください。","多変量検定"]
[null,"分散の差の検定：群が1つしかありません","オッズ比"]
[null,"サンプルサイズよりも変量効果の数が多いため推定できません。","グループ判別"]
[null,"従属変数が二値データではありません。","予測"]
[null,"変量効果がありません。","正解率"]
[null,null,"全体正解率"]
[null,null,"予測曲線と近似予測区間"]
[null,null,"予測分布"]
[null,null,"予測区間"]
[null,null,"混合分布モデル"]
[null,null,"クラスのメンバー"]
[null,null,"クラスの数"]
[null,null,"回帰係数の共分散行列"]
[null,null,"階層線形モデル"]
[null,null,"グループ数"]
[null,null,"変量効果"]
[null,null,"※Nullモデルに切片の変量効果が含まれています。"]
[null,null,"逸脱度"]
[null,null,"推定したモデルのパラメータ数"]
[null,null,"NULLモデルのパラメータ数"]
[null,null,"近似R2"]
[null,null,"固定効果"]
[null,null,"※レベル1の説明変数はすべて集団平均で中心化しています"]
[null,null,"※回帰係数の変量効果を推定した場合、標準化係数は算出されません。"]
[null,null,"分散成分"]
[null,null,"サンプルサイズとグループ数が同じため、切片の変量効果は推定されません。"]
[null,null,"分散比率"]
[null,null,"変量効果の共分散行列"]
[null,null,"固定効果の共分散行列"]
[null,null,"※ステップの中に、収束していない、あるいは不適な解があります。"]
[null,null,"モデル比較"]
[null,null,"誤差df"]
[null,null," ΔF値"]
[null,null,"※R2乗値はCox-SnellのR2を用いています。"]
[null,null,"※R2乗値はR2DEVを用いています。"]
[null,null,"Δχ2値"]
[null,null,"非標準化係数"]
[null,null,"単純主効果の検定"]
[null,null,"※頑健標準誤差を使用しています。"]
[null,null,"交互作用の変数"]
[null,null,"検定する変数"]
[null,null,"4要因以上の交互作用のグラフは描写できません。"]
[null,null,"低群"]
[null,null,"高群"]
[null,null,"※解が収束しないか、不適解となりました。"]
[null,null,"グラフ"]
[null,null,"※順序回帰のグラフの値は正確ではありません。交互作用パターンを知る上での参考程度に利用してください。"]
[null,null,"主効果の検定"]
[null,null,"単純主効果の検定 (階層線形モデル)"]
[null,null,"HLMで単純効果分析をする場合，下位の交互作用項が含まれている必要があります。HADを終了します。"]
[null,null,"媒介分析"]
[null,null,"※使用変数で指定したデータセットでリストワイズ削除しています。"]
[null,null,"※分析中に収束しない、あるいは不適な解が得られました。"]
[null,null,"媒介変数なし"]
[null,null,"媒介変数あり"]
[null,null,"間接効果の検定 (正規性を仮定した場合)"]
[null,null,"検定法"]
[null,null,"※表示している係数は非標準化係数"]
[null,null,"※表示している係数は標準化係数"]
[null,null,"ブートストラップ信頼区間"]
[null,null,"標本数"]
[null,null,"標本生成法"]
[null,null,"パラメトリック"]
[null,null,"ノンパラメトリック"]
[null,null,"信頼区間推定法"]
[null,null,"パーセンタイル法"]
[null,null,"バイアス修正法"]
[null,null,"※ブートストラップ信頼区間のバイアス調整が不適です。結果は未調整の信頼区間を出力しています。"]
[null,null,"間接効果の分布"]
[null,null,"間接効果"]
[null,null,"調整変数"]
[null,null,"媒介変数なしの従属変数に対するモデル"]
[null,null,"媒介変数に対するモデル"]
[null,null,"媒介変数を含めた従属変数に対するモデル"]
[null,null,"偏相関行列の差の検定"]
[null,null,"相関行列の差の検定"]
[null,null,"χ2値 = "]
[null,null,"差の統計量（Z値）"]
[null,null,"確認的因子分析"]
[null,null,"探索的因子分析"]
[null,null,"モデル適合度"]
[null,null,"※モデルが識別できませんでした。推定値は正しくありません。"]
[null,null,"※解が収束しませんでした。推定値は正しくありません。"]
[null,null,"※パラメータ数が限度を超えたため適合度は表示されません。"]
[null,null,"推定"]
[null,null,"独立"]
[null,null,"※因子負荷量のサイズでソートしています"]
[null,null,"※標準誤差は計算されません"]
[null,null,"パス係数"]
[null,null,"平均・切片"]
[null,null,"標準化残差 (太字は有意な残差）"]
[null,null,"構造方程式モデル"]
[null,null,"マルチレベル構造方程式モデル"]
[null,null,"推定法"]
[null,null,"一般化最小二乗法"]
[null,null,"欠測パターン数"]
[null,null,"完全情報最尤法"]
[null,null,"パラメータ数"]
[null,null,"※自由度が負になり，モデルが識別できませんでした。推定は正しくありません。"]
[null,null,"※NULLモデルが推定できませんでした。適合度は表示されません。"]
[null,null,"※表記のパスは標準化係数"]
[null,null,"※表記のパスは非標準化係数"]
[null,null,"※頑健標準誤差を計算しています"]
[null,null,"※分散を非負に制約しています"]
[null,null,"パスの差"]
[null,null,"標準化解"]
[null,null,"間接効果(標準化)"]
[null,null,"パスの差(標準化)"]
[null,null,"回帰分析"]
[null,null,"語数"]
[null,null,"語"]
[null,null,"品詞"]
[null,null,"出現頻度"]
[null,null,"出現件数"]
[null,null,"クラスタの詳細"]
[null,null,"カテゴリ数量化"]
[null,null,"列のカテゴリ"]
[null,null,"主成分パターン"]
[null,null,"主成分寄与"]
[null,null,"寄与率(%)"]
[null,null,"累積寄与(%)"]
[null,null,"#devtoolsのインストール　すでにインストールしている場合は不要"]
[null,null,"#glmmstanのインストール"]
[null,null,"#proxyによってgithubに接続できない場合は以下のコードを実行してください"]
[null,null,"#ただし，proxyのURL,ユーザーID，パスワードはご自身で入力してください"]
[null,null,"install.packages(\"httr\")  #httrがインストールされている場合は不要"]
[null,null,"username = \"ユーザーID\", password = \"パスワード\"))"]
[null,null,"正規分布からの乱数"]
[null,null,"ポアソン分布からの乱数"]
[null,null,"二項分布からの乱数"]
[null,null,"負の二項分布からの乱数"]
[null,null,"ガンマ分布からの乱数"]
[null,null,"ベータ分布からの乱数"]
[null,null,"平均"]
[null,null,"分散"]
[null,null,"確率"]
[null,null,"試行数"]
[null,null,"過分散"]
[null,null,"尺度"]
[null,null,"適合度"]
[null,null,"R2乗値"]
[null,null,"KendallのW"]
[null,null,"共分散"]
[null,null,"ニュートン法"]
[null,null,"セカント法"]
[null,null,"準ニュートン法"]
[null,null,"秒"]
[null,null,"間接効果の交互作用効果"]
[null,null,"U ="]
[null,null,"BayesFactor"]
[null,null,"JZS"]
[null,null,"unit-information"]
[null,null,"(イエーツの連続性補正)"]
[null,null,"※連続性補正をする場合は分析オプションから設定を変更できます"]
[null,null,"R2"]
[null,null,"Adjust R2"]
[null,null,"一般化線形混合モデル"]

{"sheet":"$English$","index":8,"n_rows":725,"n_cols":32,"rows_kept":725,"hidden":true}
["基本システム用語","メッセージボックス","出力","ステータスバー","コントロール",null,"UserForm1","UserForm2","UserForm3","UserForm4","UserForm5","UserForm6","UserForm7","UserForm8","UserForm9","UserForm10","UserForm11","UserForm12","UserForm13","UserForm14","UserForm15","UserForm16","UserForm17","UserForm18","UserForm19","UserForm20","UserForm21","UserForm22","UserForm23","UserForm24","UserForm25","UserForm26"]
["DATA","statistics analysis software HAD",null,"During execution. . . . Data input","DATA\nINPUT",null,"Statistical analysis macro HAD","Adjustment of column width: HAD","Sheet management: HAD","Measure the mean value: HAD","Setting: HAD","Factor analysis settings: HAD","Regression model settings: HAD","Creating variables: HAD","Numerical calculation: HAD","Data set: HAD","HAD is calculating now…","Variable information: HAD","Use variables: HAD","Model selection in regression analysis: HAD","Statistical analysis macro HAD (Easy mode)","Mediated analysis settings: HAD","Model selection in factor analysis: HAD","Stepwise method settings","Scree plot settings","TTM2HAD","Advanced settings of latent rank regression analysis","Settings of HAD2GLIMMIX","HAD2R","Settings of HAD2glmmstan","Graph Settings","HAD2Stan_SEM"]
["MODELING","Activate the HAD file.","Summary statistics","During execution. . . .","Modeling\nSheet",null,"Include ID variables","HAD Default","Close","OK","Use created matrix.","Estimation","Cancel","Cancel","Calculation of inverse matrix","Rearrange variables to groups (Horizontal data to vertical)","Now calculating. Please wait. If calculation does not finish after a while, press the \"Suspend Calculation\" button below.","Filter","Cancel","Select a model to use in analysis.","Cancel","Link function of ordinal regression analysis","Select a model to use in analysis.","Stepwise method standard","Parallel analysis","Refer","Scale to the learning frequency","Estimation method","Refer","Pass of data file","By group","Cancel"]
["Solver Add-in","Error content:","Boxplot","During execution. . . . Analysis in preparation","Adjust\nColumns",null,"OK","Fit to variable name","Delete All","Reverse (Multiplyed by -1)","Output Settings","Factor Rotation","OK","OK","Eigenvalue of symmetric matrix (Jacobi method)","Group size =","Suspend Calculation","Value label","OK","Use variable","OK","Dispersion of count data","Cancel","Input standard","Sampling number =","Load ExcelTTM","Estimation setting of latent rank analysis (self-organization map)","Maximum likelihood method by Gauss-Hermite quadrature","Close","Refer","Label ID variable","OK"]
["Sheet manage","Select a variable name.","Histogram","During execution. . . .Analysis","Calculate",null,"Group mean centering (Name_g)","Manual","Delete All shets without mark below","Reverse","Output Lables","Max iterations =","Add Criteria","Separate by mean","Calculation of eigenvalue  (QR method)","Rearrange groups to variables (Vertical data to horizontal)",null,"Label","  Add  ->","Cancel","Detail Mode","Poission","OK","Delete standard","Randomize intial value","Minimum value of appearance frequency","Non-proportional odds model","Maximum likelihood method by Laplace approximation","Save data for R","Data file name","Show normal curve","HAD2Stan_SEM setting"]
["Boot HAD","Use of variables larger than 255 variables cannot be analyzed.","Frequency distribution","During execution. . . . Factor analysis","HAD2R",null,"Within-group mean (Name_m)","OK","Delete All Sheets","No Reverse","Missing value","Convergence index =","Delete Criteria","Calculate the total score of use variable","OK","(Make vertical data horizontal)",null,"@variable","<- Delete","OK","No overwrite","Negative binominal distribution","Use variable","Cancel","Simple structure analysis","Setting of words to use","Proportional odds model","False maximum likelihood method with limits","Loading csv file",".csv","Series of histogram=","Working directory of R"]
["Input variables","Select an analysis code.","Normality Test","During execution. . . . Cluster Analysis","TTM2\nHAD",null,"Cancel","Cancel","Delete All Sheets without \"$\"","There are items have negative factor loading.\nAre you going to calculate scale score by reverse these items","\".\" Period","Orthogonal index =","Centering all variables","Calculate the mean score of use variable","Cancel","(Makehorizontal data vertical)",null,"Variable name","Input all","  Add  ->","Significance Difference Test","Logit","Independent variable","OK","Cancel","Verb","Regression coefficient of latent rank regression analysis","False maximum likelihood method","Pass of folder","Cancel","Don’t show markers","refer"]
["Create variables","The analysis code is incorrect.","Scatter plot","During execution. . . . Homogeneity analysis","Analysis",null,"Dataset Type","Excel Default","Rename","Substract from max value + left value","user-defined",null,"Adjust categorical variables","Separate by median","Calculation of matrix formula","OK",null,"Value","Delete all","<- Delete","Independent","Probit","Save model","Default setting","OK","Noun","Estimation method in latenet rank analysis","Cancel","File name","OK","Draw linearzation curve","Data file name"]
["Run analysis code","The analysis code is inappropriate.","Statistics for each group","During execution. . . . Structural equation model","DATA\nSheet",null,"Significance Difference Test",null,"Show","Reverse","Appearance","Cancel","Type 3"," New Variables","Don’t ovewrite output","Cancel",null,"Exclude subject larger than the value","Use variables","Input main effect","Paried","Direction of censored data","Delete selected model",null,"Default setting","Adjective","Phase generation map","OK","Export","Data setting for R","Pile dot plot",".csv"]
["Apply analysis code to HAD","The setting of the modeling sheet will be initialized.","Kernel density estimation","During execution. . . output","UseVariable",null,"Multilevel Analysis",null,"Delete","Substract from left value","Save variable information","OK","Type 2"," Transformation","Create multivariate normal random number","Multilevel data",null,"Exclude subject smaller than the value","Data list","Input interaction effect","Equal Means Test","Lower side","List of saved models",null,"Non-iterative estimator (maximum method)","Adverb","Self-organization map","Default setting",".csv","Setting of MCMC","95% CI","Convert missing value to \"NA\""]
["Descriptive statistics","Initialize?","Cross Table","During execution. . . . Categorical correlation coefficient","Input variable",null,"Multilevel Corr",null,"Sheet Name",null," Appearance","Default","Covariate"," Calculation","sample size=","Ouput data set",null,"Use subjects only equal to the value","Variables to use in analysis","Dependent variable","Corr Analysis","Upper side","Select from saved models",null,"Main factor method","Keyword","Variance of neighborhood function","Structure of residual cov.","Refer","Sampling number","Standard error"]
["Histgram","Select a cell.","Test of the mean","During execution. . . . Multiple cross table","Control variable",null,"MUML Cov. Matrix",null,"Modeling Sheet",null," Analysis","(1 to 1000)","Multiple Comparison"," Recoding","Make cov. matrix congruent","Select data set",null,"Data is","Variables to exclude from HAD","Independent variable","Equal Corr Test","Both sides","Input from analysis code",null,"Non-iterative estimator (average method)","Synonym","Default setting","Primary autoregression (AR(1))","File name","Number of Malcov chain","Histogram"]
["Set as main data","The data includes formula error.","Multiple cross table","During execution. . . . Log-linear model","Move left",null,"Summary of Data",null,"Data Sheet",null," Graph","（0.00001 to 1）","Mod. Shaffer"," Dummy Variables","Simulation (for debug)","Create random number data",null,"Exclude subjec equal to the value","Variables to exclude","Delete from list","Item Analysis (αcoefficient)","Generalized Poisson",{"$nulls":3},"Output","Cancel","Sphericality (HF)","Load","Adoption interval (thin)","Scatter plot"]
["Add as variables","Convert the formula error to a missing value?","Principal component analysis","During execution. . . . Log-linear model","Variables",null,"Summary",null,"Sheet Manager",null," Shortcut","(1 to 10)","Shaffer","OK","Create random number","Current data:",null,"OK","Cancel","Save model","Reliability","Cancel","Use variables",null,"Graph transition of sum of commonality ","Appearance frequency of words","OK","Variance component (VC)","Convert missing value to \"NA\"","Number of warmup","Box plot"]
["Analysis code","The data includes a blank value.","Test of the difference between the unpaired average rank","During the simulation run. . . . (Current","Regression",null,"No overwrite",null,"Delete Sheet",null," Right click","(Weight: 0 to number of variables)","Holm","Cancel","Sampling","Cancel",null,"Cancel","OK","Delete selected model","One Sample","OK","Show models below",null,null,"Cross table of word and word","Number of repetition estimation","Aamorphous (UN)","OK","Parallelize","Don’t draw closing line on graph"]
["Variables","Confirm the number of formula error and / or missing value in the data.","Test of the difference between the paired average rank","During execution. . . . Analysis of variance","Factor Analysis",null,"Standarized (Name_s)",null,"Close",null," System","Paralle Analysis","Alpha of Tes","No overwrite","Matrix operation","OK",null,"Apply","Exclude  ->","List of saved models","Value =","default setting","Edit selected model",null,null,"Cross table of respondent and word","Estimation setting of latent rank analysis (EM algorithm)",null,"Convert \"NA\" to missing value","Core number","Show with monochrome"]
["Use variables","Cell with only space (variable name","Pearson's product moment correlation coefficient","During execution. . . . Analysis of variance output","Create variable",null,"Cov. for simple method",null,"Delete All",null,"Cancel","Sampling =","Bonferroni","No overwrite","OK","Designating sheet",null,"Variable name","<- Return","Select from saved models","Summary of Data","None","Apply setting",null,"Run parallel analysis","Run analysis","Variance of neighborhood function",null,"Object name of data on R","Default setting","Width of line="]
["Variables","line) is included in the data.","Covariance matrix","During execution. . . . Test of the difference between the means output","Data set",null,"Pairwise Cov.",null,"Move",null,"OK","Randomize","Error Term","Calculate the base score of use variable","Cancel","Using raw data",null,"Value","Load all","Input from analysis code","Summary","Negative Log-Log","Current model",null,"Sum of commonality","Cancel",null,null,"R code","Output name","Put gridline within graph"]
["Code","Confirm the data.","Spearman's rank correlation coefficient","During execution. . . . Analysis of variance simple effect test output","Sheet manage",null,"Covariance",null,"Move sheets to another book",null,"Cancel","Promax Power =","Pooled Error Term","Use standarized score for variable somposition","Uniform distribution","Using cov. data",null,"Label","Variables to load",null,"Frequency","Compensate Log-Log","Analysis method:",null,"VSS","No overwrite",null,null,"Turn on HAD2R","Data name on R","Overall setting of graph"]
["SEM","Variables larger than 1000 cannot be read.","Porikorikku correlation coefficient","During execution. . . . Cluster analysis","Preferences",null,"As Matrix",null,"History",null,"OK"," Harris-Kaiser Power =","Separate Error Term","Include median to upper group","Standard distribution","Use polychoric correlation data",null,"OK","Selec variables to exclude from HAD","Use variable","Scatter","Estimation method of multilevel regression analysis","Analysis code",null,"Complexity of VSS =","Distance matrix of word and word",null,null,"HAD2R is currently off","Output setting","Output kernel density score"]
[null,"Enter the data set.","Alpha coefficient","During execution. . . .","Filter",null,"Corr Analysis",null,"Protect",null,"Initialize HAD","Oblique"," Regression ","Include median to lower group","Sample size=","Raw data",null,"Cancel","Select variables to use in analysis","Show models below","Box Plot","Minimum square method","Show models below",null,null,"Reponse data of words by repondent",null,null,"Turn on HAD2R","Output stan result","Cancel"]
["Confirmatory","Exclude the variable previously set as \"variables to exclude from HAD\"?","Reliability Factor","During execution. . . . Cluster analysis","Value Labels",null,"Centered (Name_c)",{"$nulls":3},"Analysis setting will be initialized to the default setting of HAD, and all saved valuable information will be deleted.","Direct Oblimin"," ANOVA ","Make standard value to missing value","Number of samples","(mean by groups)",null,"Apply","Exclude all","Edit selected model","Linear Reg.","Maximum likelihood method","Delete all models",null,null,"Output data",null,null,"R code for loading data","Output stan code","OK"]
["Factor Analysis","Dollar sign, yen sign, comma, and space cannot be used in a variable name.","Test of the difference between the unpaired average value","During execution. . . . Cluster analysis: Drowing dendrogram","Labels",null,"read me",{"$nulls":3},"Cancel","(0 to 1)"," GLM","Standarized (Name_s)","Minimum value=","Data by group (group mean)",null,"Add","Control variables","Apply edit","Freq. by Cell","Type of robust standarderror","Model name",null,null,"Clustering words",null,null,"below","Install glmmstan","N of Kernel intervals ="]
["Multilevel","There is a variable with a same name.","Test for the difference between the paired mean values","During execution. . . . Multidimensional Scaling","@variable",null,"Pairwise Del.",{"$nulls":3},"Initialize setting"," Factor Analysis "," GLMM","Group Mean (Name_m)","Maximum value=","Output selected data",null,"Delete","  Add  ->","Current model","Lable","Correct cluster",{"$nulls":3},"Quantifying data",{"$nulls":3},"Output code for installation","Show error bars"]
["SEM","Variable value is larger than the maximum value (","Multiple regression analysis","During execution. . . . Latent rank analysis EM algorithm","Dependent",null,"Listwise Del.",{"$nulls":3},"Fixing window"," Cluster Analysis ","Cancel","Group Mean Centering (Name_g)","Population mean=","Output code of SAS",null,"Delete all filters","<- Delete","Analysis method","Group","Correct heteroskedasticity",{"$nulls":3},"Outputting cluster data",{"$nulls":4},"Default"]
["Constraint",") and therefore cannot be read.","Poisson regression analysis","Times eyes","Main effects",null,"Missing Data",{"$nulls":3},"Show all sheets"," HOMALS ","OK","Centering (Name_c)","Population variance=","Create multivariate normal random number",null,"Input selected cells","Register","Analysis code","Cross Table","Bootstrap sample number",{"$nulls":3},"Numer of clusters =",{"$nulls":4},"Don’t put error bars on bottom"]
["Group","An error occurred while loading the data. HAD will terminate.","Negative binomial regression analysis","During execution. . . . Latent rank analysis self-organizing map","Interaction",null,"Output Data",{"$nulls":3},"Load Pre-version HAD (HAD16 latter)"," SEM ","Cancel","Multilevel Data","Don’t ovewrite output","Create from cov. matrix of selected variable",null,"Apply filter","Delete","Show models below","Level of histogram =","Make initial value of random number random",{"$nulls":3},"Multidimensional scale method",{"$nulls":4},"Parameter of bandwidth="]
["Max","Only regression analysis and factor analysis can be used, when using data from a separate sheet.","Logistic regression analysis","During execution. . . . In standard error calculation","Settings",null,"Multilevel Data",{"$nulls":3},"No Protection sheet","Simple structure analysis","OK","No overwrite","Noraml","Designating a sheet",null,"Use all data for analysis","List of registered variables","Delete all models","Normal test","Bootstrap sample number=",{"$nulls":3},"Maximum distance method",{"$nulls":4},"Put error bars on line graphs"]
["Min","Variables larger than the maximum value (","Gamma regression analysis","During execution. . . . Factor analysis iterations =","Run",null,"(ICC)",{"$nulls":3},"InitializingSheets","Cancel","DF correction for sphericity assumption","OK","Poisson","Cancel ",null,"Input selected cells","Show regsiterd variables below","Selecting a model to use in analysis","Rank Corr","Parametric",{"$nulls":3},"Group average method",{"$nulls":4},"Back"]
["Solver on","cannot be analyzed. ","Linear regression analysis","During execution. . . . Factor analysis iterations =","Filter Off",null,"Pairwise Corr",{"$nulls":3},"\"NA\"","OK","H-F","Cancel","Cancel","OK",null,"Delete",null,"Model name","Covariance","Nonparametric",{"$nulls":3},"Ward method",{"$nulls":4},"Pile violin plot"]
["Solver off","Variables cannot be created when using data from a separate sheet.","Discriminant analysis","During execution. . . . Categorical factor analysis ...","No overwrite",null,"Data Reconst.",{"$nulls":3},"OK","Default","G-G","List-wise del. (Composite)","OK","No overwrite",null,"Input selected cells",null,null,"Non-parametric Test","Extraction method of bootstrap sample",{"$nulls":3},"Number of demensions =",{"$nulls":4},"Mark mean"]
["Polychoric Corr Data","Categorical factor analysis cannot be run from covariance matrix data.","Factor analysis","Newton's method","Contin.",null,"Rearrange variables to groups",{"$nulls":3},"Cancel","Non-iteration method (Max)","Lower","List-wise del. (Scale)","Binominal","Sample size=",null,"Variable name",null,null,"Paried","Setting of random number",{"$nulls":3},"Appearance frequency of clusters",{"$nulls":4},"Bar graph"]
["Cov Data","Cluster analysis cannot be run from covariance matrix data.","Hierarchical cluster analysis","Quasi-Newton method","Order",null,"Pairwise Dataset",{"$nulls":3},"Show","Principle factor","No correct","List-wise del. (Dummy)","Neg. binominal","Create univariate standard normal random number",null,"OK",null,null,"Independent","Estimation method of bootstrap confidence interval ",{"$nulls":3},"Sheet name of data",{"$nulls":4},"Estimate Kernel density"]
["Procrustes Rot.","HOMALS cannot be run from covariance matrix data.","K-means method","Secant method","Ratio",null,"Number of people within group =",{"$nulls":3},"Hide","VSS","Variable Settings (Regression and GLM)","Mean =","Mean","Create random number data from standad normal distribution",null,"Cancel",null,null,"Relationships between Variables","Percentile method",{"$nulls":3},"Correspondence analysis",{"$nulls":4},"Change by sample size"]
["Rotation","SEM is not implemented in Mac version.","Sample size","During execution. . . . Factor scores calculating","Count",null,"Factor Analysis",{"$nulls":3}," Delete ->","Complex of VSS","Method","SD =","Variance","Randomize",null,"Apply",null,null,"Correspondence Analysis","Bias correction method",{"$nulls":3},"Number of demensions ="]
["Nearest neighbor method","This HAD is a solver off version. Download a solver on version.","※Standard deviation is the square root of the unbiased variance has been output.","During execution. . . . Factor scores calculating (EAP division quadrature) ...","Censored",null,"Item Analysis",{"$nulls":3},"<-Back","Sum of Comunality","Nominal Alpha","Substraction","Sample size","Change sample size",null,"Create filter variable",null,null,"Multilevel Analysis","Show standarized coefficient",{"$nulls":3},"Cluster analysis"]
["Furthest neighbor method","Open and run the model space.","Variable name","During execution. . . . Factor scores calculating (EAP Monte Carlo integration) ...","Nominal",null,"Rearrange groups to variables",{"$nulls":3},"Show All","Non-repeating esitimation method (average method)","Default","Addition","Probability","pairwise data set",null,"Make current filter setting a variable",null,null,"Multilevel Corr","Show path diagram",{"$nulls":3},"Ouput of score data"]
["Median method","Factor score cannot be calculated from the data in a specified sheet","N","During execution. . . . Factor scores calculating (MAP method) ...","Mixture",null,"(Make vertical data horizontal)",{"$nulls":3},"Delete All","Precise, but takes time","Default","Multiplication","Trials","Listwise del.",null,"(Exclude=1, Use=0)",null,null,"MUML Cov. Matrix",{"$nulls":4},"Varimax rotation"]
["Centroid method","Robust standard error cannot be used when using covariance matrix data.","Mean","During execution. . . . Factor analysis the number of times =","Quantile",null,"(Makehorizontal data vertical)",{"$nulls":3},"Reload","Graph transition of sum of commonality ","Default","Cancel","Mean","No overwrite",null,"Make this variable a grouping variable",null,null,"Pairwise Corr",{"$nulls":4},"With weight"]
["Group average method","Clustered standard error cannot be used when using covariance matrix data.","Median","During execution. . . . Parallel analysis iterations =","RobustSE.",null,"Response variable =",{"$nulls":3},"Initialization All","Search cut point of scree plot","Satterthwait Correction","OK","Mean","Rearranging data",null,"OK",null,null,"Pairwise cov.",{"$nulls":4},"Without weight"]
["Flexible method","Variables cannot be categorized in a k-means analysis.","SD","During execution. . . . Item response theory graph output","ClusterdSE.",null,"Regression analysis",{"$nulls":3},"Default","Search efficient model (recommended)","Paired Error Term","No overwrite","Dispertion","Rearranging data",null,"Cancel",null,null,"Distinguishable",{"$nulls":4},"Summarization criterion of the dendrogram="]
["Ward method","Distance matrix cannot be analyzed in a k-means analysis.","Varinace","During execution. . . .Regression analysis","Save model",null,"Residual score",{"$nulls":3},"Adjust Cell's Width","Default","Factor Error Term",null,"Don’t ovewrite output","Rearranging multi-level data",null,"Add @variables",null,null,"Intra-Class Correlation",{"$nulls":4},"Summarize dendrogram"]
["Cluster Analysis","Variables cannot be categorized in a mixture model.","Skewness","During execution. . . . Regression analysis step","Regression",null,"Control by category",{"$nulls":3},"Error bar","Cancel","MC in Within Factor","- Variable","Randomize","Turn filter off",null,"Delete @variables ",null,null,"Multilevel data",{"$nulls":4},"Cluster data"]
["k-means","Distance matrix cannot be analyzed in distance matrix analysis.","Kurtosis","During execution. . . . Regression analysis test of the simple main effect","ANOVA",null,"Load modeling sheet",{"$nulls":3},"SE","OK","Other Settings","Variable +","Shape","Create tomake cov. matrix congruent",null,"@variables",null,null,"Fiter Off",{"$nulls":4},"Main factor analysis"]
["Mahalanobis","Variables cannot be categorized in a latent class analysis.","Min","During execution. . . . Mixture distribution regression analysis","GLM",null,"Enter number of variables to use",{"$nulls":3},"95%CI","Method","Centering Covariates","Power","Gamma","List-wise del.",null,"Variable name to assign",null,null,"Histgram",{"$nulls":4},"Main factor analysis"]
["Mixture","Distance matrix cannot be analyzed in a latent class analysis","Max","During execution. . . . Latent Rank Regression analysis","GLMM",null,"Interaction term",{"$nulls":3},"Cancel","Ward method","Std Coeff.","Power","Scale","Cov. matrix for multi-level model",null,"Apply",null,null,"APIM",{"$nulls":4},"Correspondence analysis"]
["Latent Class","Variables cannot be categorized in a latent rank analysis.","Sample size","During execution. . . . Generalized linear mixed model preparing","HRA",null,"Easy Mode",{"$nulls":3},"OK","Group mean","Run logistic regression analysis when response variable is 2 value data","Variable *","Alpha","Between level",null,"Delete all @variables",null,null,"Reg per Group",{"$nulls":4},"Rearrange by size"]
["Latent Rank","Distance matrix cannot be analyzed in latent rank analysis.","S.E.","During execution. . . . Test of the generalized linear mixed model simple main effect","Stepwise",null,"Distinguishable",{"$nulls":3},"Histgram ","Centroid method","Step-wise method","Logarithm","Beta","Within level",null,"Cancel",null,null,"Bubble Chart",{"$nulls":4},"(Used in main factor analysis)"]
["Continuance","Missing value estimation cannot be run in a generalized least square.","95% accuracy","During the bootstrap execution. . . . (Current","Mediation",null,"(Within group mixture)",{"$nulls":3},"Scatter Plot","Furthest ","Multivariate regression","Dummy Variables","Beta","Serial number within group",null,"OK",null,null,"PCA",{"$nulls":4},"(Used in correspondence analysis"]
["Ordered","Structure equation modeling cannot be run from covariance matrix data.","score","During execution. . . . Bootstrap process","No step",null,"Multilevel regression analysis",{"$nulls":3},"Draw line","Nearest","Multiple regression analysis","Difference obtained by subtracting variables from the first variable","From data set","Create expotential family random number",null,"variable name",null,null,"Means per Group"]
["Exogenous","Model space is not used in an exploratory factor analysis.","Normality Test","During execution. . . .GLMM (NULL Model)","Residual score",null,"Correlation within series=",{"$nulls":3},"No Error bar lower","Dendrogram","Difference of correlation coefficient","Old Value",null,"Create univariate expotential family random number",null,"code explanation",null,null,"graph Option"]
["Path","Enter a use variable.","Chi-squared","During execution. . . . GLMM","HAD2GLIMMIX",null,"Remove:",{"$nulls":3},"graph","Distance to the ","Output standard coefficient of logistic count regression analysis","New Value",{"$nulls":3},"analysis method:",null,null,"Multi Cross Table"]
["Covariance","Sum of use variables and number of factors exceed the prescribed value (95).\"","p-value","During execution. . . . GLMM output","HAD2glmmstan",null,"Bootstrapping analysis",{"$nulls":3},"Monochrome","Power","Calculation may take a while","Other Values",{"$nulls":3},"use variable:"]
["Initialization","Sum of use variables and number of factors exceed the prescribed value (50).\"","Jacques Vera test","During execution. . . . Mediated analysis","Factor",null,"bootn=",{"$nulls":3},"No Frameborder","Output clustering process","Centering variables in interactions","Missing Value",{"$nulls":3},"use variable name"]
["Check","All number of latent factors are 0.","Statistics","During execution. . . . Regression analysis step","Cluster",null,"Randomize",{"$nulls":3},"No Marker","Ooutput Settings",null,"Specify Range",{"$nulls":3},"run code"]
["HAD2Stan","Select 2 or more variables.","Correction p value","During execution. . . . Multivariate regression analysis","HOMALS",null,"Scree plot",{"$nulls":3},"Error bar on Line graph","Output Distance Matrix",null,"Specify Value",{"$nulls":3},"New data can be scored the same way by running the new variable code again."]
["Path","The model cannot be discriminated. Decrease the number of parameters to estimate.","Kolmogorov-Smirnov test","During execution. . . . Mediated analysis output","SEM",null,"Data cov. matrix",{"$nulls":3},"OK","MDS Settings","Count Regression (Distribution)","to",{"$nulls":3},"code"]
["Covariance","There is a factor without measurement items. ","※ Jacques Bella test is a test for the null hypothesis that the kurtosis and skewness are zero. We used the Chi-squared test(df=2)","During execution. . . . Structural equation modeling ...","Plus F",null,"Frequency",{"$nulls":3},"Cancel","Dimension","Poisson","Copy Old Value"]
["Delete Diagram","Designate 2 or more variables in a use variable.","Frequency of each cell","During execution. . . . Structural equation modeling ...","Minus F",null,"Correspondence",{"$nulls":3},"Shorcut Key","Default","NBinomial","Missing Value"]
["Apply Diagram","An error occurred while drawing path diagram.","Sample size =","During execution. . . . Structural equation modeling ...","Diagram",null,"Rank Corr",{"$nulls":3},"Show Modeling Sheet","Cancel","Ratio Regression (Link function)","Specify Value"]
["Redraw","ANOVA cannot be run from covariance matrix data.","(List Wise removed)","During execution. . . . Structural equation modeling ...","Slice",null,"As Matrix",{"$nulls":3},"Show History","OK","Probit","OK"]
["DV ->","Generalized linear model cannot be run from covariance matrix data.","Frequency","During execution. . . . Structural equation modeling ...","Centering covariate",null,"Scatter",{"$nulls":3},"Input Variables","Type of Data","Logit","Cancel"]
["Slice ->","Hierarchical linear model cannot be run from covariance matrix data.","Ratio(%)","Criterion","Nominal α",null,"Scale mean",{"$nulls":3},"Default","Variable type: category is coded as numbers in a variable","Compensate Log-Log","Delete"]
["Regression","Discriminant analysis and multivariate regression cannot be run from covariance matrix data.","Total frequency",null,"Generalized ES",null,"Sum",{"$nulls":3},"Default","Category reacting model: reaction to category is coded in 0 or 1","Negative Log-Log","No overwrite"]
["Robust Reg","Enter ID variable in the B2 cell.","Log-linear model",null,"Unbiased ES",null,"Split by median",{"$nulls":3},"Default","graph output settings","Censored Regression","List-wise del. (Reassignment)"]
["Robust SE","Use variable is not entered.","Variable",null,"Log Linear",null,"Split by mean",{"$nulls":3},"Sheet manager","Cross table type: when data is cross table of 2 variables","Lower","Composite variable will be made from use variable"]
["Clustered SE","Response variable of the regression analysis is not entered","Since the frequency is present cell of 0, We have added",null,"CWC on Level1",null,"Parallel analysis",{"$nulls":3},"Show History","Both rows and colums will be plotted at the same time\n for cross table type","Upper","Mean will be 0"]
["Bootstrap","Response variable is not in the use variables.",".",null,"Discriminant Analysis",null,"Multivariate random number",{"$nulls":3},"Number of save history","Show Gridline","Both","Group mean will be centerized"]
["Model ->","Response variable is not in the covariance matrix data.","Cell number",null,"Multivariate Reg",null,"Use standarized score",{"$nulls":3},"Cell Width","Show Dimension Line","None","Group mean will be calculated"]
["Requiard ->","Interaction effect cannot be examined from a covariance matrix data.","Test and relevance between variables",null,"Means per cells",null,"Base score",{"$nulls":3},"Show new sheet left","Kaiser normalization","GPoisson","Use variable will be separated into 2 groups (lower=0, upper=1)"]
["Mediation","Interaction effect cannot be examined in a mediation analysis.","Estimation of each hierarchy",null,"Mediation settings",null,"Categorical Corr",{"$nulls":3},"Number of the levels of categorical analysis","Summary Dendrogram","Discriminant Analysis","Use variable will be converted to dumyy variable"]
["Linear model","Response value is not entered.","way model",null,"Stepwise settings",null,"As Matrix",{"$nulls":3},"N of levels are","More than","Iteration Criteria (GLM)","Aritumetic of use variable and constant"]
["Random","5 variables will be entered for the interaction term since there are many use variables.","Estimation results of the saturation model",null,"Hide history",null,"Level of category",{"$nulls":4},"objects","Max iterations","Nonlinear transformation of use variable"]
["Residuals ->","Variables more than use variables cannot be designated","Coefficient",null,"Delete all",null,"Full-ML",{"$nulls":3},"HAD version","Run Parallel Analysis","Convergence","Create variable with current filter setting reflected (Exclude=1, Use=0)"]
["Random ->","Mean of each cell cannot be calculated from a covariance matrix data.","Lower",null,"Analysis",null,"Two-Step",{"$nulls":3},"hadversion","Varimax rotate when depth = 1","Variable Settings (HLM)","Create filter variable"]
["ANOVA","Discrimination analysis can only be run when using raw data.","Upper",null,"Sheet\nmanage",null,"From startup",{"$nulls":3},"File","k-means","Adjust categorical variables","Mean Score"]
["Covariate ->","Regression analysis of ordinal data can only be run when using raw data.","Z value",null,"Close",null,"As Cross Table",{"$nulls":3},"Seed","Randomize","Centering all variables","Sum Score"]
["Repeated ->","Regression analysis of nominal data can only be run when using raw data.","Frequency distribution table",null,"binary",null,"As Row Data",{"$nulls":3},"System Timer","Mahalanobis","Centerize level 1 variable by group mean (recommended)","Principal Component Score"]
["Log Linear Model","Regression analysis of ratio data can only be run when using raw data.","Histogram (normality test)",{"$nulls":3},"Box Plot",{"$nulls":3},"Fix Seed","Hierarchical","Iteration Criteria (HLM)","Subtracting variables from the first variable"]
["Discriminant Analysis","Mixture regression analysis can only be run when using raw data.","Appearance value",{"$nulls":3},"Mtrx. Cul",{"$nulls":3},"Thickness of Line graph","k-means","Max iterations","Convert each variable's mean and standard deviation"]
["Multivariate Reg","Regression analysis of count data can only be run when using raw data.","Probability(%)",{"$nulls":3},"Calculation or variables",{"$nulls":3},"Times New Roman (output font)","Initial Value","Convergence","Centerize each variable by group mean (multi-level data)"]
["IV","Regression analysis of censored data can only be run when using raw data.","Effective frequency",{"$nulls":3},"Dummy code",{"$nulls":3},"Graduation marks are inside","PCA","Default","(Enter maximum value + 1)"]
["HLM","Quantile regression analysis can only be run when using raw data.","Effective probability",{"$nulls":3},"Difference of variables",{"$nulls":3},"BoxPlot BarChart","Random","Cancel"]
["Regression","Missing value cannot be analyzed in a multilevel analysis.","Cumulative probability",{"$nulls":3},"Non-parametric Test",{"$nulls":3},"DotPlot","Iteration","OK","Group Mean Centering (Name_mc)"]
["Gaussian","Missing value estimation estimates the variance of exogenous variable.","Total",{"$nulls":3},"Relationships between Variables",{"$nulls":3},"Japanese font","Iterations =","Standard Error","Calculate centerized group mean"]
["Log normal","Missing data cannot be estimated in a generalized least square method.","Normality",{"$nulls":3},"Paried",{"$nulls":3},"Gauss Curve","Scale score calculation method","Model SE","Centerize and create interaction term"]
["Gamma","An error occurred while starting HAD. HAD will terminate.","Section",{"$nulls":3},"Independent",{"$nulls":3},"Show Error bar","Sum","Robust SE","Arcsine transformation of variable (angular transformation)"]
["Ordered Reg","Hierarchical input method cannot be used in a mixture regression analysis.","Class value",{"$nulls":3},"Equal Means Test",{"$nulls":3},"graph Option","Mean","Centering interaction term","Interaction term will be created"]
["Logistic","Enter the number of clusters.","Uniformity Test",{"$nulls":3},"Independent",{"$nulls":3},"Log Linear Model (zero freqency option)","Convergence =","Output Settings","Filter Off"]
["Probit","Enter the group ID in the first cell.","Degree of freedom",{"$nulls":3},"Paried",{"$nulls":3},"Language","Max iterations =","Output cov. matrix of Fixed effect","Filter Off"]
[null,"Enter a variable name to use in the analysis in \"use variable:\"","Number of occurrences",{"$nulls":3},"Data by groups",{"$nulls":3},"Multiple Comparison","Iteration Settings","Include Random intercept in Null model","Filter Off"]
[null,"Use variable exceeds the maximum value (","mode",{"$nulls":3},"Linear Reg",{"$nulls":3},"Bonferroni","Sort output of CFA","Random Effect","Filter Off"]
["MultiNominal",").","Curve fitting",{"$nulls":3},"Reassignment of values",{"$nulls":3},"Holm","Estimation accuracy =","Estimate Random intercept","Filter Off"]
["Ref.","Data entry is incorrect. Confirm.","Parameters of the cumulative normal curve",{"$nulls":3},"Filter variable",{"$nulls":3},"Shaffer","Default setting","Other Settings","Rank Score (Name_rs)"]
["Binomial","A blank variable name is included. Confirm the Box variable.","Mean",{"$nulls":3},"Cell mean",{"$nulls":3},"Mod. Shaffer","Cancel","Clustered SE","Old Value  -> New Value"]
["BetaBinom.","Variables with an identical name are included.","The estimation of the threshold",{"$nulls":3},"One Sample Test",{"$nulls":3},"Yate's continuity correction","OK","Heteroskedasticity","Add"]
["Occor","cannot be found. Reload and confirm the variable name.","25% threshold",{"$nulls":3},"Value =",{"$nulls":4},"Estimate SE","Show check box to switch to modeling space","More than"]
["Total","\"*\" cannot be used in a variable name.","50% threshold",{"$nulls":3},"Freq. by Cell",{"$nulls":4},"Epsilon","Output","SD:  Delete Outlier Criteria"]
["Mixture","Variables with an identical name are included in the control variables.","75% threshold",{"$nulls":3},"Mplus code",{"$nulls":4},"Output Settings","Cov. matrix of Coefficients","Group ID Serial Number"]
["Class","Variable(s) identical to the use variable are included in the control variables.","Quartiles",{"$nulls":3},"Lable",{"$nulls":4},"Std. Solution","Split cov. term by steps and input","Transform String to Numeric"]
["Count Reg","2 or more variables needs to be designated for the equality of means test.","Quadrant",{"$nulls":3},"Group",{"$nulls":4},"Estimation","Variable input method"]
["Poisson","Including the ID variables, designation of 4 or more variables is required for equality of correlation coefficient test.","Interval estimation of the average",{"$nulls":3},"Reliability",{"$nulls":4},"Estimate variance of Exogenous","Other Settings"]
["NBinomial","Response variable of the regression model needs to be entered.","Reference value",{"$nulls":3},"Cross Table",{"$nulls":4},"Non-negativity constraint for variances","Effect size type"]
["GPoisson","Response variable of the regression model is not included in the use variables.","Confidence interval",{"$nulls":3},"Equal Corr",{"$nulls":4},"Scree Plot Settings"]
["Offset","2 or more response variables are required for within-participant analysis.","Difference",{"$nulls":3},"Median",{"$nulls":4},"Apply factor correlation","Pearson's r"]
["Tobit Reg","Entered number of levels of repeated measure is incorrect.","DF",{"$nulls":3},"Within-group mean + centerize (Name_mc)",{"$nulls":4},"Calculation method of factor score","Hedges's g"]
["Lower","There is a same variable as the response variable in the covariate.","t value",{"$nulls":3},"Intra-Class Correlation",{"$nulls":4},"Regression method","Calculate standard error by level"]
["Upper","There is a variable not included as a use variable in the covariate.","※ Error bars show the standard error.",{"$nulls":3},"Number of class =",{"$nulls":4},"Use Monte Carlo integration for EAP estimation (when categorial)","Population estimate amount"]
["Both","There is a same variable as the response variable in the measurement factor.","※ Error bars show the 95% confidence interval.",{"$nulls":3},"Normality Test",{"$nulls":4},"Categorical FA","Generalization effect amount"]
["None","There is a variable not included as a use variable in the measurement factor.","Group",{"$nulls":3},"Interaction term",{"$nulls":4},"EAP","Differential effect"]
["Quantile Reg","Interaction term cannot be inputted in a mediation analysis.","Covariate",{"$nulls":3},"No overwrite",{"$nulls":4},"MAP","Factorial effect"]
["Quant.","Only 2 variables in an explanatory variable can be inputted for a model of mediation analysis.","Correlation",{"$nulls":3},"Filter Off",{"$nulls":4},"Robust SE","Pool for between, by levels for within"]
["Factor Analysis","Response variable is included also in the grouping.","The coefficient of determination",{"$nulls":3},"Bubble Chart",{"$nulls":4},"No correct.","Test using student's t"]
["Factors","Response variable is included also in the explanatory variable.","Covariance",{"$nulls":3},"Histogram",{"$nulls":4},"Using Solver for Categorical FA","Correction SE"]
["Method","Interaction term cannot be inputted when using covariance matrix data.","Estimation",{"$nulls":3},"Congruent",{"$nulls":4},"Ordered cluster","No correction"]
["Rotation","A variable not designated in the use variable is included.","Linear Regression",{"$nulls":3},"Reg per Group",{"$nulls":4},"Ordered","Robust SE"]
["Score","There are several identical variables in the explanatory variables.","Model",{"$nulls":3},"Equal Variance",{"$nulls":4},"Continu.","Clustered SE"]
["ML","Covariates are not included in the ANOVA model.","Intercept",{"$nulls":3},"APIM",{"$nulls":4},"Mixture","Test using student's t"]
["ULS","Variables of within-participant factor are not included in the ANOVA model.","Slope",{"$nulls":3},"Unifom Test",{"$nulls":4},"EII","No correction"]
["Prin it","Explanatory variable is not included in the model.","Regression equation",{"$nulls":3},"Ranking score (Name_rs)",{"$nulls":4},"EEE","Bootstrap"]
["Principal","Mediation analysis requires 2 or more independent variables.","The regression line of each group",{"$nulls":3},"PCA",{"$nulls":4},"VII","Iterations ="]
["Categorical","Number of interaction terms exceeds the value limit.","※ it was not able to display all of the regression line. You are viewing the results of the first 255 group.",{"$nulls":3},"BM test",{"$nulls":4},"VVV","Randomize"]
["EV more than 1","Entered explanatory variable is inappropriate.","※ it was not able to display all of the regression line.",{"$nulls":3},"Serial number within group",{"$nulls":4},"Variance Model","Robust Regression"]
["Oblique","Enter the variables including those from the previous step for the next step.","Bubble chart",{"$nulls":3},"Convert text to values",{"$nulls":4},"Latent Class Analysis","Output cov. matrix of Fixed effect"]
["None","When designating 2 grouping variables (slice variables), 3-factor interaction needs to be included in the model.","Rank correlation coefficient",{"$nulls":3},"Means per Group",{"$nulls":4},"Learning frequency scale","C-M"]
["Orthogonal","Grouping variables (slice variables) cannot be found in the use variable.","Correspondence analysis",{"$nulls":3},"Kernel Density",{"$nulls":4},"Latent Rank","Mixture Regression"]
["Sort","There are identical variables in the grouping variables (slice variables).","Cross Table",{"$nulls":3},"Graph Option",{"$nulls":4},"Detail Settings","Randomize"]
["Corr Matrix","Grouping variables (slice variables) cannot be found in the independent variable.","Coefficient of association and test of independence with Yates' continuity correction.",{"$nulls":3},"Curve Fitting",{"$nulls":4},"Robust SE","Iterations ="]
["MLPromax","Slice variables cannot be found in the interaction variables.","※ confidence interval did not converge",{"$nulls":3},"Multi Cross Table",{"$nulls":4},"Setting of k-means method and latent variable analysis","HAD2GLIMMIX Settings"]
["Factor Score","A slice variable needs to be included in the interaction terms.","Cramer's V",{"$nulls":3},"had2stan_sem",{"$nulls":5},"Distributions for continuous data"]
["Scale Score","Entered cluster number is incorrect","Plot of the cross table",{"$nulls":9},"Gaussian"]
["Scree plot","Enter a whole number larger than 0, and smaller than the number of objects to categorize","Fisher's Exact",{"$nulls":9},"Log Normal"]
["IRT","Selected method for the cluster analysis is incorrect","※ Please see this result when the total frequency of 40 or less, or the expected frequency is 5 or less of the cell.",{"$nulls":9},"Simple Effect Analysis"]
["Clusters","Select one of the methods","Two-tailed probability",{"$nulls":9},"SD"]
["Method","Entered maximum number of iteration is incorrect","One-tailed probability",{"$nulls":9},"±"]
["Data","Enter a whole number larger than 1","Consistency coefficient",{"$nulls":9},"Estimate the overdispertion of binominal regression"]
["Hierarchical","Entered convergence criterion is incorrect","Cohen's κ",{"$nulls":9},"Gamma"]
["k-means","Enter a value larger than 0.00001","Cross table (ratio% of the total)",{"$nulls":9},"Probit Link"]
["Mixture","Structure equation modeling requires 2 or more use variables","Cross table (ratio% of each row)",{"$nulls":9},"Binomial"]
["Latent Class","HAD is shutting down","Cross table (ratio% of each column)",{"$nulls":9},"Beta Binomial"]
["Latent Rank","Entered number of factors are incorrect","Residual analysis",{"$nulls":9},"Use solver to estimate"]
["Not specified","Enter a whole number more than 0, and smaller than the number of items","Cross table (△ is significantly greater, ▼ is significantly less)"]
["Observation","Enter a whole number more than 1, and smaller than the number of items","Adjusted standardized residuals"]
["Variable","Entered orthmax criterion (depth of contributing factor) is incorrect","(Wilcoxon's sined rank test with continuity correction)"]
["Distance Matrix","Enter the values below.","※ Based on the negative order"]
["Dendrogram","Varimax rotation = 1","※ Based on the positive order"]
["Patterns","Quartimax rotation = 0","Test statistic Z ="]
["Observation","Biquatimax rotation = 0.5","(Friedman test)"]
["Variable","Equamax rotation = factor / 2","Test statistic Chi-squared ="]
["Score","Factor parsimony = number of variables","Effect size"]
["Cluster Mean","Entered promax rotation criterion (Power) is incorrect","The average rank"]
["Standardize","Enter a value larger than 1"]
["MDS","Selected factor method is incorrect","Place Points"]
["HOMALS","Select one of the factor methods","Multiple comparisons (method of Holm)"]
[null,"Entered category criterion is incorrect","Type of Test"]
["Dimensions","Enter a value from 0 to 180.","The difference of rank"]
["Data","Entered class of the histogram is incorrect","E.S. r"]
["Weight","Enter a value from 2 to 100.","Adjusted p"]
["Variable","Entered criterion value of one sample test is incorrect","(Mann-Whitney's U test with continuity correction) \""]
["Category","Enter a value.","(Kruskal - Wallis test) \""]
["Cross table","Entered sample size of the bootstrap is incorrect","Do not assume test the equal variance (Brunner-Muntsueru test)"]
["Varimax Rot.","Enter a value from 200 to 50000.","Test statistic t ="]
["Weighted","Enter the number of people within a group.","(Rank score)"]
["Unweighted","The entered number of people within a group is inappropriate.","Weighting factor"]
["Plot vari.","Including the group ID, entering 3 or more variables are required to output a correspondence analysis","Main ingredient"]
["Plot obs.","Including the group ID, entering 4 or more variables are required to output a scatter plot per group","Eigenvalue"]
["Variable Data","Including the group ID, entering 3 or more variables are required to output a scatter plot","Contribution rate"]
["Category Data","2 or more variables needs to be designated for non parametric test.","Cumulative contribution"]
["Obs. Score","Including the group ID, entering 3 or more variables are required to output factor analysis.","Plot"]
["Category Data","Entered response variable is incorrect","Standarized pricipal component"]
["SEM","Select from the selected variables"]
["Method","The number of group is set as 1.","Standardized weighting coefficient"]
["Estimator","Remove the checkmark from \"multi-level data\" to analyze.","Test of equal variance (Levene test)"]
["Setting","An error occurred while entering data. HAD will terminate.","Test variable"]
["CFA","Data includes formula errors.","Group variable"]
["EFA","Continue analysis by converting formula errors to missing values?","F value"]
["Multilevel","Data includes blank cells.","DF1"]
["GLS","Confirm the number of missing values and variables in the data.","DF2"]
["No Factor","Data includes words apart from the designated missing values.","Test statistic"]
["Cluster Solution","Confirm the data.","Variances of each group"]
["Std. Res.","Data includes cells with only space.","Delete"]
["CFA","Group variables for the multiple group analysis cannot be found.","Data"]
["SE","Group variables for the multiple group analysis is included in the use variable.","Polychoric"]
["Mean Structure","A text data cannot be used in a control variable.","Label"]
["Missing Data","Only 1 variable can be set as a grouping variable.","Partial correlation analysis"]
["Modeling Space","Confirm the filter setting.","Correlation analysis"]
["Corrent Model","Grouping analysis cannot be done in a multilevel analysis.","Test statistics(t value)  and  p-value"]
["Listwise Delete","Grouping analysis cannot be done in a clustered standard error.","※ t value, p value, degree of freedom, and 95% confidence interval."]
["Summary","Only paired data can be operated in a pair-wise analysis","p-value"]
["Boxplot","This data is not a paired data.","Degree of freedom"]
["Histgram","Data with an equal number of within-group people can only be analyzed as a discriminable data.","95% CI"]
["Friquency distribution","Data with an equal number of within-group people can only be sorted.","Rank correlation coefficient (Spearman)"]
["Normal test","The capacity for the number of groups is 15. HAD will terminate.","Categorical correlation analysis"]
["Scatter Plot","Analysis controlled by the controlled variable cannot be done in ANOVA.","The Porikorikku poly serial correlation coefficient There was an error in the calculation."]
["  Lable","An analysis controlled with a control variable cannot be done in regression analysis, generalized linear model, and / or hierarchical linear model.","The number of categories specified value (& categorimax & \") ※ because there was variable beyond, you have to calculate the product-moment correlation coefficient of part of Pearson.\""]
["  Group","An analysis controlled with a control variable cannot be done in equality of means test.","Test statistic and the significance probability"]
["Linear Regression","An analysis controlled with a control variable cannot be done in an analysis with categorical data as a response variable.","※ Z value(or t values), p value, and the type of correlation coefficient."]
["Cross table","An analysis controlled with a control variable cannot be done in regression analysis of a count data.","Item analysis"]
["Bubble chart","An analysis controlled with a control variable cannot be done in equality of mean rank test.","Item"]
["Group mean","An analysis controlled with a control variable cannot be done in equality of variances test.","Internal consistency coefficient"]
["Kernel density","An analysis controlled with a control variable cannot be done in cross table analysis.","α coefficient"]
["Curve fitting","An analysis controlled with a control variable cannot be done in HOMALS.","Analysis of each item"]
["Mean interval estimation","An analysis controlled with a control variable cannot be done in polychoric correlation analysis.","Of a measure"]
["Equal means test","An analysis controlled with a control variable cannot be done in multiple cross table.","Correlation coefficient"]
["  Independent","An analysis controlled with a control variable cannot be done in correspondence analysis.","After the deletion"]
["  Paired","An analysis controlled with a control variable cannot be done in log linear model.","Load"]
["Equal correlation test","Number of categories exceeds the prescribed value (250). Cross table cannot be displayed.","After the reversal α"]
["Equal variance test","Number of categories exceeds the prescribed value (250). Correspondence analysis cannot be displayed.","※ α coefficient in the case where the main component load is reversed the negative items"]
[null,"2 or more variables are needed to calculate alpha coefficient.","Measure the mean value"]
["Correlation analysis","3 or more needs to be entered for ANOVA.","Number of items"]
["Covariance","Multilevel analysis is not compatible.","※ Jacques Bella test is a kind of a test of normality by kurtosis and skewness."]
["Rank correlation","Reassignment of values is not compatible with HAD2R.","p value"]
["Categorical correlation","Creation of dummy variables is not compatible with HAD2R.","Consistency coefficient plurality Measurement (internal consistency measure)"]
["Item analysis","Rearrangements of data set is not compatible with HAD2R.","Standardization α coefficient"]
["Reliability","Bubble chart is not compatible with HAD2R.","ω coefficient"]
["Correspondence","Curve fitting is not compatible with HAD2R.","※ Since the factor analysis has become improper solutions, ω coefficient will not be output."]
["Multiple cross table","Log linear model is not compatible with HAD2R.","※ It have been calculated on the basis of the factor analysis results of the maximum likelihood method."]
["Principal component analysis","Test of equal variance is not compatible with HAD2R.","Consistency coefficient of single measurement"]
["Intra-class correlation","Generalized Poisson regression distribution is not compatible with HAD2R.","※ In the case of ordinal scale, they will be the same"]
["Multilevel correlation","Tobit regression analysis is not compatible with HAD2R.","Scale"]
["Pairwise correlation","Beta binominal distribution is not compatible with HAD2R.","Intraclass correlation coefficient "]
["  distinguishable","Log normal regression distribution is not compatible with HAD2R.","Rank-class in the correlation"]
["Regression line per group","Mixture regression distribution analysis is not compatible with HAD2R.","Interval"]
["APIM","Quantile regression distribution is not compatible with HAD2R.","Ordered"]
["Equal rank test","Robust regression analysis is not compatible with HAD2R.","Absolute matching coefficient of single measurement"]
["Ordered logistic regression","Multivariate normal distribution analysis is not compatible with HAD2R.","κ coefficient (Fleiss)"]
["Ordered probit regression","Stepwise method in a generalized linear model is not compatible with HAD2R.","The name"]
[null,"Mediation analysis is not compatible with HAD2R.","Each statistics class in the correlation ※: F value, Kendall of W: chi-square squared, kappa coefficient: Z value"]
[null,"Principal component analysis is not compatible with HAD2R.","※ Diagonal matrix (bold) are intraclass-correlations, the upper triangular matrix are individual level correlations, the lower triangular matrix are the pair level correlations."]
["Binomial logistic regression","Procrustes rotation is not compatible with HAD2R.","※ N of pairs"]
["Binomial probit regression","Improved k-means method is not compatible with HAD2R.","※ Analysis with distinguishable data"]
[null,"Mixture model, latent class analysis is not compatible with HAD2R.","Pairwise correlation analysis"]
[null,"HOMALS is not compatible with HAD2R.","Inverse matrix"]
["Multinominal regression","Structure equation model is not compatible with HAD2R.","Determinant"]
["Poisson regression","All data are missing values, or have errors in the deleted data.","Eigenvectors"]
["Negative binomial regression","The control variable includes linear dependent variable.","Sampling simulation"]
["Gneralized Poisson regression","Data includes missing values.","Population distribution"]
["Tobit regression (lower censored)","A missing value cannot be recognized in the cross table data.","Population mean"]
["Tobit regression (upper censored)","Number of categories exceeded the prescribed value (1000). Rank correlation cannot be calculated.","Population variance"]
["Tobit regression (both censored)","An error occurred during calculating categorical correlation coefficient."]
["Tobit regression","and","Normal distribution"]
["Mixture regression","Polychoric or polyserial correlation coefficient will not be calculated.","Uniform distribution"]
["Quantile regression","An error occurred during estimating the polychoric correlation coefficient. HAD will be terminated.","Sample size"]
["Regression anlysis (ML)","Number of groups to compare exceeded the prescribed value (100). HAD will be terminated.","Number of samples"]
["Stepwise","Multi-cross table can only analyze 5 variables.","Statistics of each sample"]
["Mediation","Since total number of cells exceed the prescribed value (100000), analysis could not be done.","Statistics of the sampling distribution"]
["Robust regression","An error occurred during calculation of multi-cross table (cellfreq). HAD will be terminated.","Risk of when the population mean and the null hypothesis"]
["Multivariate regression","Long linear model can analyze up to 5 variables only.","Sample mean"]
["Hierarchical linear modeling","An error occurred during the calculation of log linear model (celldata). HAD will be terminated.","Sample variance"]
["Promax rotation","An error occurred during the calculation of log linear model (loglinear). HAD will be terminated.","Unbiased variance"]
["Independent cluster rotation","An error occurred during the calculation of log linear model (poissoncul). HAD will be terminated.","Unbiased variance"]
["Oblimin rotation","Since text data is included, analysis could not be done. Analysis will be suspended.","Sample"]
["Quatimax rotation","Dependent variable needs to be a probability (between 0 and 1) in a curve fitting.","Normal"]
["Structure equation modeling","An unexpected error occurred during curve fitting. HAD will be terminated.","t "]
["Mean","Since text data is included, analysis could not be done. Analysis will be suspended.","※ Filter applied"]
["Sum","Since number of groups exceed 100, scatter plot could not be displayed.","※ Group:"]
["Principal","An unexpected error occurred. HAD will be terminated,","Analysis of code:"]
["Difference","There is a variable with number of categories that is smaller than 2. Analysis will be terminated.","Use variables:"]
["Interaction term","Since response variable is a text data, analysis could not be done. Analysis will be suspended.","Mean and standard deviation of each cell"]
["With std score","Since number of categories exceeded the prescribed value (1000), the test could not be done.","※ Error bars show standard error"]
["Standarized","Since number of categories of the dependent variables are more than those of the independent variables, the test could not be done.","※ Error bars show 95% confidence interval"]
["Centered","The matrix is not a square matrix.","Barplot"]
["Group mean centering","An error occurred during eigenvalue decomposition (QR method). HAD will be terminated.","Analysis of variance"]
["Group mean","An error occurred during eigenvalue decomposition (Jacobi method). HAD will be terminated.","Model fit"]
["Rank score","F value became negative. HAD will terminate.","Error("]
["Inverse","x^2 value became negative. HAD will terminate."]
[null,"Since text data is included in the response value, analysis could not be done. The analysis will suspend.","Error (Other)"]
[null,"Only 5 factors at maximum can be analyzed.","Overall"]
[null,"Covariate cannot be designated as a slice variable.","Error"]
[null,"Within-participant factor cannot be designated as a measurement factor.","Fit index"]
[null,"Factors with number of levels that exceed the prescribed value cannot be designated as a slice variable. :prescribed value =","Test of sphericity assumption"]
["Log transformation","Since model's degree of freedom is larger than the prescribed value, analysis could not be done. Prescribed value =","Chi-squared"]
["Arc sign transformation","Factors with number of levels that exceed the prescribed value (& maxmc & \") will not output the estimated means and multiple comparisons. Prescribed value = \"","Lower"]
["Reassignment","The multiple comparison of the number of levels larger than 10 will not be outputted in a Saffer method.","Factor of the effect (Type 2 SS)"]
["Dommy variable","When including interaction effect of within-participant factor in a model, the main effect of the interaction effect cannot be excluded.","Factor of the effect (Type 3 SS)"]
[null,"An error occurred during ANOVA (anovainput). HAD will be terminated.","※ Epsilon for sphericity assumption ="]
[null,"An error occurred during ANOVA output (anova). HAD will be terminated.","No correction"]
[null,"Since the degree of freedom is insufficient, simple effect analysis cannot be run.","Adj DF1"]
[null,"Since error cannot be estimated, simple effect analysis cannot be run.","Adj DF2"]
[null,"An error occurred during ANOVA output (anovaoutput). HAD will be terminated.","Partial η2"]
["Dommy variable","An error occurred during t-test output (anovaoutput). HAD will be terminated.","Partial ω2"]
[null,"Since the degree of freedom is smaller than 0, analysis could not be done.","Generalized η2"]
[null,"When using separate error term, try using pooled error term.","Generalized ω2"]
["Missing Data","An error occurred during simple effect analysis (anovasimple). HAD will be terminated.","Estimated mean and multiple comparison"]
["Value label","An error occurred during simple effect analysis (anovasimpleoutput). HAD will be terminated.","※ Multiple comparisons for Within factors = Error term of the each pair"]
["Missing value","There is a factor with a degree of freedom that is smaller than 0. Analysis will be suspended.","※ Multiple comparisons for Within factors = Error term of the factor"]
["Covariate","An error occurred during ANOVA (reganova). HAD will be terminated.","※ The results when the covariates equal mean values ​​are output."]
["Verb","An error occurred during ANOVA (reganova2). HAD will be terminated.","Overall mean"]
["Noun","The model includes a linear dependent variable, or has a group with a degree of 0. Analysis will be suspended.","Level"]
["Compound noun","An error occurred during ANOVA (reganova3). HAD will be terminated.","Factor"]
["Adjective","A cell with a number of people that is smaller than 1 is included.","The average value of each level"]
["Adverb","k-means cannot be used in the categorization of variables. HAD will be terminated.","Multiple comparisons"]
["Keyword","Number of clusters need to be designated for k-means analysis. Remove the checkmark of \"analyze without designating\". HAD will be terminated.","Modify Shaffer method"]
["Synonym","When data is a distance matrix, improved k-means, mixture model, latent class analysis, latent rank analysis cannot be used. HAD will be terminated.","Shaffer method"]
["Output ->","Data is not square matrix. HAD will be terminated.","Holm method"]
["日本語","3 or more objects to categorize are needed to run a cluster analysis. HAD will be terminated.","Bonferroni method"]
["English","The degree of freedom of the latent class analysis became negative. HAD will be terminated.","Main p-value"]
["G/標準","The degree of freedom of the latent rank analysis became negative. HAD will be terminated.","Difference"]
["$System$","Improper solutions occurred in all trials. HAD will be terminated.","E.S. d"]
["Kendall's W","An improper solution occurred. HAD will be terminated.","Sig. Level"]
["中文","Number of dimensions are exceeding the maximum value. MDS will not run. :maximum value =","Test of the difference between the unpaired average value (unpaired t-test)"]
["row data","Since sample size is smaller than the number of variables, factor analysis cannot be run.","The dependent variable"]
["〇","A variable with a variance less than 0 is included. Analysis will be suspended.","Test for the difference between the paired mean values ​​(paired t-test)"]
["Yu Gothic UI","An error occurred while calculating the convergence of factor analysis. HAD will be terminated.","Standard error of assuming equal variance"]
["MS UI Gothic","Entered hypothesis factor loadings matrix is incorrect.","Test of difference"]
["Meiryo UI","The initial solution will be outputted.","Pairs"]
["Yu Gothic UI semilight","Entered target loadings matrix is incorrect.","Welch's test"]
["GLMM","An error occurred during Harris-Kaiser rotation. HAD will be terminated.","t-test"]
["Binomial","An error occurred during direct oblimin rotation. HAD will be terminated.","※ Welch's test is a test that does not assume equal variances of the two groups."]
["Generalized linear mixed model","Use variables cannot be found in the data.","Correlation coefficient r"]
[null,"Estimate could not be done.","Tests of simple main effect"]
[null,"A solution in the process of calculation will be outputted.","Variables to be grouped"]
[null,"Procrustes rotation did not converge."]
[null,"Degree of freedom became negative. HAD will be terminated.","slice"]
[null,"All data needs to be a whole number to be a dummy variable. HAD will be terminated.","Simple effect of factors (type Ⅱ sum of squares)"]
[null,"All data needs to be a whole number in HOMALS. HAD will be terminated.","Simple effect of factors (type Ⅲ sum of squares)"]
[null,"Data set is not categorical type. HAD will be terminated.","※ MSe = pooled error term"]
[null,"All categories are smaller than 0. HAD will be terminated.","※ MSe = level by the error term"]
[null,"All category numbers exceed the maximum value (500). HAD will be terminated.","Epsilon for sphericity assumption"]
[null,"There is a number that is not 0 or 1. HAD will be terminated.","※ the degree of freedom of the simple main effect has been corrected by Satterthwaite of the way."]
[null,"There is a variable with category number that exceeds the maximum value (100). HAD will be terminated.","p-value of the interaction effect"]
[null,"There is a variable with category number that includes 1. HAD will be terminated.","Comparison"]
[null,"Since there is a response variable that includes more than 3 texts, analysis could not be done. Analysis will be suspended.","Null model"]
[null,"Cluster standard error cannot be used in a mixture regression analysis.","Saturated model"]
[null,"Offset variable of a count regression analysis cannot be found in the use variable.","Model estimations"]
[null,"Total number of trials variable of ratio data cannot be found in the use variable.","Estimation of frequency"]
[null,"Enter total number of trials variable of ratio.","The expected frequency"]
[null,"There is a place where the order of explanatory variables differs between the steps. HAD will be terminated.","Residual error"]
[null,"There is a value in the binominal regression analysis where number of occurrence or total is not a whole number. HAD will be terminated.","Standard residuals"]
[null,"There is a subject where number of occurrence is larger than the total. HAD will be terminated.","The shortest distance method"]
[null,"The variable designated as the random effect is same as the response variable.","Longest distance method"]
[null,"The variable designated as the random effect is not included in the model.","Median method"]
[null,"Level 2 variable is same as the response variable.","The center of gravity method"]
[null,"Level 2 variable is not included in the use variable.","Group average method"]
[null,"For simple effect test, put a checkmark on \"center each variable when including interaction term\" in the option.","Variable method"]
[null,"Degree of freedom became smaller than 0. The analysis will be suspended.","Ward's method"]
[null,"Error term became smaller than 0. Try removing the checkmark on multi-level data. The analysis will be suspended.","k-means method based on Mahalanobis distance"]
[null,"Error term became smaller than 0. Analysis will be suspended.","Mixed normal distribution"]
[null,"Regression analysis includes a linear dependent variable.","Latent class analysis"]
[null,"An error occurred during regression analysis. HAD will be terminated.","Latent rank analysis (continuous)"]
[null,"Entered reference category cannot be found. Analysis will be terminated.","Latent rank analysis (order)"]
[null,"Number of categories of a response variable exceed the maximum value (20). Analysis will be terminated.","(Homogeneous variance)"]
[null,"Estimate value overflowed during the calculation of logistic regression analysis.","(Homogeneous variance-covariance)"]
[null,"The data might not match the model.","(Heterogeneous variance)"]
[null,"There is a group that has a degree of freedom that is smaller than 0. HAD will be terminated.","(Heterogeneous variance-covariance)"]
[null,"An overflow occurred in the ordinal regression. HAD will be terminated.","Cluster Analysis"]
[null,"The sample size in calculation exceeded the maximum value.","Method"]
[null,"An error occurred during discriminant analysis. HAD will be terminated.","Distance calculation"]
[null,"There was an error during the run of discriminant analysis.","Enter the distance matrix from data"]
[null,"Inverse matrix cannot be evaluated","Likelihood"]
[null,"Response variable includes a negative number.","Self-Organizing Map"]
[null,"Response variable needs not be non-negative in a count regression analysis. HAD will be terminated.","Generation Topographic Map"]
[null,"0 is included in an offset variable. HAD will be terminated.","Euclidean distance by the raw data"]
[null,"An error occurred during the regression analysis of the count data. HAD will be terminated.","Euclidean distance by the standardized data"]
[null,"An over flow occurred during the analysis. Analysis will be terminated.","Classified"]
[null,"Estimated value became 0 during the analysis. Analysis will be terminated.","Classification number of target"]
[null,"An error occurred during regression analysis (maximum likelihood method). HAD will be terminated.","Number of parameters"]
[null,"Response variable needs to be a value larger than 0 in the gamma regression. HAD will be terminated.","The number of times of learning"]
[null,"An error occurred during regression analysis of the censored data. HAD will be terminated.","Number of iterations"]
[null,"Degree of freedom became 0. HAD will be terminated.","The estimated number of times"]
[null,"An error occurred during robust regression analysis. HAD will be terminated.","Log-likelihood"]
[null,"An error occurred during hierarchical linear model. HAD will be terminated.","Magnification"]
[null,"There might be a linear dependent variable included in the dependent variable group. HAD will be terminated.","Cluster member"]
[null,"Nominal regression cannot run on HAD2GLIMIX.","The number of clusters"]
[null,"Probit regression cannot run on HAD2GLIMIX.","Cluster"]
[null,"Generalized Poisson regression cannot run on HAD2GLIMIX.","The number belongs"]
[null,"Analysis of censored data cannot run on HAD2GLIMIX.","Member Of"]
[null,"Mixture regression analysis cannot run on HAD2GLIMIX.","Features of the clusters (standardized score)"]
[null,"The variable designated as the random effect cannot be found.","Dendrogram"]
[null,"Enter \"ALL\" or value larger than 0 and smaller than 1 for a quantile.","Dendrogram display method = distance of "]
[null,"An error occurred during had2glmmestan. HAD will be terminated.","Multiply"]
[null,"Variable(s) not included in the model are in the use variables. Result is list-wise case deleted in all variables designated in the use variables.","※Dendrogram summary criteria = "]
[null,"An error occurred during the output of regression analysis (regoutput). HAD will be terminated.",". It is summarized in the cluster displays. Please change the summary criteria option if you want to display all."]
[null,"An error occurred during the output of hierarchical linear model (hraoutput). HAD will be terminated.","Elapsed process of clustering"]
[null,"An error occurred during the output of regression analysis (hraoutput). HAD will be terminated.","Stage"]
[null,"An error occurred during the output of slice. HAD will be terminated.","Distance"]
[null,"2 or more variable needs to be designated as a response variable for the equality of correlation matrix.","Coupled cluster"]
[null,"Cannot continue since there is a group with number of people smaller than 4. Analysis will be terminated.","Distance matrix"]
[null,"An error occurred during regression analysis of ratio data. HAD will be terminated.","Parameter estimates"]
[null,"An error occurred during gamma regression analysis (gammacul). HAD will be terminated.","Potential frequency"]
[null,"An error occurred during beta binomial regression analysis. HAD will be terminated.","Potential probability"]
[null,"There is only a single group.","Rank"]
[null,"There are too many missing values","※ Order assignment conditions were satisfied."]
[null,"Number of people in all groups are 1.","※ Order assignment conditions were not satisfied"]
[null,"There is a group with a sample size of 0.","Item reference profiles"]
[null,"Entered constraint is incorrect.","Test reference profile"]
[null,"Number of the parameter exceeds the maximum value (200).","Variance-covariance"]
[null,"Estimate could not be done. Check \"limit the variance to non-negative and estimate\" in the option and estimate again.","By Category reaction probability"]
[null,"The interim solution of calculation will be outputted.","Association cofficients of the latent class"]
[null,"An error occurred during structure equation modeling. HAD will be terminated.","Association cofficients of the latent rank"]
[null,"Saturation model could not be estimated.","Rank correlation coefficient between the latent rank"]
[null,"Baseline model could not be estimated.","Logistic regression analysis of the latent cluster "]
[null,"Robust standard error cannot be estimated when designating a sample size.","Logistic regression analysis to latent rank (proportional odds model)"]
[null,"Missing value cannot be estimated when designating a sample size.","Logistic regression analysis to latent rank (non-proportional odds model)"]
[null,"There is a variable that is not in the use variable on the modeling sheet, or the order of use variable and the order of variables on the modeling sheet does not match. Press the model space button again, and reanalyze.","β"]
[null,"Modeling space is not set for multilevel SEM. Press the model space button again, and reanalyze.","※ Robust standard errors"]
[null,"There is a variable that is not in the use variable on the modeling sheet, or the order of use variable and the order of variables on the modeling sheet does not match.","Approximation R-squared value"]
[null,"Press the model space button again, and re-analyze.","Histogram by cluster"]
[null,"Robust standard error cannot be estimated in a multilevel SEM.","Histogram by rank"]
[null,"There is an incorrect model limitation. HAD will ignore this.","Principal component scores"]
[null,"To designate a sample size of multi-group analysis, divide with  \";\" and designate by group. HAD will ignore this constraint.","Multi-dimensional Scaling"]
[null,"There are too many limitations","Dimension"]
[null,"Entered sample size is incorrect. Enter a value.","Scree plot"]
[null,"Entered sample size is incorrect. Enter a whole number larger than 1.","Diagonal SMC"]
[null,"Sheet name","Parallel analysis"]
[null,"cannot be found.","SMC parallel"]
[null,"The designated data is not an appropriate covariance matrix data.","Random number correlation matrix"]
[null,"A data larger than variables cannot be read.","Data correlation matrix"]
[null,"It exceeds","Number of factors"]
[null,"Entered variable name cannot be found.","Diagonal SMC parallel analysis"]
[null,"Enter the variable name loaded in the modeling sheet.","Random number diagonal SMC"]
[null,"Entered value of the filter is incorrect.","Changes in common of the sum"]
[null,"Entered value is incorrect.","Commonality sum of"]
[null,"Analysis code cannot be found.","Sample"]
[null,"Enter the registered data set.","Adjustment method"]
[null,"Enter the registered name.","Factor"]
[null,"Designate a use variable.","Maximum likelihood method"]
[null,"A same name is already registered on the list. Overwrite?","Least-square method"]
[null,"has been registered on the list.","Iterative principle factor method"]
[null,"Delete?","Non-iterative estimation method"]
[null,"Delete all models?","(Maximum method)"]
[null,"All models have been deleted.","(Average method)"]
[null,"Model of the analysis code","The main component method"]
[null,"An error occurred while saving the model. HAD will terminate.","Categorical factor analysis (weighted least squares: Use SOLVER)"]
[null,"Enter a model name (except \"current model\" and \"model of analysis code\").","Categorical factor analysis (weighted least squares)"]
[null,"Designate a response variable.","Method"]
[null,"A same model name is already registered on the list. Overwrite?","Rotation"]
[null,"has been registered on the list.","(Target matrix:"]
[null,"Enter the registered name.","No rotation"]
[null,"The current model cannot be deleted.","Varimax rotation"]
[null,"Delete?","Biquartimax rotation"]
[null,"Designate a model.","Quartimax rotation"]
[null,"Entered sample size of the bootstrap is incorrect.","Equamax rotation"]
[null,"Model of analysis code.","Factor parsimony"]
[null,"Entered input criterion probability is incorrect.","Orthomax criterion"]
[null,"Entered delete criterion probability is incorrect.","Orthogonal Procrustes rotation"]
[null,"Entered sampling number of the parallel analysis is incorrect.","Oblique Procrustes rotation"]
[null,"Entered complexity of the VSS is incorrect.","Harris-Kaiser independent cluster rotation"]
[null,"Enter a whole number from 1 to 3.","Direct oblimin rotation"]
[null,"Enter a whole number from 0 to 1000.","Promax rotation"]
[null,"ExcelITTM file could not be found.","Kaiser normalization"]
[null,"Analysis result of the ExcelITTM could not be found.","On"]
[null,"ExcelITTM data was loaded.","Off"]
[null,"Enter a whole number smaller than 1 for the frequency of appearance.","Factor patterns"]
[null,"Enter a whole number larger than 1 for the cluster number.","The number of iterations"]
[null,"Enter a whole number larger than 1 for the summarization criterion of the dendrogram.","Convergence criterion"]
[null,"Enter a whole number larger than 1 for the number of dimensions in a multidimensional scale method.","Deviance"]
[null,"Enter a whole number larger than 1 for the number of dimensions in a correspondence analysis.","※ Eigenvalues were negative. It might be a improper solution."]
[null,"The sheet of the data could not be found.","※ Did not converge. It might be a improper solution."]
[null,"The designated sheet does not have a data.","※ Some communalities closed to 1. It might be a improper solution."]
[null,"There is a category with total number of response that is 0. HAD will be terminated.","※ Correlation matrix was not positive definite. Factor analysis can not be performed."]
[null,"Entered number of learning rate in a latent rank analysis is incorrect.","※ Model was not optimized. It might be a improper Solution."]
[null,"Entered minimum number of neighbor function in a latent rank analysis is incorrect.","h2"]
[null,"Entered number of repeated estimation in a latent rank analysis is incorrect.","Factor contributions"]
[null,"Enter a value larger than 0 and smaller than 1.","Goodness-of-fit"]
[null,"There are no data. Enter a data.","※ The α coefficient and ω coefficient calculated from the bold item (reverse when loadings were negative)"]
[null,"csv file was outputted.","Factor score"]
[null,"The pass could not be found.","Reliability factor if you do not reverse"]
[null,"Select a csv file.","Inter-factor correlation"]
[null,"csv file was loaded.","Factor structures"]
[null,"HAD2R is currently on","Threshold"]
[null,"HAD2R is currently off","Item response theory"]
[null,"Enter a file name.","Item parameters"]
[null,"Entered number of samples are incorrect.","Discernment"]
[null,"Enter a value larger than 0.","Difficulty"]
[null,"The entered number of Markov chain is incorrect.","Test information function"]
[null,"The entered number of warmup is incorrect.","Test information curve"]
[null,"The entered number of intervals in adoption is incorrect.","Item characteristic curve"]
[null,"Entered core number is incorrect.","Item characteristic function"]
[null,"Enter an output name.","Multi-level correlation analysis"]
[null,"Enter the name of the data in R.","※ Diagonal matrix (bold) are intra-class correlations, the upper triangular matrix are individual level correlations, and the lower triangular matrix are group level correlation"]
[null,"Designate a class of the histogram.","Test statistic with (Z value) and p-values"]
[null,"Enter a value for the class of the histogram.","※ Upper are Z-values, lower are p-values"]
[null,"Designate a value larger than 2 and smaller than 100 for the class of the histogram.","Effective sample size"]
[null,"Designate a value larger than 1 for the width of the line graph.","The number of groups"]
[null,"Designate a value larger than 1 for number of kernel intervals.","Group size"]
[null,"Designate a value larger than 0 for the parameter of bandwidth.","The square root of the above"]
[null,"Select a sheet.","All data"]
[null,"A sheet with an identical name already exists.","ICC"]
[null,"That name is already used. Designate another name.","Reliability"]
[null,"That name cannot be used. Designate another name."]
[null,"Delete all sheets?","Multiple correspondence analysis"]
[null,"Delete the selected sheet?","Data form"]
[null,"Delete the moving sheet from the original HAD file?","Variable type"]
[null,"The sheet was copied to the new book.","Category type"]
[null,"The sheet was moved to the new book.","The total number of category"]
[null,"Designate the width of the cell.","Number of categories"]
[null,"Designate a value.","Cross-table type"]
[null,"Designate a value larger than 6.","Respondent"]
[null,"Designate a whole number larger than 1.","Eigenvalues ​​and the correlation coefficient"]
[null,"Designate a missing value.","Category quantification"]
[null,"Designate a seed of random numbers.","Category name"]
[null,"Enter a whole number for the seed of random numbers.","Category of"]
[null,"Designate a value to add to the 0 degree of the log linear model.","Line of category"]
[null,"Enter a value larger than 0 to add to the 0 degree of the log linear model.","Distribution of the bootstrap estimates"]
[null,"Enter a value larger than 0 and smaller than 1 to add to the 0 degree of the log linear model.","Coefficient of"]
[null,"Designate a value larger than 1.","Stepwise method"]
[null,"The shortcut key needs to be an alphabet.","※ There was no significant explanatory variables."]
[null,"This function cannot be used in Mac.","※ Because it contains interaction terms, all explanatory variables have been centered."]
[null,"HAD file cannot be found.","※ All explanatory variables have been centered."]
[null,"This file is not a HAD file from ver 15.30 and on.","Multivariate regression analysis"]
[null,"A data from the HAD file was read.","※ Pillai means the trace of Pillai"]
[null,"Entered number of the maximum repetition is incorrect.","Multivariate tests of the explanatory variables"]
[null,"Entered convergence criterion of the factor method is incorrect.","Standarized partial regression coefficient for each objective variable"]
[null,"Enter a value larger than 0 and smaller than 1.","Canonical correlation analysis"]
[null,"Entered power of promax rotation is incorrect.","Canonical correlation"]
[null,"Enter a value from 1 to 10.","Canonical coefficient"]
[null,"Entered power of independent cluster rotation is incorrect.","Objective variable"]
[null,"Entered weight of the factor contribution is incorrect.","Explanatory variables"]
[null,"Enter a value from 0 to the number of variables.","Component"]
[null,"Enter a value from 0 to 1.","Standardized canonical coefficients"]
[null,"Solver cannot be used in either Mac version or Solver-off version.","Structure coefficients"]
[null,"Entered notation method of the dendrogram is incorrect."]
[null,"Enter a number larger than 0 and smaller than 5."]
[null,"Enter a whole number larger than 1."]
[null,"Entered summarization criterion of the dendrogram is incorrect.","Robust regression analysis"]
[null,"Enter a whole number larger than 5.","Probit regression analysis"]
[null,"Entered number of repetition is incorrect.","Ordered regression analysis"]
[null,"Enter a whole number larger than 1.","Logit link"]
[null,"Entered convergence criterion is incorrect.","Probit link"]
[null,"Enter a value larger than 0 and smaller than1.","Complement Log-Log link"]
[null,"Enter a whole number from 1 to 10000.","Negative Log-Log link"]
[null,"Entered estimation accuracy is incorrect.","Binomial regression analysis"]
[null,"Entered infinitesimal value for the calculation of standard error is incorrect.","Nominal logistic regression analysis"]
[null,"Robust standard error cannot be estimated in a multilevel SEM.","Poisson regression analysis"]
[null,"Entered p value criterion of the main effect is incorrect.","Logarithmic link"]
[null,"Entered maximum number of repetition is incorrect.","Negative-binomial regression analysis"]
[null,"Enter a value from 1 to 10000.","Generalized Poisson regression analysis"]
[null,"Entered number of resampling in a bootstrap method is incorrect.","Tobit regression analysis"]
[null,"Entered number of repetition in the mixture regression is incorrect.","Censoring lower"]
[null,"Entered estimation point of slice is incorrect.","Censoring upper"]
[null,"Enter a value larger than 0.","Censoring both side"]
[null,"The entered value is incorrect.","No censoring"]
[null,"The entered range is incorrect.","Beta-binomial regression analysis"]
[null,"Minimum to maximum values cannot be selected.","Linear regression"]
[null,"missing value","Normal"]
[null,"etc.","Log-normal"]
[null,"Entered new value is incorrect.","Gamma Reg."]
[null,"copy","Mixture distribution"]
[null,"to","Offset"]
[null,"Sample size needs to be larger than 1.","※ Did not converge. Please try to analysis by specifying a Poisson distribution."]
[null,"Entered minimum value is incorrect.","※ Did not converge. The results might be improper solutions."]
[null,"Entered maximum value is incorrect.","※ The results might be improper solutions."]
[null,"Enter a value larger than the minimum value.","The total number of trials"]
[null,"Entered mean is incorrect.","Convergence"]
[null,"Entered covariance is incorrect.","Number of improper solutions"]
[null,"Entered sample size is incorrect.","Approximate"]
[null,"Entered sample number is incorrect.","-2 log likelihood"]
[null,"Entered mean is incorrect. Enter a value.","Wilks' lambda"]
[null,"Entered covariance is incorrect. Enter a value.","Regression coefficient"]
[null,"Entered covariance is incorrect. Enter a value larger than 0.","Discrimination coefficient"]
[null,"Entered probability is incorrect. Enter a value.","Reference category"]
[null,"Entered probability is incorrect. Enter a value from 0 to 1.","The rank of the one below"]
[null,"Entered number of trials is incorrect. Enter a value.","※ There was a term that response probability becomes 0 in the middle of the analysis. The results might be improper solutions."]
[null,"Entered number of trials is incorrect. Enter a whole number larger than 0.","Since the over-dispersion parameter does not converge ※, it was estimated fixed to 0. Please try to analysis by specifying a Poisson distribution."]
[null,"Entered number of means is incorrect. Enter a value larger than 0.","Class"]
[null,"Entered overdispersion is incorrect. Enter a value.","Residual variance"]
[null,"Entered overdispersion is incorrect. Enter a value larger than 0.","Scale parameter"]
[null,"Entered shape parameter is incorrect. Enter a value.","※ Deals with binary variables as a categorical variable."]
[null,"Entered shape parameter is incorrect. Enter a value larger than 0.","※ Use robust standard errors to correct for Heteroskedasticity."]
[null,"Entered scale parameter is incorrect. Enter a value.","※ Use a robust standard errors to correct for the intra-cluster correlations."]
[null,"Entered scale parameter is incorrect. Enter a value larger than 0.","※ Use the bootstrap standard error and confidence intervals."]
[null,"Entered alpha parameter is incorrect. Enter a value.","※ Test of the coefficients are carried out based on the t distribution."]
[null,"Entered alpha parameter is incorrect. Enter a value larger than 0.","Standardized coefficients"]
[null,"Entered beta parameter is incorrect. Enter a value.","Pseudo standardized soefficients"]
[null,"Entered beta parameter is incorrect. Enter a value larger than 0."]
[null,"The language setting is incorrect.","Approximate standardized coefficients "]
[null,null,"※ R-squared value has been estimated to negative, Approximate standardized coefficients  can not be calculated."]
[null,"There is a sheet named \"Data\". Please change the name.","Multivariate test"]
[null,"There is only one group.","Odds ratio"]
[null,"it is impossible to estimate because there are more random effects than sample size.","Group discrimination"]
[null,"The dependent variable is not binary data.","Prediction"]
[null,"There is no random effect.","Accuracy rate"]
[null,null,"Overall accuracy rate"]
[null,null,"Prediction curve and the approximate prediction interval"]
[null,null,"Predictive distribution"]
[null,null,"Prediction interval"]
[null,null,"Mixed distribution model"]
[null,null,"Class members of"]
[null,null,"The number of class"]
[null,null,"Covariance matrix of regression coefficients"]
[null,null,"Hierarchical linear model"]
[null,null,"The number of groups"]
[null,null,"Random effects"]
[]
[null,null,"Deviance"]
[null,null,"The number of parameters of the estimated model"]
[null,null,"The number of parameters of NULL model"]
[null,null,"Approximation R-squared"]
[null,null,"Fixed effect"]
[null,null,"※ All Level 1 of the explanatory variables have been centered in the population average"]
[null,null,"※ When random coefficients are assumed, it will not be calculated standarized coefficients."]
[null,null,"Variance components"]
[null,null,"Because the sample size and the number of groups are equal, the random effects of the intercept will not be estimated."]
[null,null,"Ratio"]
[null,null,"Covariance matrix of random effects"]
[null,null,"Covariance matrix of fixed effects"]
[null,null,"※ It might be improper solutions."]
[null,null,"Model Comparison"]
[null,null,"DF of error"]
[null,null,"ΔF value"]
[null,null,"※ R-squared value is Cox-Snell."]
[null,null,"※ R-squared value is deviance R-squared."]
[null,null,"ΔChi-squared"]
[null,null,"Non-standardized coefficients"]
[null,null,"Tests of simple main effect"]
[null,null,"※ Robust standard errors"]
[null,null,"Variables of interaction term"]
[null,null,"Variable to test"]
[null,null,"Graph of the 4way interaction can not be depicted."]
[null,null,"Low group"]
[null,null,"High group"]
[null,null,"※It might be improper solutions."]
[null,null,"Graph"]
[]
[null,null,"Test of main effects"]
[null,null,"Tests of simple main effects (hierarchical linear model)"]
[null,null,"If you want a simple effect analysis in the HLM, it must contain the lower of the interaction term. Exit the HAD."]
[null,null,"Mediated analysis"]
[]
[null,null,"※It might be improper solutions."]
[null,null,"With mediation variable"]
[null,null,"Without mediation variable"]
[null,null,"Test indirect effect (assuming normal distribution)"]
[null,null,"Method"]
[null,null,"※ Non-standardized coefficient"]
[null,null,"※ Standardized coefficient"]
[null,null,"Bootstrap confidence intervals"]
[null,null,"Number of samples"]
[null,null,"Sampling method"]
[null,null,"Parametric"]
[null,null,"Non-parametric"]
[null,null,"Estimation method of confidence interval"]
[null,null,"Percentile method"]
[null,null,"Bias correction method"]
[]
[null,null,"Distribution of indirect effect"]
[null,null,"Indirect effect"]
[null,null,"Moderator variable"]
[null,null,"Model for the dependent variable of no parametric"]
[null,null,"Model for parametric"]
[null,null,"Model for the dependent variable, including parametric"]
[null,null,"Test of the difference between the partial correlation matrix"]
[null,null,"Test of the difference between the correlation matrix"]
[null,null,"Chi-squared ="]
[null,null,"Statistics of difference(Z value)"]
[null,null,"Confirmatory factor analysis"]
[null,null,"Exploratory factor analysis"]
[null,null,"Model goodness-of-fit"]
[null,null,"※ Model could not be identified. The estimated value might be not correct."]
[null,null,"※ Solution did not converge. The estimated value might be not correct."]
[null,null,"Goodness-of-fit because the number of parameters exceeds the limit ※ will not be displayed."]
[null,null,"Estimation"]
[null,null,"Independence"]
[null,null,"※ Have been sorted by the size of the factor loading"]
[null,null,"※ Standard errors are not calculated"]
[null,null,"Pathes"]
[null,null,"Means/Intercepts"]
[null,null,"Standardized residuals (bold are significant residuals)"]
[null,null,"Structural equation model"]
[null,null,"Multi-level structural equation model"]
[null,null,"Estimation"]
[null,null,"Generalized least squares method"]
[null,null,"Number of missing patterns"]
[null,null,"Full information maximum likelihood method"]
[null,null,"Number of parameters"]
[null,null,"※ Degree of freedom is negative, the model could not be identified. Results might be incorrect."]
[null,null,"※ NULL model could not be estimated. Goodness-of-fit is not displayed."]
[null,null,"※ Path of notation standardized coefficients"]
[null,null,"※ Path of notation non-standardized coefficients"]
[null,null,"※ Robust standard errors"]
[null,null,"※ Non-negative constraints."]
[null,null,"The difference between the path"]
[null,null,"Standardization solutions"]
[null,null,"Indirect effect (standardization)"]
[null,null,"The difference between the path (standardization)"]
[null,null,"Regression analysis"]
[null,null,"Number of words"]
[null,null,"Words"]
[null,null,"Part of speech"]
[null,null,"Frequency of occurrence"]
[null,null,"Appearance number"]
[null,null,"Cluster of details"]
[null,null,"Category quantifications"]
[null,null,"Column category of"]
[null,null,"The principal component pattern"]
[null,null,"Principal component contribution"]
[null,null,"Contribution rate (%)"]
[null,null,"Cumulative contribution (%)"]
[]
[]
[]
[]
[null,null,"install.packages ( \"httr\") #httr is installed"]
[null,null,"username = \"user ID\", password = \"password\"))"]
[null,null,"Random number from a normal distribution"]
[null,null,"Random number from a Poisson distribution"]
[null,null,"Random number from a binomial distribution"]
[null,null,"Random number from the negative binomial distribution"]
[null,null,"Random number from the gamma distribution"]
[null,null,"Random number from the beta distribution"]
[null,null,"Mean"]
[null,null,"Dispersion"]
[null,null,"Probability"]
[null,null,"Number of trials"]
[null,null,"Over-dispersion"]
[null,null,"Scale"]
[null,null,"Goodness of fit"]
[null,null,"R-squared"]
[null,null,"Kendall's W"]
[null,null,"Covariance"]
[null,null,"Newton method"]
[null,null,"Secant method"]
[null,null,"Quasi-Newton method"]
[null,null,"second"]
[null,null,"Interaction effect of indirect effect"]
[null,null,"U ="]
[null,null,"BayesFactor"]
[null,null,"JZS"]
[null,null,"unit-information"]
[null,null,"Yate's continuity correction"]
[]
[null,null,"R2"]
[null,null,"Adjust R2"]
[null,null,"Generalized linear mixed model"]

{"sheet":"$Chinese$","index":9,"n_rows":725,"n_cols":32,"rows_kept":725,"hidden":true}
["基本システム用語","メッセージボックス","出力","ステータスバー","コントロール",null,"UserForm1","UserForm2","UserForm3","UserForm4","UserForm5","UserForm6","UserForm7","UserForm8","UserForm9","UserForm10","UserForm11","UserForm12","UserForm13","UserForm14","UserForm15","UserForm16","UserForm17","UserForm18","UserForm19","UserForm20","UserForm21","UserForm22","UserForm23","UserForm24","UserForm25","UserForm26"]
["数据","统计分析软件 HAD","※输入Stan用的input矩阵使用csv格式文件保存到了被指定的目录里。","HAD正在运行．．．.数据录入","数据\n读取",null,"统计分析巨集命令　HAD","列宽度的调整：　HAD","工作表管理：　HAD","量表平均值：　HAD","设置：　HAD","因子分析选项：　HAD","回归模型选项：HAD","变量合成：　HAD","数值计算：HAD","数据文件：HAD","HAD计算中","变量信息变更：　HAD","用于分析的变量:HAD","模型的选择 回归分析：HAD","统计分析宏 HAD(简单模式)","中介效应分析：HAD","模型的选择 因子分析：HAD","设置步进法（stepwise）","设置碎石图","TTM2HAD","潜在秩序回归分析的详细设置","HAD2GLIMMIX的设置","HAD2R","HAD2glmmstan的设置","图表设置","HAD2Stan_SEM"]
["模型","请激活HAD文件","描述性统计","HAD正在运行．．．.","模型\n工作表",null,"包括ID变量","HAD的设置值","关闭","OK","使用合成的矩阵数据","・估计设置","取消","取消","计算逆矩阵","变量按组排列（横排数据变竖排）","正在计算中。\n请稍候。\n\n如果分析过了一段时间还没有结束，\n请按下面的“分析中断”按钮。","筛选器","取消","・请选择分析中使用的模型","取消","・定序回归分析的链函数","・请选择分析用的模型","・步进法（stepwise）的标准","・平行分析","参照","学习频率的估计值的倍率","・估计方法","参照","数据文件路径","依据不同组","取消"]
["求解器加载项","错误内容:","箱形图","HAD正在运行．．．.准备分析","列宽调整",null,"OK","匹配各个变量名的长度","全部删除","乘以-1进行反向计分","・输出设置","・因子轴的旋转基准","OK","OK","对称矩阵的特征值(Jacobi法)","组内人数＝","分析中断"," 值标签","OK","使用变量","OK","・计数数据的分布","取消","投入标准","抽样次数=","・读取ExcelTTM","・潜在秩序回归分析（自组织映射）的估计设置","高斯-厄米特求积（Gauss–Hermite）的最大似然法","关闭","参照","为ID变量设置标签","OK"]
["工作表管理","请选择变量名称。","直方图","HAD正在运行．．．分析","数值\n计算",null,"组内均值中心化（变量名_g）","使用手册","删除不带有以下记号的工作表","最大值 + ","使用标签输出结果","最大迭代次数 = ","投入基准","按平均值分成两组","计算特征值（QR法）","把组作为变量进行排序(竖排变横排)",null," 标签","　添加→","取消","详细模式","泊松","OK","删除标准","将初期値随机化","出现频率的最小值","非比例优势模型","拉普拉斯近似（Laplace approximation）的最大似然法"," 保存为R使用的数据","数据文件名","表示正态曲线","・HAD2Stan_SEM设置"]
["起动HAD","不能运行使用变量超过…的分析。","频率","HAD正在运行．．．.因子分析","HAD2R",null,"组内平均（变量名_m）","OK","删除所有工作表","不做反向计分","・缺失值设置","收敛基准　= ","删除基准","计算使用变量的总分","OK","（竖排数据变横排）",null," ＠变量","←删除","OK","不覆盖输出","负二项分布","・使用变量","取消","・简单结构分析","・设置使用的单词","比例优势模型","带限制的伪（False maximum）最大似然法"," 读取 csv文件",".csv","直方图的级数=","R的操作规则"]
["变量投入","请选择分析代码。","正态性检验","HAD正在运行．．．.聚类分析","TTM2\nHAD",null,"取消","取消","删除所有不带有\"$\"的工作表","存在载荷为负值的项目。\n需要反向计分后进行合成吗？","\".\" （英文句号）","直交旋转基准=","使用全体平均进行主效应中心化","计算使用变量的平均值","取消","（横排数据变竖排）",null,"变量名"," 全投入","　添加→","差的检验","逻辑","・自变量","OK","取消","动词","・潜在秩序回归分析的回归系数","伪最大似然法","・文件夹路径","取消","不显示标记","参照"]
["变量合成","分析代码不正确。","散点图","HAD正在运行．．．.同质性分析","分析",null,"数据输入方法","Excel默认(列宽度8.38)","名称变更","减去后反向计分","用户指定","※Kappa数值越大因子间相关越大","将二值虚拟变量当作分类变量（推荐）","使用中位数分成两组","计算矩阵公式","OK",null,"值"," 全删除","←删除","独立","概率","保存模型","默认设置","OK","名词","・连续量潜在秩序分析中的平均值的估计方法","取消","・文件名","OK","勾画拟合直线","数据文件名"]
["运行分析代码","分析代码不适当。","组别的统计量","HAD正在运行．．．.结构方程模型","数据\n工作表",null,"差的检验",null,"显示","特征值","・HAD的显示设置","取消","类型Ⅲ"," 合成变量","不覆盖输出","取消",null,"排除比该值大的个案","使用变量","投入主效应","配对","・中止数据的方向","删除选择模型",null,"默认设置","形容词","相位生成图","OK","输出","・R用的数据设置","重叠散点",".csv"]
["将分析代码反映到HAD中","模型表格页的设置将被初始化。","核密度估计","HAD正在运行．．．输出","使用变量",null,"多水平统计分析",null,"删除","减去后反向计分","保存变量信息（上限254变量）","OK","类型Ⅱ"," 量表转换","生成多变量正态随机数","嵌套型数据",null,"排除比该值小的个案","数据列表","投入交互作用","平均值的差的检验","下侧","保存的模型清单",null,"非迭代估计（最大法）","副词","自组织映射图","默认设置",".csv","・MCMC的设置","95%置信区间","将缺失值变成\"NA\""]
["描述性统计量","确定初始化吗？","列联表","HAD正在运行．．．.类别相关系数","使用选择的单元格",null,"多水平相关分析",null,"工作表名",null," 显示设置","初始设置","・协变量"," 数值转换","样本大小="," 数据问卷的输出",null,"使用和该值相等的个案","　用于分析的变量","・因变量","相关分析","上侧"," 从保存的模型中选择",null,"主因子法","关键词","邻域函数的方差","・残差协方差的构造","参照","抽样数","标准误差"]
["直方图","请选择单元格。","平均值的检验","HAD正在运行．．．.多重列联表","投入控制变量",null,"MUML用协方差矩阵",null,"模型",null," 分析设置","（从1到1000）","・多重比较方法"," 重新分配数值","与协方差矩阵完全一致"," 选择数据文件",null,"数据","　从HAD中排除的变量","・自变量","相关的差异检验","双侧"," 从分析代码中输入",null,"非迭代估计(平均法）","同义词","默认设置","一次自回归（AR(1)）","文件","马尔科夫链（Markov Chain)的数量","直方图"]
["作为主数据组使用","数据当中含有错误的计算公式。","多重列联表","HAD正在运行．．．.对数线性模型","变量居左显示",null,"数据的概要",null,"数据工作表",null," 图表设置","（从0.00001到1）","校正Shaffer"," 虚拟变量","模拟（用于错误）"," 生成随机数据",null,"排除与该值相等的个案","排除的变量","从列表中删除","项目分析（α系数）","广义泊松","・分组变量",null,"精度较高，但需要时间来计算","・输出","取消","球形度（HF）","读取","采用间隔(thin)","散点图"]
["将此变量添加到数据组中","确定将错误计算公式变成缺失值吗？","主成分分析","HAD正在运行．．．.对数线性模型","变量信息",null,"描述性统计",null,"工作表管理",null,"快捷键","（从1到10 ）","Shaffer","OK"," 随机数生成","・现在的使用数据：",null,"OK","取消","保存模型","信度系数","取消","使用变量",null,"将共同度的和的变化绘制成图","单词出现的频数","OK","方差成分（VC）","将缺失值变换为\"NA\"","warm up数","箱型图"]
["分析代码","数据中含有空白单元格。","独立样本的平均等秩检验","模拟正在运行．．．．(现在 ","回归分析",null,"不覆盖输出结果",null,"删除工作表",null,"右击","（加权：从0到变量个数为止）","Holm","取消"," 抽样","取消",null,"取消","OK","清除选定的模型","均值估计","OK","表示模型↓",null,"探索碎石图的分界值","单词与单词的列联表","重复估计次数","无结构（UN）","OK","并行化","删除图片的边框"]
["变量信息","请确认数据中的缺失值和变量的个数。","配对样本的平均等秩检验","HAD正在运行．．．.方差分析","因子分析",null,"标准化得分（变量名_s）",null,"关闭",null," 系统","・平行分析","主效应和多重比较的显著性水平","不覆盖输出"," 矩阵演算","OK",null,"适用","　排除→","保存的模型列表","标准值＝","默认设置","编辑被选择的部分的模型(半角空格分隔)",null,"探索效率较好的模型　※推荐","回答者与单词的列联表","・潜在秩序分析（EM算法）的估计设置",null,"将\"NA\"变换为缺失值","核心数","黑白表示"]
["使用变量：","数据中只有空格的单元格（变量名","皮尔逊积矩相关系数","HAD正在运行．．．.方差分析输出","变量合成",null,"简捷法的协方差矩阵",null,"全部删除",null,"取消","抽样次数=","Bonferroni","不覆盖输出","OK","指定工作表",null,"变量名","←返回"," 从保存的模型中选择","数据的描述","无","反映编辑内容",null,"运行平行分析","运行分析","邻域函数的方差",null,"・R中使用数据的对象名称","默认设置","折线的粗细"]
["变量名","行）包括在其中。","协方差矩阵","HAD正在运行．．．.平均值的差的检验 输出","数据文件",null,"成对协方差矩阵",null,"移动工作表",null,"OK","初始值随机化","・简单效应的误差项的计算方法","计算使用变量的主成分得分","取消","使用原始数据",null,"值","　全读取"," 从分析代码中输入","描述性统计","负Log-Log","现在的模型",null,"共同度的和","取消",null,null,"R代码","输出名","刻度线改在内侧"]
["代码","请确认数据。","斯皮尔曼等级相关系数","HAD正在运行．．．.方差分析简单效应检验输出","工作表管理",null,"协方差矩阵",null,"将选择的工作表移动至新建文件",null,"取消","最优斜交法旋转   Power =","合并误差项","使用标准化得分合成变量","均匀分布","使用协方差数据",null,"标签","读取变量","・分组变量","频率分布表","补充Log-Log","・分析法",null,"VSS","不覆盖输出",null,null,"开启HAD2R","R上的数据名","图片整体设置"]
["结构方程模型","个变量以上不能够被读取。","多分格（Polychoric）相关系数","HAD正在运行．．．.聚类分析","HAD的设置",null,"矩阵显示",null,"分析记录",null,"OK","独立聚类旋转  Power =","各水平的误差项","将中位数包括在高分组中","正态分布","使用多分格（Polychoric）相关的数据",null,"OK","·请选择要从HAD中排除的变量。","使用变量","散点图","・重回归分析的估计法","分析代码",null,"VSS的复杂性 =","单词与单词的距离矩阵",null,null,"HAD2R现在处于关闭状态","输出设置","计算核密度估计值"]
["模型","请在数据组中输入数据。","阿尔法系数","HAD正在运行．．．.","筛选器",null,"相关分析",null,"保护",null,"・HAD的初始化","斜交旋转法"," 回归分析","将中位数包括在低分组中","样本大小=","原始数据",null,"取消","·请选择要在分析中使用的变量。","显示模型↓","箱线图","最小二乘法","表示模型↓",null,null,"每个回答者的单词的反应数据",null,null,"开启HAD2R","输出stan的计算结果","取消"]
["验证性","以前被指定的\"从HAD中除外的变数\"，本次也将其除外吗？","信度系数","HAD正在运行．．．..聚类分析　正在计算聚类特征","值的标签",null,"中心化得分（变量名_c）",{"$nulls":3},"所有的分析设置都返回HAD的默认设置，\n保存的所有变量信息都将被删除。","直接斜交法旋转"," 方差分析","把基准值当作缺失值","样本数=","使用组变量计算平均",null,"适用","全排除","编辑选定部分的模型（半角空格分隔）","直线回归","最大似然法","删除所有模型",null,null," 输出数据",null,null,"・读取数据用的R代码","输出stan的代码","OK"]
["因子分析","变数名称不能使用「$」、「\\」、「,(英文逗号)」、「半角空格」","独立样本的平均值的差的检验","HAD正在运行．．．.聚类分析　正在生成树形图","标签",null,"read me",{"$nulls":3},"取消","（从0到1）","　广义线性模型","标准化得分（变量名_s）","最小値 =","每个组的数据（组平均）",null,"添加","控制变量","反映编辑","按单元格计算频数","・稳健标准误差的类型","・模型名称",null,null," 单词的聚类化",null,null,"　↓","安装glmmstan"," Kernel intervals数="]
["多层统计","存在同样名称的变量。","配对样本的平均值的差的检验","HAD正在运行．．．.多维标度法","@变量",null,"成对删除",{"$nulls":3},"设置的初始化","因子分析"," 广义线性混合模型","组平均值（变量名_m）","最大値 =","输出选择的变量",null,"删除","　添加→","当前的模型","带标签","聚类校正",{"$nulls":3}," 数据的数量化",{"$nulls":3},"输出安装用的代码","误差条表示"]
["SEM","变量的数量的最大值(","重回归分析","HAD正在运行．．．.潜秩序分析　EM演算法","投入因变量",null,"成列删除",{"$nulls":3},"变量信息列保持固定","聚类分析","取消","使用组平均值进行中心化（变量名_g）","总体平均=","输出SAS的代码",null,"删除全部的筛选设置","←删除","・分析法","组别","异方差的校正",{"$nulls":3},"输出聚类数据",{"$nulls":4},"默认值"]
["限制→",")由于过多，不能读取所有的数据。","泊松回归分析","次","投入所有主效应",null,"缺失值处理方法",{"$nulls":3},"显示全部的工作表"," 量化分析","OK","中心化得分（变量名_c）","总体方差=","・生成多变量正态随机数",null,"输入选择单元格","登录","分析代码","列联表","・自助法样本数",{"$nulls":3},"聚类类别数=",{"$nulls":4},"不显示误差条的下侧"]
["分组→","数据读取中发生意外错误。HAD的运算终止。","负二项式回归","HAD正在运行．．．.潜秩序分析　自组织映射图　","投入所有交互作用",null,"输出数据",{"$nulls":3},"・读取以前的版本（HAD16以后）的数据","结构方程模型","取消","嵌套型数据","不覆盖输出","从选定变量的协方差矩阵生成",null,"适用筛选设置","清除","显示模型↓","直方图级数=","随机设置随机数的初始值",{"$nulls":3},"多维标度法",{"$nulls":4},"带宽参数="]
["最大值","別的工作表使用该数据时，只能使用回归分析・因子分析。","Logistic回归分析","HAD正在运行．．．.正在计算标准误差　","选项",null,"嵌套型数据",{"$nulls":3},"解除工作表的保护","・单纯结构分析","OK","不覆盖输出","正态分布","指定工作表",null,"将所有数据用于分析","登录变量列表","清除所有的模型","正态性的检验","自助法样本大小＝",{"$nulls":3},"最远距离法",{"$nulls":4},"在折线图中添加误差条"]
["最小值","最大数(","伽玛回归分析","HAD正在运行．．．.因子分析　迭代次数 =","运行分析",null,"（组内相关系数）",{"$nulls":3},"画面初始化","取消","・偏离球面性的自由度校正","OK","泊松分布","取消",null,"输入选择的单元格","显示登录变量↓","选择用于分析的模型","等级相关分析","参数",{"$nulls":3},"组平均法",{"$nulls":4},"返回"]
["　求解器开启",")多于该数量的变量不能运行分析。","线性回归分析","HAD正在运行．．．.因子分析　迭代次数 =","关闭筛选器",null,"PW相关分析",{"$nulls":3},"\"NA\"","OK","H-F","取消","取消","OK",null,"清除",null,"・模型名称","协方差","非参数",{"$nulls":3},"Ward法",{"$nulls":4},"覆盖提琴图"]
["　求解器关闭","別的工作表使用数据时，变量的合成机能不能够运行。","判别分析","HAD正在运行．．．.类别因子分析・・・","不覆盖输出",null,"数据重构",{"$nulls":3},"OK","默认设置","G-G","成列删除（合成","OK","不覆盖输出",null,"输入选择的单元格",null,null,"等级差检验（非参数检验）","・自助法样本的抽取法",{"$nulls":3},"维度数=",{"$nulls":4},"给平均值添加记号"]
["多分格（Polychoric）相关数据","协方差数据不能够运行类别因子分析。","因子分析","牛顿迭代法","定距",null,"变量按组排序",{"$nulls":3},"取消","非迭代估计法(最大法）","下限","成列删除（量表","二项分布","样本大小＝",null,"变量名",null,null,"独立","・随机数的设置",{"$nulls":3},"聚类的出现频率",{"$nulls":4},"柱状图"]
["协方差数据","协方差数据不能够运行聚类分析。","系统聚类分析","拟牛顿迭代法","定序",null,"成列数据文件",{"$nulls":3},"显示","主轴因子法","无校正","成列删除（虚拟","负二项分布","・生成单变量标准正态随机数",null,"OK",null,null,"配对","・自助法可信区间的估计",{"$nulls":3},"数据的工作表名",{"$nulls":4},"估计核密度"]
["普氏（Procrustes）分析","协方差数据不能够运行量化分析。","K-means法","外推法","定比",null,"组内人数=",{"$nulls":3},"不显示","VSS","・自变量的设置（与广义线性模型共通）","平均值=","平均","从标准正态分布生成随机数数据",null,"取消",null,null,"变量间的关连性","百分位数法",{"$nulls":3},"对应分析",{"$nulls":4},"依据样本量变化"]
["旋转","苹果版电脑不装备有SEM功能。","样本数量","HAD正在运行．．．.正在计算因子得分","计数",null,"因子分析",{"$nulls":3},"　删除→","VSS的复杂性 =","・选择分析方法","标准差=","方差","随机化",null,"适用",null,null,"对应分析","偏差校正法",{"$nulls":3},"维度数="]
["最近距离法","此HAD版本为无求解器（solver)的版本。请下载有求解器（solver)的版本使用。","※方差使用无偏方差显示，标注差使用无偏方差的平方根显示。","HAD正在运行．．．.正在计算因子得分(EAP 区分求积法)・・・ ","中止",null,"项目分析",{"$nulls":3},"←返回　","共同度的和","表示定类显著水平","变量的减法","样本数=","变更样本大小",null,"创建筛选变量",null,null,"多水平统计分析","显示标准化系数",{"$nulls":3},"聚类分析"]
["最远距离法","打开模型空间并运行。","变量名","HAD正在运行．．．.正在计算因子得分(EAP 蒙特卡洛模拟( Monte Carlo simulation)积分)・・・ ","定类",null,"组按变量排序",{"$nulls":3},"显示全部","非迭代估计法(平均法）","默认设置","变量的加法","概率","成对数据文件",null,"・将当前的筛选设置成变量",null,null,"多水平相关分析","・显示路径图",{"$nulls":3},"输出得分数据"]
["中值法","工作表中指定的数据计算不出因子得分。","有効N","HAD正在运行．．．.正在计算因子得分(MAP法)・・・ ","混合分布",null,"（纵列的数据转化为横向排列）",{"$nulls":3},"删除全部","精度高，但是花时间","默认设置","变量的乘法","运行次数","成列删除",null,"（排除=1, 使用=0）",null,null,"用于MUML的协方差矩阵",{"$nulls":4},"最大方差法Varimax"]
["重心法","使用协方差数据时不能使用稳健标准误差。","平均值","HAD正在运行．．．.因子分析　次数 =","四分位数",null,"（横排的数据转化为纵向排列）",{"$nulls":3},"再度读取","共同度的和的推移进行图表化","默认设置","取消","平均","不覆盖输出",null,"把这个变量作为分组变量",null,null,"配对相关分析",{"$nulls":4},"有加权"]
["群平均法","使用协方差数据时不能使用聚类的标准误差。","中位数","HAD正在运行．．．.平行分析　迭代次数 =","稳健标准误差",null,"因变量=",{"$nulls":3},"全部初始化","寻找碎石图的分割点","进行Satterthwait的校正","OK","平均","・数据的重新排序",null,"OK",null,null,"配对协方差矩阵",{"$nulls":4},"无加权"]
["可变法","非系统聚类分析中不能对变量进行分类。","标准差","HAD正在运行．．．.项目反应理论图表输出中","聚类标准误差",null,"回归分析",{"$nulls":3},"默认设置","寻找高效率的模型　※推荐使用","成对数据的误差项","不覆盖输出","过度离散","・数据的重新排序",null,"取消",null,null,"识别可能",{"$nulls":4},"树状图的总结规则="]
["Ward法","非等级聚类分析不能运行来自距离矩阵的分析。","方差","HAD正在运行．．．.回归分析","模型保存",null,"残差得分",{"$nulls":3},"改变工作表的单元格的宽度","默认设置","因素的误差项","成列删除(数字","不覆盖输出","・嵌套型数据的重新排序",null,"＠添加変量",null,null,"组内相关系数",{"$nulls":4},"总结树状图"]
["聚类分析","混合分布模型不能运行变量的分类。","偏度","HAD正在运行．．．.回归分析步骤","回归分析",null,"使用分类进行控制",{"$nulls":3},"・误差条","取消","组内要素的多重比较"," - 变量","随机化","关闭筛选器",null,"＠删除変量",null,null,"嵌套型数据",{"$nulls":4},"聚类数据"]
["k-means算法","混合分布模型不能运行来自距离矩阵的分析。","峰度","HAD正在运行．．．.回归分析　简单效应的检验","方差分析",null,"读取模型工作表",{"$nulls":3},"标准误差","OK","・其他设置","变量 + ","形状","与协方差矩阵完全一致后合成",null,"＠变量",null,null,"关闭筛选器",{"$nulls":4},"主成分分析"]
["改进k-means","潜类别分析不能运行变量的分类。","最小值","HAD正在运行．．．.混合分布回归分析　　","广义线性模型",null,"输入使用变量的个数",{"$nulls":3},"95%可信区间","・聚类基准","协变量中心化","幂","伽玛分布","成列删除",null,"代入变量名",null,null,"直方图",{"$nulls":4},"主成分分析"]
["混合正态分布","潜类别分析不能运行来自距离矩阵的分析。","最大值","HAD正在运行．．．.潜秩序回归分析　　","广义线性混合模型",null,"交互作用项",{"$nulls":3},"取消","Ward法","・标准化系数","变量的累乘","量表","用于多水平统计分析模型的协方差矩阵",null,"适用",null,null,"API模型",{"$nulls":4},"对应分析"]
["潜类别分析","潜秩序分析不能运行变量的分类。","人数","HAD正在运行．．．.正在进行广义线性混合模型的事前处理","分层投入法",null,"简易模式",{"$nulls":3},"OK","群平均法","因变量为二值数据时进行逻辑性回归分析","变量 * ","α","组间水平",null,"＠删除所有变量",null,null,"组别的回归直线",{"$nulls":4},"依据大小排列"]
["潜秩序分析","潜秩序分析不能运行来自距离矩阵的分析。","标准误差","HAD正在运行．．．.广义线性混合模型　简单效应的检验","步进法",null,"识别可能",{"$nulls":3},"・直方图的显示","重心法","步进法","变量的对数转换","β","组内水平",null,"取消",null,null,"气泡图",{"$nulls":4},"（在主成分分析中使用）"]
["连续","广义最小二乘法不能够运行缺失值估计。","95%置信水平","自助法正在运行．．．．(现在 ","中介效应分析",null,"（组内和组间混合）",{"$nulls":3},"・散点图的显示","最远距离法","多变量回归","创建虚拟变量","贝塔分布","组内序列号",null,"OK",null,null,"主成分分析",{"$nulls":4},"（在对应分析中使用）"]
["定序","协方差数据不能用来进行结构方程模型的分析。","得分","HAD正在运行．．．.正在运行自助法 ","不输出各个步骤",null,"多层统计回归分析",{"$nulls":3},"勾画线性近似直线","最近距离法","重回归分析","计算从第一个变量减去剩余变量的差分值","从数据文件里","指数分布族随机数的生成",null,"变量名",null,null,"组别统计量"]
["外生变量","探索性因子分析不使用模型空间。","正态性检验","HAD正在运行．．．.广义线性混合模型正在运行(NULL模型)","输出残差的得分",null,"组内相关=",{"$nulls":3},"下侧不添加误差条","树状图的显示法","相关系数的差","当前数值",null,"・生成单变量的指数分布族的随机数",null,"代码说明",null,null,"图表设置"]
["估计路径","请输入使用变量。","卡方值","HAD正在运行．．．.广义线性混合模型正在运行 ","HAD2GLIMMIX",null,"移除以下内容",{"$nulls":3},"・图表显示设置","距离的","输出逻辑・计数回归分析的标准化系数","新的数值",{"$nulls":3},"分析法：",null,null,"多重列联表分析"]
["估计协方差","使用变量和因子数的合计超过了规定值(95)。","p值","HAD正在运行．．．.正在进行广义线性混合模型的事后处理","HAD2glmmstan",null,"中介效应分析",{"$nulls":3},"黑白显示","幂","※计算可能需要一些时间","其他的所有的值",{"$nulls":3},"使用变量："]
["初始化","使用变量和因子数的合计超过了规定值(50)。","Jarque-Bera检验","HAD正在运行．．．.正在运行中介效应分析","因子分析",null,"bootn=",{"$nulls":3},"不给图添加外框","输出聚类处理结果","包含交互效应的情况下，对各变量进行中心化(推荐）","缺失值",{"$nulls":3},"使用变量名"]
["检查模型","潜在因子数已经为0。","统计量","HAD正在运行．．．.回归分析步骤","聚类分析",null,"随机化",{"$nulls":3},"不显示标记","・输出设置","步进法的基准","指定范围",{"$nulls":3},"运行代码"]
["HAD2Stan","请选择2个以上的变量。","校正p值","HAD正在运行．．．.多变量回归分析","量化分析",null,"碎石图",{"$nulls":3},"在折线图添加误差条","输出距离矩阵","输出球面性的检验结果","指定数值",{"$nulls":3},"通过重新运行新创建的变量的代码，\n增加数据时，可以用同样的方法算出得分。"]
["添加路径","识别不了模型。请减少估计参数。","Kolmogorov-Smirnov检验","HAD正在运行．．．.中介效应分析输出","结构方程模型",null,"数据的协方差矩阵",{"$nulls":3},"OK","・多维标度法的设置","·计数数据的分布","从",{"$nulls":3},"代码："]
["添加协方差","存在没有测量项目的因子。请指定2个及2个以上的项目。","※Jarque-Bera检验是对偏度和峰度为0的原假设进行检验。使用自由度为2的卡方检验。","HAD正在运行．．．.正在估计NULL模型","添加因子",null,"频率分布表",{"$nulls":3},"取消","提取到维度","泊松分布","复制当前数值"]
["删除路径图","使用变量请指定两个及两个以上的变量。","按每个单元格内的频数","HAD正在运行．．．.正在估计模型","减少因子",null,"对应分析",{"$nulls":3},"・快捷键的指定","默认设置","负的二项分布","缺失值"]
["反映路径图","路径图描画过程中发生意外错误。","样本数量 = ","HAD正在运行．．．.正在建构参数","显示路径图",null,"等级相关分析",{"$nulls":3},"显示模型工作表","取消","・比率回归分析的分布","指定数值"]
["重画路径图","协方差数据不能运行方差分析。"," (正在删除文档列表)","HAD正在运行．．．.正在计算标准误差","分组",null,"显示矩阵",{"$nulls":3},"显示分析记录","OK","概率","OK"]
["因变量→","协方差数据不能够运行广义线性模型。","频数","HAD正在运行．．．结构方程模型・・・","协变量中心化",null,"散点图",{"$nulls":3},"投入变量","・数据的种类","逻辑","取消"]
["分组→","协方差数据不能够运行等级线性模型。","比率(%)","基准","显示定类显著性水平",null,"量表平均值",{"$nulls":3},"默认设置","变量型：把变量里的分类数据作为数值进行编码","补充Log-Log","删除"]
["重回归分析","协方差数据不能够运行判别分析(多变量回归分析)。","总频数",null,"广义效果量",null,"合计值",{"$nulls":3},"默认设置","分类反应型：分类的反应编码为0和1","负Log-Log","不覆盖输出"]
["稳健回归","请在B2格里输入ID变量。","对数线性模型",null,"无偏估计效果量",null,"使用中位数分割",{"$nulls":3},"默认设置","・图表的输出设置","・中止数据的方向","成列删除(重新分配"]
["稳健SE","没有输入使用变量。","变量",null,"对数线性模型",null,"使用平均进行分割",{"$nulls":3},"工作表管理","交叉表型：数据为2变量的交叉表时","下侧","・从使用变量中创建合成变量"]
["聚类SE","没有输入回归分析的因变量。","存在频数为0的单元格",null,"组均值进行中心化",null,"平行分析",{"$nulls":3},"显示分析记录","※交叉表型的情况下，同时绘制行和列的图。\n","上侧","平均值设置为0"]
["自助法","使用变量中没有因变量。","正在加载。加载的值可以使用「HAD的设置」进行变更。",null,"判别分析",null,"多变量随机数",{"$nulls":3},"记录保存数","显示维度轴的刻度","双侧","使用组平均值进行中心化"]
["模型→","协方差数据中没有因变量。","单元格序列号",null,"多变量回归分析",null,"使用标准得分",{"$nulls":3},"单元格的宽度","显示维度軸","无","计算组平均值"]
["强制投入→","协方差数据不能检测交互作用。","变量間的关联性与检验",null,"各个单元格的平均值",null,"主成分得分",{"$nulls":3},"新的分析结果显示在最前面","Kaiser的标准化","广义泊松","・将使用变量分为两组（低分组=0，高分组=1）"]
["中介效应分析","中介效应分析不能检测交互作用。","分水平进行的估计",null,"中介效应的设置",null,"类别相关",{"$nulls":3},"・类别数据的水平个数","树状图的要約标准","判别分析","・将使用变量转换为虚拟变量"]
["线性回归","没有输入因变量。","阶模型",null,"步进法的设置",null,"显示矩阵",{"$nulls":3},"水平个数","分类对象","・广义线性模型的迭代计算的基准","・使用变量和常数的四则运算"]
["随机效应","使用变量过多。交互作用只支持到5个变量。","饱和度模型的估计結果",null,"不显示记录",null,"分类的水平　<",{"$nulls":3},"以内的变量将被看作为类别数据","以上","最大迭代次数","・使用变量的非线性变换"]
["残差构造→","指定的变量不能超过使用变量","系数",null,"删除所有记录",null,"Full-ML",{"$nulls":3},"・HAD的版本","实行平行分析","收敛基准","创建反映当前筛选器设置的变量(排除=1，使用=0)"]
["随机效应→","协方差数据计算不出各格内的平均值。","下限",null,"启动",null,"Two-Step",{"$nulls":3},"hadversion","※使用加权=1的最大方差法","・自变量的设置","创建筛选器变量"]
["方差分析","判别分析只有在使用原始数据时才能运行分析。","上限",null,"工作表\n管理",null,"从启动",{"$nulls":3},"参照文件","k-means法","将二值虚拟变量当作分类变量（推荐）","计算平均得分"]
["协变量→","定序数据的回归分析只有在使用原始数据时才能运行分析。","Z值",null,"关闭",null,"作为交叉表读取",{"$nulls":3},"・随机数种子","随机化","使用全体平均进行主效应中心化","计算总得分"]
["反复测量→","定类数据的回归分析只有在使用原始数据时才能运行分析。","频率",null,"二进制",null,"作为原始数据读取",{"$nulls":3},"使用系统时间","改进k-means","使用组平均进行水平1的变量中心化","计算主成分得分"]
["对数线性模型","比率数据的回归分析只有在使用原始数据时才能运行分析。","直方图（正态性检验）",{"$nulls":3},"箱形图",{"$nulls":3},"固定工作表","等级法","・等级线性模型的迭代计算的基准","从第一个变量中减去其余变量"]
["判别分析","混合分布回归分析只有在使用原始数据时才能运行分析。","外观值",{"$nulls":3},"矩阵演算",{"$nulls":3},"折线的粗细=","非等级法","最大迭代次数","・变换各变量的平均值和标准偏差"]
["多变量回归","计数数据的回归分析只有在使用原始数据时才能运行分析。","概率(%)",{"$nulls":3},"变量的计算",{"$nulls":3},"文字使用Times New Roman书体","初始值","收敛基准","・以组平均值进行各变量的中心化（嵌套型数据）"]
["自变量→","中止数据的回归分析只有在使用原始数据时才能运行分析。","有効频数",{"$nulls":3},"虚拟变量代码",{"$nulls":3},"刻度线向内配置","主成分","默认设置"," （输入最大値+1的数值）"]
["HLM","四分位数回归分析只有在使用原始数据时才能运行分析。","有効概率",{"$nulls":3},"变量的差",{"$nulls":3},"・箱形图・柱状图的显示","随机","取消","※从协方差矩阵进行主成分分析。\n为了得到与因子分析的主成分解相同的结果，请使用标准化的得分。"]
["连续変量","多水平分析不能运行带有缺失值的分析。","累积概率",{"$nulls":3},"等秩检验　 (非参数检验)",{"$nulls":3},"点状图重叠显示","迭代","OK","组平均值+中心化（変数名_mc）"]
["正态分布","缺失值的估计中估计外生变量的方差。","合计",{"$nulls":3},"变量之间的关联性",{"$nulls":3},"日文字体","迭代次数=","・标准误差的类型","算出中心化后的组平均值"]
["对数正态分布","广义最小二乘法不能进行缺失数据的估计。","正态分布",{"$nulls":3},"独立样本",{"$nulls":3},"显示正态曲線","・量表得分的计算方法","基于模型的标准误差","中心化后创建交互效应项"]
["伽玛分布","HAD起動中发生意外错误。HAD的运算终止。","区间",{"$nulls":3},"配对样本",{"$nulls":3},"显示误差条","合计值","稳健标准误差","变量的反正弦变换（角变换）"]
["定序回归","混合分布回归分析不能使用分层投入法。","组的代表值",{"$nulls":3},"平均值的差的检验",{"$nulls":3},"制图设置的详细","平均值","包含交互效应的情况下，对各变量进行中心化(推荐）","・创建交互效应项"]
["逻格斯（Logistic）回归","请输入聚类的数量。","均匀性检验",{"$nulls":3},"成对样本",{"$nulls":3},"・加在对数线性模型的0频数上的值","收敛基准　= ","・输出设置","关闭筛选器"]
["概率单位","请把组别变量输入到左侧的单元格内。","自由度",{"$nulls":3},"独立样本",{"$nulls":3},"显示语言(Language, 表示言語)","最大迭代次数 = ","输出固定效应的协方差矩阵","关闭筛选器"]
["补充Log-Log","请在「使用变量→」输入将用在分析当中的变量名。","出现的次数",{"$nulls":3},"按组列出的数据",{"$nulls":3},"・多重比较的方法","・迭代计算的基准","Null模型中包含截距的变量效应","关闭筛选器"]
["负Log-Log","使用变量的最大数(","众数",{"$nulls":3},"直线回归",{"$nulls":3},"Bonferroni","验证性因子分析的結果按大小排序","・变量效应的设置","关闭筛选器"]
["定类回归",")超过了。","曲线拟合",{"$nulls":3},"重新分配数值",{"$nulls":3},"Holm","估计精度 = ","估计截距的变量效应（推荐）","关闭筛选器"]
["参照","数据输入不正确。请确认。","累积正态曲線的参数",{"$nulls":3},"筛选器变量",{"$nulls":3},"Shaffer","默认设置","・回归系数的检验方法","排序得分（变量名_rs）"]
["二项回归","变量名里包含有空白。请确认Box变量。","平均",{"$nulls":3},"单元格平均值",{"$nulls":3},"修正Shaffer","取消","聚类内相关","当前的数值 → 新的数值"]
["β二项式回归","有重复的变量名。","阈值的估计",{"$nulls":3},"平均值的估计",{"$nulls":4},"OK","异方差","添加"]
["发生次数","没有找到。请再次读取变量名重新确认。","25%阈值",{"$nulls":3},"检验值 =",{"$nulls":4},"・标准误差的估计","显示切换到建模空间的复选框","删除离群值"]
["总数","变量名不可以使用「*」。","50%阈值",{"$nulls":3},"按单元格计算频数",{"$nulls":4},"微小值 = ","・输出","删除超出标准差的值"]
["混合分布回归","控制变量里有重复的变量名。","75%阈值",{"$nulls":3},"Mplus代码",{"$nulls":4},"・输出的设置","回归系数的协方差矩阵","组内的序列号"]
["分类的个数","控制变量里包含有和使用变量相同的变量名。","四分位数",{"$nulls":3},"带标签",{"$nulls":4},"路径図的結果使用标准化解输出","分步投入交互效应项（推荐）","将字符串转换为数字"]
["计数回归","平均值的差的检验需要指定2个及2个以上的变量。","象限",{"$nulls":3},"组别",{"$nulls":4},"・估计的设置","・投入变量的方法"]
["泊松分布","相关系数的差的检验需要指定包括ID变量在内的4个及4个以上的变量。","平均的区间估计",{"$nulls":3},"信度系数",{"$nulls":4},"估计外生变量的方差","・其他设置"]
["负二项式分布","没有输入回归模型的因变量。","标准值",{"$nulls":3},"交叉表",{"$nulls":4},"限制方差为非负值的估计","・效果量的类型"]
["广义泊松","回归模型的因变量不包括在使用变量里。","置信区间",{"$nulls":3},"相关的差的检验",{"$nulls":4},"设置碎石图","Cohen的d"]
["偏移量","组内要素分析的因变量必须在2以上。","差",{"$nulls":3},"中位数",{"$nulls":4},"反映因子间相关","相关系数 r"]
["Tobit回归","反复测量的水平的个数的输入不正确。","df",{"$nulls":3},"组内平均＋中心化（变量名_mc）",{"$nulls":4},"・因子得分的计算方法","效果量d（Hedges的g）"]
["中止下侧","协变量中有和因变量同样的变量。","t值",{"$nulls":3},"组内相关系数",{"$nulls":4},"回归法","计算各水平的标准误差"]
["中止上侧","协变量中有不包含在使用变量中的变量。","※误差条显示标准误差。",{"$nulls":3},"组数　=",{"$nulls":4},"EAP的估计使用蒙特卡罗积分(Monte Carlo Integration)（类别变量时）","总体估计量"]
["中止两侧","测量要素中存在和因变量相同的变量。","※误差条显示95%置信区间。",{"$nulls":3},"正态分布检验",{"$nulls":4},"类别因子分析","广义效果量"]
["无中止","测量要素中存在不包含在使用变量中的变量。","组",{"$nulls":3},"交互作用项",{"$nulls":4},"EAP","差的效应"]
["四分位数回归","交互作用项不能投入到中介效应分析中。","共变",{"$nulls":3},"不覆盖输出2",{"$nulls":4},"MAP","要素的效应"]
["四分位数","中介效应分析的模型中，自变量的投入数量不能超过2变量。","相关系数",{"$nulls":3},"关闭筛选器",{"$nulls":4},"稳健标准误差","群间为合并・群内为各水平"]
["因子分析","因变量也被包含在分组当中。","可决系数",{"$nulls":3},"气泡图",{"$nulls":4},"无校正","用t分布进行检验"]
["因子数→","因变量被包含在自变量里。","协方差",{"$nulls":3},"直方图",{"$nulls":4},"类别因子分析的估计使用求解器","・对假设的偏离的校正方法"]
["抽取方法→","使用协方差数据时不能投入交互作用项。","估计值",{"$nulls":3},"完全一致",{"$nulls":4},"顺序聚类","无校正"]
["旋转方法→","使用变量里包含未指定的变量。","直线回归",{"$nulls":3},"组别的回归直线",{"$nulls":4},"顺序","稳健标准误差"]
["得分→","自变量中含有复数个同一变量。","模型",{"$nulls":3},"等方差检验",{"$nulls":4},"连续","聚类标准误差"]
["最大似然","协变量不包含在方差分析的模型当中。","截距",{"$nulls":3},"API模型",{"$nulls":4},"混合分布","用t分布进行检验"]
["最小二乘法","组内要素的变量不包括在方差分析的模型里。","斜率",{"$nulls":3},"均匀性检验",{"$nulls":4},"EII","无校正"]
["反复主轴因子法","自变量没有包括在模型里。","回归式",{"$nulls":3},"排序得分（变量名_rs）",{"$nulls":4},"EEE","自助法（Bootstrap）"]
["主成分法","中介效应分析的自变量需要在2个以上。","按组的回归直线",{"$nulls":3},"主成分分析",{"$nulls":4},"VII","迭代数="]
["类别","交互作用项的数量超过了界限值。","※未能显示所有的回归直线。只显示最初的255组的結果。",{"$nulls":3},"BM检验",{"$nulls":4},"VVV","随机化"]
["特征值为1以上","自变量的输入不适当。","※未能显示所有的回归直线。",{"$nulls":3},"组内序列号",{"$nulls":4},"方差模型设置","稳健回归分析"]
["斜交旋转","在下一个Step里，请输入包括前一个Step的变量。","气泡图",{"$nulls":3},"把文字转换为数值",{"$nulls":4},"潜类别分析","输出固定效应的协方差矩阵"]
["不做旋转","指定2个分组变量（分割变量）时，3因素的交互作用必须包括在模型里。","等级相关系数",{"$nulls":3},"组别的统计量",{"$nulls":4},"学习倍率","C-M"]
["正交旋转","使用变量中没有找到分组变量。","对应分析",{"$nulls":3},"核密度",{"$nulls":4},"潜秩序分析","・混合分布回归分析的设置"]
["按大小排序","分组变量中有相同的变量。","列联表",{"$nulls":3},"图的设置",{"$nulls":4},"详细设置","随机化"]
["相关性矩阵","自变量中没有找到分组变量变量。","关联系数和独立性的检验",{"$nulls":3},"曲线拟合",{"$nulls":4},"稳健标准误差","迭代次数="]
["最大似然斜交法","交互作用变量中没有找到分组变量。","※置信区间不收敛",{"$nulls":3},"多重列联表",{"$nulls":4},"・非等级法・潜在变量分析的分析设置","HAD2GLIMMIX的设置"]
["因子得分","分组变量必须被包含在交互作用项当中。","Cramer's V",{"$nulls":3},"had2stan_sem",{"$nulls":5},"・连续变量的分布"]
["量表分数","聚类的类数指定不正确。","列联表的绘图",{"$nulls":9},"正态分布"]
["碎石图","请输入比0大，比分类的对象数小的整数","Fisher的正确概率",{"$nulls":9},"对数正态分布"]
["项目反应理论","聚类分析方法的选择不正确。","※2×2的交叉表的时候显示。总频数在40以下的情况，或者存在期望次数在5以下的单元格的情况下请参照这里。",{"$nulls":9},"简单效应分析的点估计"]
["聚类的类别数→","请选择一个方法","双尾概率",{"$nulls":9},"标准差"]
["分类方法→","输入的最大迭代次数不正确","单尾概率",{"$nulls":9},"±"]
["分析对象→","请输入比1大的整数","一致性系数(agreement coefficient)",{"$nulls":9},"二项回归的过度分散的估计"]
["分层","输入的收敛基准不正确","Cohen的κ",{"$nulls":9},"伽玛分布"]
["不分层","请输入比0.00001大的数值","列联表(对总的比率%)",{"$nulls":9},"概率链"]
["混合分布","结构方程模型必须使用两个以上的使用变量。","列联表(按行计算的比率%)",{"$nulls":9},"二项分布"]
["潜类别","HAD终止运算。","列联表(按列计算的比率%)",{"$nulls":9},"贝塔二项分布"]
["潜秩","输入的因子数不正确 ","残差分析",{"$nulls":9},"由求解器估计"]
["不做指定的分析","请输入0以上，项目数以下的整数","列联表（△表示显著性的个数多，▼表示显著性的个数少）"]
["回答者","请输入1以上，项目数以下的整数","调节后的标准化残差"]
["变量","orthomax标准（因子贡献的加权）的输入不正确"," (Wilcoxon的正负号等级检验)"]
["距离矩阵","请输入以下的数值。","※基于负值顺序"]
["树状图","最大方差法 = 1","※基于正值顺序"]
["聚类的特征","四次幂极大旋转 = 0","检验统计量Z ="]
["对回答者分类","Biquatimax旋转 = 0.5"," (弗里德曼(Friedman)检验)"]
["变量分类","等方差极大旋转 = 因子数 / 2","检验统计量χ2 ="]
["所属类别","因子简约 = 变量的个数","效果量"]
["聚类的平均值","输入的最优斜交法旋转标准(Power)不正确","平均级别"]
["数据标准化","请输入1以上的数值","※级别越高意味着得分越高。"]
["多维标度法","因子提取法的选择不正确","级别的分"]
["量化分析","请选择任意一个提取法","多重比较 (Holm方法）"]
["(同质性分析)","分类标准的输入不正确","水平的組对"]
["维度个数→","请输入0到180的数值。","级别的差"]
["数据→","直方图的级别数的输入不正确","效果量 r"]
["加权→","请输入2到100的数值。","调节p值"]
["变量型","一标本检验的标准值的输入不正确","(曼-惠特尼（Mann–Whitney）检验)"]
["分类反应型","请输入数值。","(克鲁斯卡尔-沃利斯（Kruskal - Wallis）检验)"]
["交叉表型","自助法的样本数量的输入不正确","假定不等方差的检验（Brunner-Munzel检验）"]
["最大方差法","请输入200～50000的数值。","检验统计量t ="]
["无加权","请输入组内人数。","(按得分排序)"]
["有加权","组内人数的输入不适当。","加权系数"]
["变量图示","对应分析的输出,包括识别分组变量在内有必要输入3个以上的变量","主成分"]
["回答者图示","组别的散点图的输出，包括识别分组变量在内有必要输入4个变量","特征值"]
["变量型数据","散点图的输出,包括识别分组变量在内有必要输入3个变量","贡献率"]
["反应型数据","非参数检验需要指定2个以上的变量。","累积贡献"]
["回答者得分","因子分析的输出，包括识别分组变量在内有必要输入3个以上的变量","绘图"]
["分类反应型数据","因变量的输入不正确","标准化主成分"]
["SEM","请从被选择的变量中选择"]
["分析法→","小组数只有1个。","标准化加权系数"]
["估计法→","进行分析时，请去掉“嵌套型数据”的勾选","等方差的检验 (Levene检验)"]
["估计设置→","数据输入中发生意外错误。HAD的运算终止。","进行检验的变量"]
["CFA","数据里包含有数式错误。","分组变量"]
["EFA","你要把数式错误变成缺失值继续分析吗？","F值"]
["多水平统计模型","数据里包含空白的单元格。","df1"]
["GLS","请确认数据的缺失值以及变量的个数。","df2"]
["无潜在变量","数据里包含有被指定的缺失值以外的文字。","检验统计量"]
["完全聚类解","请确认数据。","各组的方差"]
["标准化残差","数据里包含有只是空格的单元格。","删除"]
["验证性因子分析","没有找到多重组群分析的分组变量。","数据"]
["标准误差","多重组群分析的分组变量包含在使用变量中。","多分格（Polychoric）"]
["估计均值结构","控制变量不能使用文字数据。","标签"]
["缺失值数据","分组变量只可以设置一个。","偏相关分析"]
["模型空间","请确认筛选器的设置。","相关分析"]
["现在的模型","多水平分析不支持分组分析。","检验统计量(t值)和显著性概率"]
["成列删除","聚类标准误差不支持分组分析。","※从上到下依次表示t值，p值，自由度，95%可信区间"]
["描述性统计","文档对分析只支持成对数据。","p值"]
["箱形图","该数据不是成对数据。","自由度"]
["直方图","只有所有的组内人数相等的数据才能被作为识别可能的数据运行分析。","95％CI"]
["频率","只有所有的组内人数相等的数据才能被排序。","等级相关系数(斯皮尔曼)"]
["正态分布检验","组数的最大限度值为15。HAD的运算终止。","类别相关分析"]
["散点图","方差分析中不能使用控制变量进行带有控制的分析。","多分格（Polychoric）・多系列（Polyserial）相关系数的计算过程中出现了错误。"]
["　标签","回归分析・广义线性模型・等级线性模型不能使用控制变量进行带有控制的分析。","※由于存在分类的个数超过了规定值( & categorimax & \")的变量、其中一部分计算了皮尔逊积矩相关系数。"]
["　组别","平均值的差的检验不能使用控制变量进行带有控制的分析。","检验统计量和显著性概率"]
["直线回归","以类别数据为因变量分析中，不能使用控制变量进行带有控制的分析。","※从上到下依次表示Z值(或者t值)、p值、相关系数的种类"]
["列联表","计数数据的回归分析分析中，不能使用控制变量进行带有控制的分析。","项目分析"]
["气泡图","等秩检验中，不能使用控制变量进行带有控制的分析。","项目"]
["组别平均值","等方差的检验中，不能使用控制变量进行带有控制的分析。","内部一致性系数"]
["核密度","列联表分析中，不能使用控制变量进行带有控制的分析。","Alpha系数"]
["曲线拟合","同质性分析中，不能使用控制变量进行带有控制的分析。","按照项目进行的分析"]
["平均数区间估计","多分格（Polychoric）相关分析中，不能使用控制变量进行带有控制的分析。","和量表的"]
["平均值的差的检验","多重列联表中，不能使用控制变量进行带有控制的分析。","相关系数"]
["　独立样本","对应分析中，不能使用控制变量进行带有控制的分析。","删除后的"]
["　成对样本","对数线性模型中，不能使用控制变量进行带有控制的分析。","载荷"]
["相关的差的检验","分类个数超过了规定值(250)。显示不了交叉表","反向计分后的阿尔法"]
["等方差的检验","分类个数超过了规定值(250)。显示不了对应分析","※主成分载荷为负数的项目进行反向计分时的阿尔法系数"]
["中位数的差的检验","阿尔法系数的计算需要指定2个以上变量。","量表平均值"]
["相关分析","方差分析中，有必要输入包括ID变量在内的3个以上的变量","项目数"]
["协方差","不对应多水平统计分析","※Jarque-Bera检验是根据偏度和峰度决定的正态性检验的一种，使用自由度为2的卡方分布计算p值。"]
["等级相关分析","值的重新编码与HAD2不匹配。","※p值使用自由度为2的卡方分布进行了计算。"]
["类别相关分析","虚拟变数生成与HAD2不匹配。","多重测量的一致性系数（consistency coefficient）（量表的内部一致性）"]
["项目分析","数据文件的排序与HAD2不匹配。","标准化阿尔法系数"]
["信度系数","气泡图与HAD2不匹配。","ω系数"]
["对应分析","曲线拟合与HAD2不匹配。","※因子分析出现了不合理结果(improper solutions)，没能输出ω系数。"]
["多重列联表","对数线性模型与HAD2不匹配。","※依据最大似然法得到的因子分析結果进行计算。"]
["主成分分析","同方差的检验与HAD2不匹配。","単一测量的一致性系数（consistency coefficient）"]
["组内相关系数","广义泊松分布与HAD2不匹配。","※定序量表的情况下，连贯性（coherence）と一致性（agreement）相同。"]
["多水平相关分析","Tobit回归分析与HAD2不匹配。","量表"]
["成对相关分析","贝塔二项分布与HAD2不匹配。","组内相关系数"]
["　可以识别","对数正态分布与HAD2不匹配。","等级组内相关"]
["按组进行的回归分析","混合正态分布与HAD2不匹配。","间隔"]
["行动者-对象互依性模型","四分位数分布与HAD2不匹配。请关闭HAD2R后再次运行分析。","定序"]
["等秩检验","稳健回归分布与HAD2不匹配。","単一测量的絶対一致性系数(agreement coefficient)"]
["定序Logistic回归分析","多变量正态分析与HAD2不匹配。","κ系数(Fleiss)"]
["定序概率单位回归分析","广义线性模型的步进法与HAD2不匹配。","定类"]
["定序补充Log-Log回归分析","中介效应分析与HAD2不匹配。","※各统计量　组内相关：F值, Kendall的W：卡方值, κ系数：Z值"]
["定序负Log-Log回归分析","主成分分析与HAD2不匹配。","※对角矩阵(粗体字)表示组内相关、上三角矩阵表示个人水平相关、下三角矩阵表示成对数据水平的相关"]
["二项Logistic回归分析","普氏（Procrustes）分析旋转与HAD2不匹配。","※成对数据的N"]
["二项概率单位回归分析","改进k-means法与HAD2不匹配。","※作为识别可能数据的分析"]
["二项补充Log-Log回归分析","混合分布・潜类别分析与HAD2不匹配。","成对相关分析"]
["二项负Log-Log回归分析","量化分析与HAD2不匹配。","逆矩阵"]
["定类Logistic回归分析","结构方程模型与HAD2不匹配。","矩阵式"]
["泊松回归分析","所有的数据都是缺失值，或者删除数据的设置有错误。","固有向量"]
["負二项回归分析","控制变量里包含有线性的因变量。","采样模拟"]
["广义泊松回归分析","数据里包含有缺失值。 ","总体分布 "]
["Tobit回归分析(下侧中止）","交叉表数据里不认可缺失值。","总体平均"]
["Tobit回归分析(上侧中止）","分类个数超过了规定值(1000)。不能进行等级相关的计算。","总体方差"]
["Tobit回归分析(两侧中止）","类别相关系数的计算中发生意外错误。"]
["Tobit回归分析(无中止）","和","正态分布"]
["混合分布回归分析","的多分格（Polychoric）或者多系列（Polyserial）相关系数的计算不成功。","均匀分布"]
["四分位数回归分析","多分格（Polychoric）相关系数估计中发生了意外错误。HAD的运算终止。","标本大小"]
["重回归分析（最大似然法）","比较组的个数超过了规定值（100）。HAD的运算终止。","标本的数"]
[" 步进法","多重响应交叉表只能运行5个变量以内的分析。","各标本的统计量"]
[" 中介分析","单元格总数超过规定值（100000），不能运行该分析","标本分布的统计量"]
["稳健回归分析","多重列联表(cellfreq)计算中发生意外错误。HAD的运算终止。","总体平均作为原假设时的危险率"]
["多变量回归分析","对数线性模型只能运行5个变量以内的分析。","标本平均"]
["等级线性模型","对数线性模型(celldata)计算中发生意外错误。HAD的运算终止。","标本方差"]
["最优斜交法旋转","对数线性模型(loglinear)计算中发生意外错误。HAD的运算终止。","无偏方差"]
["独立聚类旋转","对数线性模型(泊松cul)计算中发生意外错误。HAD的运算终止。","无偏方差的平均"]
["Oblimin 旋转","由于包含文字数据不能运行分析。分析终止。","标本"]
["四次幂极大旋转","曲线拟合中，因变量有必要是概率（0～1的范围）。","正态分布"]
["结构方程模型","曲线拟合过程中，发生了意外的错误。HAD的运算终止。","t分布"]
["平均值","由于包含了文字数据不能运行分析。分析终止。","※筛选器正在使用： "]
["合计值","小组的个数超过100的散点图不能显示。","※组: "]
["主成分","发生了意外的错误。HAD的运算终止。","分析代码:"]
["变量的差","分类的个数存在2个以下的变量。分析终了。"," 使用变量："]
["交互作用项","由于因变量是文字数据不能运行分析。分析终止。","各单元格的平均值和标准偏差"]
["使用标准化分数","※由于分类的个数超过了规定值（1000），没能进行检验。","※误差条显示标准误差"]
["标准化","※由于自变量的分类的个数多于因变量，没能进行检验。","※误差条显示95%的可信区间"]
["中心化","矩阵不是正方矩阵。","棒图表"]
["组均值中心化","特征值分解(QR法)中发生意外错误。HAD的运算终止。","方差分析"]
["组均值","特征值分解(雅克比（Jacobi）方法)中发生意外错误。HAD的运算终止。","模型拟合"]
["分数排序","F值为负值。HAD的运算终止。","误差("]
["反向计分","卡方值为负值。HAD的运算终止。"]
["变量+(","由于因变量里包含文字数据不能运行分析。分析终止。","误差(其他)"]
[")","只能运行5要素以内的分析。","总"]
["变量*(","协变量不能被指定为分组变量。","误差"]
["变量的","测量要素里不能指定组内要素。","拟合指标"]
["幂","水平的个数超过了规定值的要素不能被指定为分组变量。:规定值=","球形度的检验"]
["对数变换","由于模型的自由度超过了规定值不能运行分析。规定值=","卡方值"]
["反正弦变换","水平的个数的规定值(","下限"]
["数值重新编码","使用Saffer法时，水平的个数超过10的情况，不能输出多重比较的结果。","要素的効果(TypeⅡ & 平方和)"]
["虚拟变量","组内要素的交互作用包含在模型里时，其交互作用的简单效应不能从模型里省略。","要素的効果(TypeⅢ & 平方和)"]
["使用平均值分割","方差分析(anovainput)中发生意外错误。HAD的运算终止。","※对球形度偏离进行自由度的校正 = "]
["使用中位数分割","方差分析输出(anova)中发生意外错误。HAD的运算终止。","无校正"]
["中位数为高分组","由于自由度不足，简单效应分析不能够运行。","校正df1"]
["中位数为低分组","由于估计不出误差，简单效应分析不能够运行。","校正df2"]
["中位数为缺失值","方差分析输出(anovaoutput)中发生意外错误。HAD的运算终止。","partialη2"]
["虚拟变量化","t检验输出(anovaoutput)中发生意外错误。HAD的运算终止。","partialω2"]
["团体内的编号","由于自由度在0以下，不能运行分析。","广义η2"]
["※控制变量= ","使用按照各个水平计算的误差项时，请试验使用合并误差项。","广义ω2"]
["缺失","简单效应分析(anovasimple)中发生意外错误。HAD的运算终止。","估计平均和多重比较"]
["值标签","简单效应分析输出(anovasimpleoutput)中发生意外错误。HAD的运算终止。","※组内要素的多重比较 = 按成对数据计算的误差项"]
["缺失值","由于存在自由度在0以下的要素。分析终止。","※组内要素的多重比较 = 要素的误差项"]
["协变量","方差分析(reganova)中发生意外错误。HAD的运算终止。","※显示协变量使用平均值时的计算结果。"]
["动词","方差分析中(reganova2)发生意外错误。HAD的运算终止。","总平均"]
["名词","模型中包含有线性因变量，或者存在频数为0的组。分析终止。","水平"]
["复合名词","方差分析(reganova3)中发生意外错误。HAD的运算终止。","要素"]
["形容词","包含有人数不满一个人的单元格。","各个水平上的平均值"]
["副词","不能使用非系统聚类分析进行变量分类。HAD终止分析。","多重比较"]
["关键词","非等级聚类分析的情况，需要指定聚类个数。请去掉「非指定分析」的勾选。HAD的运算终止。","修正Shaffer方法"]
["同义词","数据为距离矩阵的情况，不能使用改进k-means方法，混合分布模型，潜类别分析，潜秩序分析。HAD的运算终止。","Shaffer方法"]
["输出→","数据不是正方矩阵。HAD的运算终止。","Holm方法"]
["日本語","运行聚类分析时，分类的对象数需要在3个以上。HAD的运算终止。","Bonferroni方法"]
["English","潜类别分析的自由度出现负值。HAD的运算终止。","主效应p值"]
["G/标准","潜秩序分析的自由度出现负值。HAD的运算终止。","差"]
["$设置$","所有的尝试都出现了不合理结果(improper solutions)。HAD的运算终止。","效果量 d"]
["Kendall's W","不合理结果(improper solutions)。HAD的运算终止。","定类水平"]
["中文","维度个数超过了最大个数。不能运行多维标度法。:最大数 =  ","独立样本的平均值的差的检验 (独立样本的t检验)"]
["原始数据","由于样本数量少于变量的个数，不能够运行因子分析。","因变量"]
["〇","包含有方差为0以下的变量。分析终止。","配对样本的平均值的差的检验 (配对样本的t检验)"]
["Yu Gothic UI","因子分析的收敛计算中发生意外错误。HAD的运算终止。","同方差假定时的标准误差"]
["MS UI Gothic","假设因子载荷矩阵的输入不正确","差的检验"]
["Meiryo UI","输出初始解。","检验的种类"]
["Yu Gothic UI semilight","目标载荷矩阵的输入不正确","Welch检验"]
["GLMM","独立聚类旋转中发生错误。HAD的运算终止。","t检验"]
["二项分布","直接斜交旋转中发生意外错误。HAD的运算终止。","※Welch检验运行不假定2群是同方差的检验。"]
["广义线性混合模型","没有数据中找到使用变量。","相关系数 r"]
[null,"没能进行估计。","简单效应的检验"]
[null,"输出计算途中的解。","分组变量"]
[null,"※普氏（Procrustes）分析旋转未能收敛。"]
[null,"自由度出现负值。HAD的运算终止。","分组"]
[null,"为了生成虚拟变量，所有的数据都有必要是整数。HAD的运算终止。","要素的简单效应(TypeⅡ平方和)"]
[null,"运行同质性分析时，所有的数据都有必要是整数。HAD的运算终止。","要素的简单效应(TypeⅢ平方和)"]
[null,"由于不是分类型的数据文件。HAD的运算终止。","※MSe = 合并误差项"]
[null,"所有的分类在0以下。HAD的运算终止。","※MSe = 按照各个水平计算的误差项"]
[null,"所有的分类个数超过了最大值(500)。HAD的运算终止。","对球形度偏离的自由度校正"]
[null,"存在0或者1以外的数值。HAD的运算终止。","※简单效应的自由度使用Satterthwaite的方法进行校正。"]
[null,"分类个数存在超过最大值(100)的变量个数。HAD的运算终止。","交互作用的p值"]
[null,"分类的个数中存在1个的变量。HAD的运算终止。","比较对象"]
[null,"由于存在3个以上的含有文字列的自变量，不能运行分析。分析终止。","Null模型"]
[null,"混合分布回归分析中不能使用聚类标准误差。","饱和度模型"]
[null,"没有在使用变量里找到计数回归分析的偏移量。","模型的估计結果"]
[null,"没有在使用变量里找到比率数据的总尝试次数变量。","频数的估计"]
[null,"请输入比率的总尝试次数变量。","期望次数"]
[null,"各步骤间自变量的排列顺序有不一致的部分。HAD的运算终止。","残差"]
[null,"二项回归分析的反复次数或者总数里有不是整数数值。HAD的运算终止。","标准残差"]
[null,"二项回归分析的反复次数里，有比总数更大的subject。HAD的运算终止。","最近距离法"]
[null,"随机效应指定的变量与因变量是相同的。","最远距离法"]
[null,"随机效应里被指定的变量不包括在模型里。","中值法"]
[null,"level2的变量与因变量是相同的。","重心法"]
[null,"level2的变量不包括在使用变量里。","群平均法"]
[null,"为了运行简单效应的检验，请勾选选项的「当包含交互作用项时，将对各变量实行中心化」。","可变法"]
[null,"的自由度低于0。分析终止。","Ward法"]
[null,"误差的自由度低于0。请取消嵌套型数据的勾选。分析终止。","基于马氏距离(Mahalanobis Distance) 的k-means方法"]
[null,"误差的自由度低于0。分析终止。","混合正态分布"]
[null,"回归分析里包含有线性因变量。","潜类别分析"]
[null,"回归分析中发生意外错误。HAD的运算终止。","潜秩序分析 (连续)"]
[null,"没有找到输入的参照分类。分析终了。","潜秩序分析 (定序)"]
[null,"因变量的分类的个数超过了最大值（20)。分析终了。"," (同质性方差)"]
[null,"Logistic回归分析的计算途中估计值出现了Over Flow。"," (同质性方差协方差)"]
[null,"存在有数据与模型不拟合的可能性。"," (异质性方差)"]
[null,"存在自由度为0的组。HAD的运算终止。"," (异质性方差协方差)"]
[null,"定序回归分析出现了Over Flow。HAD的运算终止。","聚类分析"]
[null,"计算上的样本数量超过了最大值。","分析的方法"]
[null,"判别分析中发生意外错误。HAD的运算终止。","距离的计算"]
[null,"判别分析运行过程中出现了错误。","从数据输入距离矩阵"]
[null,"求不出逆矩阵","似然"]
[null,"因变量里包含有负数。","自组织映射图"]
[null,"计数回归分析里因变量不能为负数。分析终了。","相位生成图（generative topographic map）"]
[null,"偏移量里包含0。HAD终了。","原始数据由来的欧式距离(EuclideanDistance)"]
[null,"计数数据的回归分析中发生意外错误。HAD的运算终止。","标准化数据由来的欧式距离(EuclideanDistance)"]
[null,"分析中出现了Over Flow。分析终了。","分类对象"]
[null,"分析中估计值为0。分析终了。","分类对象的个数"]
[null,"回归分析（最大似然法）中发生意外错误。HAD的运算终止。","参数的个数"]
[null,"伽玛回归中需要因变量是大于0的值。分析终止。","学习次数"]
[null,"中止数据的回归分析中发生意外错误。HAD的运算终止。","反复数"]
[null,"自由度变成0。HAD的运算终止。","估计次数"]
[null,"稳健回归分析中发生意外错误。HAD的运算终止。","对数似然"]
[null,"等级线性模型中发生意外错误。HAD的运算终止。","放大率"]
[null,"因变量群里有可能包含线性因变量。HADを終了します","聚类的成员"]
[null,"不能在HAD2GLIMMIX里运行定类回归。","聚类数"]
[null,"不能在HAD2GLIMMIX里运行概率单位回归。","聚类"]
[null,"不能在HAD2GLIMMIX里运行广义泊松回归。","所属的个数"]
[null,"不能在HAD2GLIMMIX里运行中止数据的分析。","所属的成员"]
[null,"不能在HAD2GLIMMIX里运行混合回归模型分析。","聚类的特征 （得分使用标准化得分)"]
[null,"没有找到随机效应指定的变量。","树状图"]
[null,"请在四分位数里输入「ALL」，或者大于0小于1的数值。","树状图的显示法 = 距离的"]
[null,"had2glmmestan中发生意外错误。HAD的运算终止。","幂"]
[null,"※使用变量中，存在模型里没有的变量。分析結果中，依据使用变量里指定的所有的变量进行文档列表删除。","※树状图优先"]
[null,"回归分析输出(regoutput)中发生意外错误。HAD的运算终止。","对聚类汇总后的显示。如果要显示所有结果，请在选项中改变汇总的标准。"]
[null,"等级线性模型输出(hlmoutput)中发生意外错误。HAD的运算终止。","聚类的经过过程"]
[null,"回归分析输出(hraoutput)中发生意外错误。HAD的运算终止。","阶段"]
[null,"分组变量输出中发生意外错误。HAD的运算终止。","距离"]
[null,"相关性矩阵差的检验需要指定两个以上的因变量。","結合聚类"]
[null,"由于存在4人以下的组，不能继续。分析终了。","距离矩阵"]
[null,"比率数据的回归分析中发生意外错误。HAD的运算终止。","参数估计值"]
[null,"伽玛回归分析中(gammacul)に发生意外错误。HAD的运算终止。","潜在频数"]
[null,"贝塔二项回归分析中发生意外错误。HAD的运算终止。","潜在概率"]
[null,"分组的数量只有1组。","级别"]
[null,"缺失数据过多","※满足了定序配置条件"]
[null,"所有的组内的人数都是1。","※没能满足定序配置条件"]
[null,"样本数量中有为0的组。","项目引用配置文件"]
[null,"制約的输入不正确。","测试引用配置文件"]
[null,"参数的数量超过了最大值(200)。","方差协方差"]
[null,"没能完成估计。请勾选选项的「限制方差为非负值的估计」后再次进行估计。","按照分类计算的反应概率"]
[null,"输出计算途中的解。","与潜类别对应的关联系数"]
[null,"结构方程模型运算中出现错误。HAD终止运算。","与潜秩对应的关联系数"]
[null,"没能完成饱和度模型的估计。","与潜秩对应的等级相关系数"]
[null,"没能完成基线模型的估计。","潜类别的Logistic回归分析 (参照分类使用Cluster"]
[null,"如果指定样本数量，就不能进行稳健标准误差的估计。","潜秩的Logistic回归分析 (比例优势(odds)模型)"]
[null,"如果指定样本数量，就不能进行缺失数据的估计。","潜秩的Logistic回归分析 (非比例优势(odds)模型)"]
[null,"模型空间里存在使用变量里没有的变量，或者使用变量的排列和模型空间的变量的排列不一致。点击模型空间钮，运行再分析。","标准化"]
[null,"模型空间不符合多层统计SEM使用基准。点击模型空间钮，运行再分析。","※使用稳健标准误差。"]
[null,"模型工作表中存在使用变量里没有的变量，或者使用变量的排列和模型工作表的变量的排列不一致。","近似R-squared的值"]
[null,"再次点击模型空间钮，运行再分析。","类别直方图"]
[null,"多水平统计SEM中不能估计文件标准误差","级别直方图"]
[null,"有不正确的模型制約。HAD将忽略它。","主成分分数"]
[null,"多重组群分析的样本数量的指定请使用\";\"来间隔，并按组请指定。HAD将忽略这一限制。","多维标度法"]
[null,"限制条件过多","维度"]
[null,"样本数量的输入不正确。请输入数值。","碎石图"]
[null,"样本数量的输入不正确。请输入大于等于1的整数。","对角SMC"]
[null,"工作表名","平行分析"]
[null,"没有找到。","SMC平行"]
[null,"指定数据中没有适当的协方差数据。","随机数相关矩阵"]
[null,"不能读写变量以上的数据","数据相关性矩阵"]
[null,"超过了","因子数"]
[null,"没有找到输入的变量名。","对角SMC平行分析"]
[null,"请输入读写到模型工作表里的变量名。","随机数对角SMC"]
[null,"输入到筛选器的值不正确。","共同度的和的推移"]
[null,"值的输入不正确。","共同度的和"]
[null,"没有找到分析代码。","样本"]
[null,"请选择登录的数据文件。","调节法"]
[null,"请输入登录名。","因子"]
[null,"请指定使用变量。","最大似然法"]
[null,"列表上有同样的登录名。你确定要覆盖吗？","最小二乘法"]
[null,"登录到列表上了。","反复主轴因子法"]
[null,"删除吗？","非反复估计法"]
[null,"删除所有的模型吗？","（最大法）"]
[null,"删除了所有的模型。","（平均法）"]
[null,"分析代码的模型","主成分法"]
[null,"模型保存中发生意外错误。HAD的运算终止。","类别因子分析(带有加权的最小二乘法规划求解利用)"]
[null,"请输入模型的名称(「现在的模型」和「分析代码的模型」以外)","类别因子分析(带有加权的最小二乘法)"]
[null,"请指定因变量。","提取方法 "]
[null,"列表里有同样的模型。你确定要覆盖吗？","旋转方法"]
[null,"登录到列表里了。","（目标矩阵："]
[null,"请输入登录名。","无旋转"]
[null,"现在的模型不能被删除。","最大方差法"]
[null,"删除吗？","Biquartimax旋转"]
[null,"请指定模型。","四次幂极大旋转"]
[null,"自助法的样本数的输入不正确","等方差极大旋转"]
[null,"分析代码的模型","因子简约"]
[null,"投入标准概率的输入不正确。","orthomax标准"]
[null,"删除标准概率的输入不正确。","直交普氏（Procrustes）分析旋转"]
[null,"输入的平行分析的样本数不正确。","斜交普氏（Procrustes）分析旋转"]
[null,"VSS的复杂性的输入不正确。","Harris-Kaiser的独立聚类旋转"]
[null,"请输入1～3之間的整数。","直接斜交（oblimin）旋转"]
[null,"请输入0～1000之間的整数。","最优斜交法旋转"]
[null,"没有找到ExcelTTM文件。","Kaiser的标准化"]
[null,"ExcelTTM的分析結果没有找到","有"]
[null,"读取了ExcelTTM的数据。","无"]
[null,"出现频数的最小值请输入1以上的整数。","因子模式"]
[null,"聚类数请输入1以上的整数。","迭代次数"]
[null,"树状图的要約标准请输入1以上的整数。","收敛基准"]
[null,"多维标度法的维度个数请输入1以上的整数。","偏离程度"]
[null,"对应分析的维度个数请输入1以上的整数。","※计算的中途特征值出现了负数。显示结果有可能是不合理结果(improper solutions)。"]
[null,"没有找到数据的工作表。","※到最大反复数为止解没能收敛。显示结果为收敛途中的解。"]
[null,"被指定的工作表里没有数据。","※计算的中途共同度接近了1。显示结果有可能是不合理结果(improper solutions)。"]
[null,"总反应数里有为0的分类。HAD的运算终止。","※相关矩阵不是正定值。因子分析不能够运行。"]
[null,"潜秩序分析的学习率的输入不正确。","※模型未能最优化。显示的解可能不正确。"]
[null,"潜秩序分析的邻域函数的最小值的输入不正确。","共同度"]
[null,"潜秩序分析的反复估计次数的输入不正确。","因子贡献"]
[null,"请输入比0大比1小的值。","拟合优度"]
[null,"没有数据。请输入数据。","※阿尔法系数和ω系数使用粗体字的项目计算（载荷为负是进行反向计分）"]
[null,"导出了csv文件。","因子得分"]
[null,"没有找到路径。","不进行反向计分时的信度系数"]
[null,"请选择csv文件","因子间相关"]
[null,"读取了csv文件。","因子结构（与因子的相关系数）"]
[null,"HAD2R现在处在开启状态","阈值"]
[null,"HAD2R现在处在关闭状态","项目反应理论"]
[null,"请输入文件名。","项目特性"]
[null,"样本数的输入不正确。","识别力"]
[null,"请输入比0大的数值。","困难度"]
[null,"马尔可夫链（Markov Chain)的个数的输入不正确。","测试信息函数"]
[null,"warmup个数的输入不正确。","测试信息曲线"]
[null,"采用间隔的个数的输入不正确。","项目特性曲線"]
[null,"core的个数的输入不正确。","项目特性函数"]
[null,"请输入输出名称。","多层统计相关分析"]
[null,"请输入R上的数据名。","※对角矩阵(粗体字)表示组内相关，上三角矩阵表示个人水平相关，下三角矩阵表示集团水平的相关"]
[null,"请指定直方图的级别数。","检验统计量(Z值)和显著性概率"]
[null,"请输入直方图的级别数的数值。","※上段为Z值，下段为p值"]
[null,"请使用2以上并小于100的数值指定直方图的级别数。","有効样本数量"]
[null,"请指定折线图的粗细的数值为1以上。","组数"]
[null,"Kernel区间数请指定1以上的数值。","组内人数"]
[null,"带宽参数请指定比0大的数值。","以上的平方根"]
[null,"请选择工作表。","全样本"]
[null,"与此同名的工作表已经存在。","组内相关"]
[null,"这一名称已被使用。请指定别的名称。","信度"]
[null,"这一名称不能使用。请指定别的名称。","※组内使用分类进行制约（组内相关有改变）"]
[null,"删除所有的工作表吗？","同质性分析 (多重对应分析・数量化理论Ⅲ类)"]
[null,"删除选择了的工作表吗？","数据形式"]
[null,"被移动到新的文件上的工作表从以前的HAD文件上删除吗？","变量型"]
[null,"工作表被复制到新的文件上了。","分类型"]
[null,"工作表被移动到新的文件上了。","所有分类的个数"]
[null,"请指定单元格的宽度","分类的个数"]
[null,"请指定数值。","交叉表型"]
[null,"请指定6以上的数值。","回答者"]
[null,"请指定1以上的整数。","特征值と相关系数"]
[null,"请指定缺失值。","分类量化"]
[null,"请指定随机数种子","分类名"]
[null,"给随机数种子输入整数。","的分类"]
[null,"请指定加载在0频数的对数线性模型上的值。","行的分类"]
[null,"请输入加载在0频数的对数线性模型上的0以上的值。","自助法估计值的分布"]
[null,"请输入加载在0频数的对数线性模型上的0以上以及小于1的值。","的系数"]
[null,"请指定1以上的数值。","步进法"]
[null,"快捷键必须使用半角英文模式。","※没有显著性的自变量。"]
[null,"这个功能苹果电脑不能使用。","※由于包含有交互作用项，所有自变量都进行中心化。"]
[null,"找不到HAD的文件。","※所有的自变量都进行中心化。"]
[null,"此文件不是ver15.30以后的HAD文件。","多变量回归分析"]
[null,"读取了HAD文件的数据。","※所谓Pillai是指Pillai的痕迹"]
[null,"最大迭代次数的输入不正确。","自变量的多变量检验"]
[null,"输入的因子提取的收敛基准不正确","对各因变量的重回归分析的标准偏回归系数"]
[null,"请输入大于0以及1以下的数值。","典型相关分析"]
[null,"输入的最优斜交法旋转的Power不正确。","典型相关"]
[null,"请输入1～10的数值。","典型系数"]
[null,"输入的独立聚类旋转的Power不正确。","因变量"]
[null,"因子贡献的权重的输入不正确。","自变量"]
[null,"请输入0到变量数量之间的数值。","成分"]
[null,"请输入0～1的数值。","标准化典型系数"]
[null,"苹果电脑以及无求解器（solver)的版本不能使用规划求解器（solver)","结构系数"]
[null,"树状图的显示方法的输入不正确。","※残差协方差结构，由于不能使用Gauss–Hermite求积分，估计法变更为疑似最大似然法。"]
[null,"请输入大于0以及5以下的数值。","※残差协方差结构，由于不能使用拉普拉斯（Laplace）近似积分，估计法变更为疑似最大似然法。"]
[null,"请输入大于等于1的整数。","※由于随机效应存在2个以上的情况下Gauss–Hermite求积分不能使用，估计法变更为拉普拉斯（Laplace）近似。"]
[null,"树状图的概要基准的输入不正确。","稳健回归分析"]
[null,"请输入5以上的整数。","概率单位回归分析"]
[null,"迭代次数的输入不正确。","定序回归分析"]
[null,"请输入1以上的整数。","Logit链"]
[null,"收敛基准的输入不正确。","概率单位链"]
[null,"请输入大于0小于1的数值。","补充Log-Log链"]
[null,"请输入1～10000的整数。","负Log-Log链"]
[null,"估计精度的输入不正确。","二项回归分析"]
[null,"标准误差计算用的微小值的输入不正确。","定类Logistic回归分析"]
[null,"使用多层统计SEM估计不出稳健标准误差","泊松回归分析"]
[null,"主效果的显著性概率基准的输入不正确。","对数链"]
[null,"最大迭代次数的输入不正确。","負的二项回归分析"]
[null,"请输入1～10000的数值。","广义泊松回归分析"]
[null,"自助法（Bootstrap）的重采样数量的输入不正确。","Tobit回归分析"]
[null,"混合分布回归的迭代次数的输入不正确。","下侧中止"]
[null,"分组变量的估计点的输入不正确。","上侧中止"]
[null,"请输入大于0的值。","两侧中止"]
[null,"值的输入不正确。","不中止"]
[null,"范围的输入不正确。","贝塔二项回归分析"]
[null,"不能选择最小值到最大值。","线性回归"]
[null,"缺失值","正态分布"]
[null,"其他","对数正态回归分析"]
[null,"新输入的值不正确。","伽玛回归分析"]
[null,"复制","混合分布回归分析"]
[null,"～","偏移量"]
[null,"样本数需要在1以上。","※最优化计算没能收敛。指定为泊松分布进行了分析。"]
[null,"最小值的输入不正确。","※最优化计算没能收敛。結果有可能是不合理结果(improper solutions)。"]
[null,"最大值的输入不正确。","※似然的计算中发生了意外错误。显示的卡方值，信息量标准不正确。"]
[null,"请输入大于最小值的数值。","总尝试次数"]
[null,"平均值的输入不正确。","收敛"]
[null,"方差的输入不正确。","不合理结果(improper solutions)数"]
[null,"样本大小的输入不正确。","近似"]
[null,"样本数输入不正确。","负2对数似然"]
[null,"平均值的输入不正确。请输入数值。","Wilks的Lambda"]
[null,"方差的输入不正确。请输入数值。","回归系数"]
[null,"方差的输入不正确。请输入大于0的值。","判别系数"]
[null,"概率的输入不正确。请输入数值。","参照分类"]
[null,"概率的输入不正确。请输入0到1的数值。","低一级的秩（rank）"]
[null,"测试次数的输入不正确。请输入数值。","※分析的过程中反应概率有为0的项。結果有可能是不合理结果(improper solutions)。"]
[null,"测试次数的输入不正确。请输入大于0的整数。","※由于过度离散参数不收敛，将其固定在0上进行了估计。指定为泊松分布进行了分析。"]
[null,"平均值的输入不正确。请输入大于0的值。","类别"]
[null,"过度离散的输入不正确。请输入数值。","残余方差"]
[null,"过度离散的输入不正确。请输入大于0的值。","比例参数"]
[null,"形状参数的输入不正确。请输入数值。","※2值变量作为类别变量处理。"]
[null,"形状参数的输入不正确。请输入大于0的值。","※使用校正异方差性的稳健标准误差。"]
[null,"比例参数的输入不正确。请输入数值。","※使用校正聚类内相关的稳健标准误差。"]
[null,"比例参数的输入不正确。请输入大于0的值。","※使用自助法标准误差・置信区间。"]
[null,"α参数的输入不正确。请输入数值。","※系数的检验基于t分布进行。"]
[null,"α参数的输入不正确。请输入大于0的值。","标准化系数"]
[null,"β参数的输入不正确。请输入数值。","擬似标准化系数"]
[null,"β参数的输入不正确。请输入大于0的值。","※显示的系数，请将其看作效果量的大致的程度。"]
[null,"言語的设置不正确。","近似标准化系数"]
[null,")因素超过该数量时，估计平均以及多重比较不能输出。","※由于R-squared的值的估计为负数，计算不了近似标准化系数。"]
[null,"不允许改变HAD事前指定的名为「Data」的工作表的名称。请更改工作表名称。","多变量检验"]
[null,null,"优势比(odds ration)"]
[null,"由于变量效果的数量多于样本数量，不能进行估计。","群体区别"]
[null,"因变量不是二进制数据。","预测"]
[null,"没有随机效应。","准确率"]
[null,null,"总准确率"]
[null,null,"预测曲線和近似可信区间"]
[null,null,"预测分布"]
[null,null,"可信区间"]
[null,null,"混合分布模型"]
[null,null,"类别的成员"]
[null,null,"类别的个数"]
[null,null,"回归系数的协方差矩阵"]
[null,null,"等级线性模型"]
[null,null,"组的个数"]
[null,null,"随机效应"]
[null,null,"※Null模型里包含有截距的随机效应。"]
[null,null,"偏离度"]
[null,null,"估计的模型的参数个数"]
[null,null,"NULL模型的参数的个数"]
[null,null,"近似R2"]
[null,null,"固定効果"]
[null,null,"※level1的自变量使用所有组的均值进行中心化"]
[null,null,"※估计回归系数的随机效应时，计算不出标准化系数。"]
[null,null,"方差成分"]
[null,null,"由于样本数量与小组的个数相同，不能估计截距的随机效应。"]
[null,null,"方差比率"]
[null,null,"随机效应的协方差矩阵"]
[null,null,"固定効果的协方差矩阵"]
[null,null,"※步骤中，不收敛，或者是得到了不合理结果(improper solutions)。"]
[null,null,"模型比较"]
[null,null,"误差df"]
[null,null," ΔF值"]
[null,null,"※R-squared的值使用Cox-Snell的R2。"]
[null,null,"※R-squared的值使用R2DEV。"]
[null,null,"Δ卡方值"]
[null,null,"非标准化系数"]
[null,null,"简单效应的检验"]
[null,null,"※使用稳健标准误差。"]
[null,null,"交互作用的变量"]
[null,null,"检验变量"]
[null,null,"勾画不出4要素以上的交互作用的图表。"]
[null,null,"低分组"]
[null,null,"高分组"]
[null,null,"※所得到的解不收敛，或者是得到了不合理结果(improper solutions)。"]
[null,null,"图"]
[null,null,"※定序回归的图表的值不正确。在知晓交互作用模式的基础上，仅供参考之用。"]
[null,null,"主效应的检验"]
[null,null,"简单效应的检验 (等级线性模型)"]
[null,null,"使用HLM进行简单效应分析时，需要包括下一级的交互作用项。HAD的运算终止。"]
[null,null,"中介效应分析"]
[null,null,"※通过使用变量指定的数据文件进行了成列删除。"]
[null,null,"※分析中不收敛、或者得到了不合理结果(improper solutions)。"]
[null,null,"没有中介效应变量"]
[null,null,"有中介效应变量"]
[null,null,"间接效应的检验 (假定其为正态分布)"]
[null,null,"检验方法"]
[null,null,"※显示的系数为非标准化系数"]
[null,null,"※显示的系数为标准化系数"]
[null,null,"自助法可信区间"]
[null,null,"样本数"]
[null,null,"标本生成法"]
[null,null,"参数方法"]
[null,null,"非参数方法"]
[null,null,"可信区间估计法"]
[null,null,"百分位数法"]
[null,null,"偏差校正法"]
[null,null,"※自助法置信区间的bias调节不适当。输出使用未调节的可信区间的結果。"]
[null,null,"间接效应的分布"]
[null,null,"间接效应"]
[null,null,"调节变量"]
[null,null,"针对没有中介效应变量的因变量的模型"]
[null,null,"针对中介效应变量的模型"]
[null,null,"包含中介效应变量的因变量的模型"]
[null,null,"偏相关矩阵的差的检验"]
[null,null,"相关性矩阵差的检验"]
[null,null,"卡方值 = "]
[null,null,"差的统计量（Z值）"]
[null,null,"验证性因子分析"]
[null,null,"探索性因子分析"]
[null,null,"模型的拟合优度"]
[null,null,"※识别不了模型。估计值不正确。"]
[null,null,"※求解没能收敛。估计值不正确。"]
[null,null,"※由于参数的个数超过了限度，不能显示拟合优度。"]
[null,null,"估计模型"]
[null,null,"独立模型"]
[null,null,"※按照因子载荷的大小排序"]
[null,null,"※没有计算标准误差"]
[null,null,"路径系数"]
[null,null,"平均・截距"]
[null,null,"标准化残差 (粗体字为有显著性的残差）"]
[null,null,"结构方程模型"]
[null,null,"多水平结构方程模型"]
[null,null,"估计法"]
[null,null,"广义最小二乘法"]
[null,null,"缺失值模式的个数"]
[null,null,"完全信息极大似然法"]
[null,null,"参数的数量"]
[null,null,"※自由度为负值，识别不了模型。估计不正确。"]
[null,null,"※NULL模型未能作出估计。显示不了拟合优度。"]
[null,null,"※显示的路径为标准化系数"]
[null,null,"※显示的路径为非标准化系数"]
[null,null,"※正在计算稳健标准误差"]
[null,null,"※方差限制为非负数"]
[null,null,"路径的差"]
[null,null,"标准化解"]
[null,null,"间接效应(标准化)"]
[null,null,"路径的差(标准化)"]
[null,null,"回归分析"]
[null,null,"单词数"]
[null,null,"单词"]
[null,null,"词类"]
[null,null,"出现频数"]
[null,null,"出现次数"]
[null,null,"聚类的具体"]
[null,null,"分类量化"]
[null,null,"列的分类"]
[null,null,"主成分模式"]
[null,null,"主成分贡献"]
[null,null,"贡献率(%)"]
[null,null,"累积贡献(%)"]
[null,null,"#devtools的安装　已经安装的情况下不需要"]
[null,null,"#glmmstan的安装"]
[null,null,"使用#proxy接不通github的情况下请运行以下代码"]
[null,null,"#但是，proxy的URL,用户ID，密码需要您自己输入"]
[null,null,"install.packages(\"httr\")  #httr已经安装的情况下不需要"]
[null,null,"username = \"用户ID\", password = \"密码\"))"]
[null,null,"正态分布由来的随机数"]
[null,null,"泊松分布由来的随机数"]
[null,null,"二项分布由来的随机数"]
[null,null,"负二项分布由来的随机数"]
[null,null,"伽玛分布由来的随机数"]
[null,null,"贝塔分布由来的随机数"]
[null,null,"平均"]
[null,null,"方差"]
[null,null,"概率"]
[null,null,"测试次数"]
[null,null,"过度离散"]
[null,null,"量表"]
[null,null,"拟合优度"]
[null,null,"R-squared的值"]
[null,null,"Kendall的W"]
[null,null,"协方差"]
[null,null,"牛顿迭代法"]
[null,null,"外推法"]
[null,null,"拟牛顿迭代法"]
[null,null,"秒"]
[null,null,"间接效应的交互作用"]
[null,null,"U ="]
[null,null,"BayesFactor"]
[null,null,"JZS"]
[null,null,"unit-information"]
[null,null,"Yate's continuity correction"]
[]
[null,null,"R2"]
[null,null,"Adjust R2"]
[null,null,"广义线性混合模型"]